Workbook

Sheet Соответствие модификациям
A1: Наименование вещества | B1: ИСПОЛНЕНИЕ СТАЦИОНАРНОЕ ОБЩЕПРОМЫШЛЕННОЕ | D1: ИСПОЛНЕНИЕ СТАЦИОНАРНОЕ ВЗРЫВОЗВЩИЩЕННОЕ
B2: ГАНК-4С (измерение на ХК) 1 вещество в приборе | C2: ГАНК-4М (измерение на Д) до 3-х веществ в приборе | D2: ГАНК-4СEx (2Exe[ib]dIIBT4Gc X) 1 вещество (Д или ХК) | E2: ГАНК-4ФEx (с маркировкой взрывозащиты 1ExdIICT5Gb X) до 4-х веществ в приборе
B3: =IFERROR(VLOOKUP(A3,Данные2!A:AM,32,FALSE)," ") ->  | C3: =IFERROR(VLOOKUP(A3,Данные2!A:AM,33,FALSE)," ") ->  | D3: =IFERROR(VLOOKUP(A3,Данные2!A:AM,36,FALSE)," ") ->  | E3: =IFERROR(VLOOKUP(A3,Данные2!A:AM,39,FALSE)," ") -> 
B4: =IFERROR(VLOOKUP(A4,Данные2!A:AM,32,FALSE)," ") ->  | C4: =IFERROR(VLOOKUP(A4,Данные2!A:AM,33,FALSE)," ") ->  | D4: =IFERROR(VLOOKUP(A4,Данные2!A:AM,36,FALSE)," ") ->  | E4: =IFERROR(VLOOKUP(A4,Данные2!A:AM,39,FALSE)," ") -> 
B5: =IFERROR(VLOOKUP(A5,Данные2!A:AM,32,FALSE)," ") ->  | C5: =IFERROR(VLOOKUP(A5,Данные2!A:AM,33,FALSE)," ") ->  | D5: =IFERROR(VLOOKUP(A5,Данные2!A:AM,36,FALSE)," ") ->  | E5: =IFERROR(VLOOKUP(A5,Данные2!A:AM,39,FALSE)," ") -> 
B6: =IFERROR(VLOOKUP(A6,Данные2!A:AM,32,FALSE)," ") ->  | C6: =IFERROR(VLOOKUP(A6,Данные2!A:AM,33,FALSE)," ") ->  | D6: =IFERROR(VLOOKUP(A6,Данные2!A:AM,36,FALSE)," ") ->  | E6: =IFERROR(VLOOKUP(A6,Данные2!A:AM,39,FALSE)," ") -> 
B7: =IFERROR(VLOOKUP(A7,Данные2!A:AM,32,FALSE)," ") ->  | C7: =IFERROR(VLOOKUP(A7,Данные2!A:AM,33,FALSE)," ") ->  | D7: =IFERROR(VLOOKUP(A7,Данные2!A:AM,36,FALSE)," ") ->  | E7: =IFERROR(VLOOKUP(A7,Данные2!A:AM,39,FALSE)," ") -> 
B8: =IFERROR(VLOOKUP(A8,Данные2!A:AM,32,FALSE)," ") ->  | C8: =IFERROR(VLOOKUP(A8,Данные2!A:AM,33,FALSE)," ") ->  | D8: =IFERROR(VLOOKUP(A8,Данные2!A:AM,36,FALSE)," ") ->  | E8: =IFERROR(VLOOKUP(A8,Данные2!A:AM,39,FALSE)," ") -> 
B9: =IFERROR(VLOOKUP(A9,Данные2!A:AM,32,FALSE)," ") ->  | C9: =IFERROR(VLOOKUP(A9,Данные2!A:AM,33,FALSE)," ") ->  | D9: =IFERROR(VLOOKUP(A9,Данные2!A:AM,36,FALSE)," ") ->  | E9: =IFERROR(VLOOKUP(A9,Данные2!A:AM,39,FALSE)," ") -> 
B10: =IFERROR(VLOOKUP(A10,Данные2!A:AM,32,FALSE)," ") ->  | C10: =IFERROR(VLOOKUP(A10,Данные2!A:AM,33,FALSE)," ") ->  | D10: =IFERROR(VLOOKUP(A10,Данные2!A:AM,36,FALSE)," ") ->  | E10: =IFERROR(VLOOKUP(A10,Данные2!A:AM,39,FALSE)," ") -> 
B11: =IFERROR(VLOOKUP(A11,Данные2!A:AM,32,FALSE)," ") ->  | C11: =IFERROR(VLOOKUP(A11,Данные2!A:AM,33,FALSE)," ") ->  | D11: =IFERROR(VLOOKUP(A11,Данные2!A:AM,36,FALSE)," ") ->  | E11: =IFERROR(VLOOKUP(A11,Данные2!A:AM,39,FALSE)," ") -> 
B12: =IFERROR(VLOOKUP(A12,Данные2!A:AM,32,FALSE)," ") ->  | C12: =IFERROR(VLOOKUP(A12,Данные2!A:AM,33,FALSE)," ") ->  | D12: =IFERROR(VLOOKUP(A12,Данные2!A:AM,36,FALSE)," ") ->  | E12: =IFERROR(VLOOKUP(A12,Данные2!A:AM,39,FALSE)," ") -> 
B13: ОСОБЕННОСТИ ПРИБОРА • Широкий перечень контролируемых веществ (более 250); • Межкалибровочный и межповерочный интервал – 1год; • Свето-звуковая сигнализация; • Принудительный забор пробы (встроенный насос); • Возможность создания единой сети из 128 газоанализаторов при помощи цифрового интерфейса RS485 Modbus RTU и программного обеспечения RbCenter. | C13: ОСОБЕННОСТИ ПРИБОРА • Широкий перечень контролируемых веществ (более 250); • Одновременный контроль до 2х вредных и отравляющих веществ; • Межкалибровочный и межповерочный интервал – 1год; • Свето-звуковая сигнализация; • Принудительный забор пробы (встроенный насос); • Возможность создания единой сети из 128 газоанализаторов при помощи цифрового интерфейса RS485 Modbus RTU и программного обеспечения RbCenter. | D13: ОСОБЕННОСТИ ПРИБОРА • Широкий перечень контролируемых веществ (более 250); • Межкалибровочный и межповерочный интервал – 1год; • Взрывозащищённое исполнение 2Exe[ib]dIIBT4 X; • Свето-звуковая сигнализация; • Принудительный забор пробы (встроенный насос); | E13: ОСОБЕННОСТИ ПРИБОРА • Широкий перечень контролируемых веществ (более 250); • Одновременный контроль до 4х вредных и отравляющих веществ; • Взрывозащищённое исполнение 1ExdIICТ5Gb X; • Коррозионностойкий алюминиево-кремниевый корпус; • Свето-звуковая сигнализация; • Принудительный забор пробы (встроенный насос); • Возможность создания единой сети из 128 газоанализаторов при помощи цифрового интерфейса RS485 Modbus RTU и программного обеспечения RbCenter.
B14: Одно вещество (Химкассета) Вых.сигналы: 3 реле - ПОРОГ1, ПОРОГ2, Отсутствие питания 4-20 мА, RS485 | C14: Два вещества (Датчики) Вых.сигналы: 3 реле - ПОРОГ1, ПОРОГ2, Отсутствие питания 4-20 мА, RS485 | D14: Одно вещество (датчик или химкассета) Блок питания (выносится за пределы Ex зоны) с вых.сигналами: 1 реле, 4-20 мА | E14: До 4 веществ (до 4-х датчиков или 3-х датчиков и одной химкассеты) Вых. сигналы: RS485, до 2х реле на каждое вещество и 4-20мА по каждому каналу

Sheet ↑↑↑↑ ОЛ ГАНК-4С ↑↑↑↑
A1: 1. ВЫБРАТЬ: Наименование вещества↓↓↓ | B1: Наименование модификации | C1: Стандартный порог срабатывания | D1: СР-4 | F1: 2 КОЛ-ВО ГАНК-4 ЗАПОЛНИТЬ↓↓↓ | AI1: =IF(D2="Да","Да","") -> Да | AJ1: Да
A2: Р : Кислота серная (Р) 0,5 - 20 мг/м3 | B2: =IFERROR(VLOOKUP(A2,Данные2!A:AM,32,FALSE)," ") -> ГАНК-4С для определения: Кислота серная (Р) | C2: =IFERROR(CONCATENATE(VLOOKUP(A2,Данные2!A:AM,26,FALSE)," мг/м3")," ") -> 1 мг/м3 | D2: =IFERROR(VLOOKUP(A2,Данные2!A:AN,40,FALSE)," ") -> Да | AI2: =IF(D2="Да","Нет","") -> Нет | AJ2: Нет
A3: Р : Азота оксид (оксид азота (II)) (Р) 2,5 - 100 мг/м3 | AI3: ВАРИАНТЫ ВЫПАДАЮЩЕГО СПИСКА | AP3: СЦЕПКА | AQ3: ВОЗМОЖНЫЕ ВАР-ТЫ ДИНАМ. СПИСКОВ
A4: Р : Азота оксид (оксид азота (II)) (Р) 2,5 - 100 мг/м4 | C4: 3 ЗАПОЛНИТЬ↓↓↓
A5: Р : Азота оксид (оксид азота (II)) (Р) 2,5 - 100 мг/м5 | B5: Температура эксплуатации газоанализатора | C5: от - 50 до + 50 ° С | AI5: от +5 до +50° С | AJ5: от - 50 до + 50 ° С | AP5: =_xlfn.CONCAT(C5," и ",C6) -> от - 50 до + 50 ° С и Открытая площадка | AQ5: от - 50 до + 50 ° С и Открытая площадка | AR5: от +5 до +50° С и Открытая площадка | AS5: от - 50 до + 50 ° С и В помещении | AT5: от +5 до +50° С и В помещении
A6: Р : Азота оксид (оксид азота (II)) (Р) 2,5 - 100 мг/м6 | B6: Место установки оборудования | C6: Открытая площадка | D6: =IF(C7=AJ7,"ПОРОГ 1 не менее 1 ПДК р.з.","") ->  | E6: =IF(C7=AJ7,"ПОРОГ 2 не менее 3 ПДК р.з.","") ->  | AI6: Открытая площадка | AJ6: В помещении
A7: Р : Азота оксид (оксид азота (II)) (Р) 2,5 - 100 мг/м7 | B7: Пороги срабатывания сигн, реле | C7: 1 ПДК р.з. (По умолчанию) | AI7: 1 ПДК р.з. (По умолчанию) | AJ7: Под заказ (уточнить какие)
A8: Р : Азота оксид (оксид азота (II)) (Р) 2,5 - 100 мг/м9 | B8: Питание прибора | D8: =IF(C9=AJ9,"Уточнить кабельный ввод","") ->  | AI8: 220В (По умолчанию) | AJ8: 24В
A9: Р : Азота оксид (оксид азота (II)) (Р) 2,5 - 100 мг/м8 | B9: Подключение | AI9: Ответные части разъемов типа MS-XS8/12 (По умолчанию) | AJ9: Распределительная коробка с каб.вводами
A11: Р : Азота оксид (оксид азота (II)) (Р) 2,5 - 100 мг/м13 | B11: Дополнительное оборудование | C11: 4 ЗАПОЛНИТЬ↓↓↓ | D11: =IF(C12="Шкаф ЩГК с СЗО ","Уточнить кабельный ввод","") ->  | F11: 5 КОЛ-ВО ЗАПОЛНИТЬ↓↓↓
B12: Способ размещения газоанализатора | AI12: =IF(AP5=AQ5,AQ12,IF(AP5=AR5,AQ12,IF(AP5=AS5,AR12,IF(AP5=AT5,AS12,"")))) -> Термостат ТС-1 на стойке с козырьком | AJ12: =IF(AP5=AT5,AT12,"") ->  | AK12: =IF(AP5=AT5,AU12,"") ->  | AM12: ТС-1*: На стойке с козырьком | AN12: на стойке без | AO12: тепло: стойка с распределительной коробкой*, СЗО | AP12: Стандартный (настенный, кронштейн) | AQ12: Термостат ТС-1 на стойке с козырьком | AR12: Термостат ТС-1 на стойке | AS12: Стойка СТМГ с распред.коробкой и СЗО | AT12: Шкаф ЩГК с СЗО | AU12: Настенный монтаж
B13: =IF(OR(C12=AQ12,C12=AR12),"Питание ТС-1 (потребляемая мощность 110Вт)","") ->  | AI13: 220В (по умолчанию) | AJ13: 24В
A14: Р : Азота оксид (оксид азота (II)) (Р) 2,5 - 100 мг/м15 | B14: Комплект отбора пробы (рекомендовано для веществ тяжелее воздуха) | AI14: шланг ПВД (до 7м), пробозаборная воронка | AJ14: шланг ПВД (до 7м) | AK14: Не требуется
A15: Р : Азота оксид (оксид азота (II)) (Р) 2,5 - 100 мг/м16 | B15: комплект для проведения ПНР | AI15: УПР (устройство проверки работоспособности) | AJ15: Не требуется
A16: Р : Азота оксид (оксид азота (II)) (Р) 2,5 - 100 мг/м17 | B16: вторичный блок питания, сбора данных | AI16: Блок информационный БИ-2 (вх.сигн: RS485, 4-20 mA; вых.сигн: RS485; Ethernet; реле) | AJ16: Не требуется
A17: Р : Азота оксид (оксид азота (II)) (Р) 2,5 - 100 мг/м18 | B17: запасная хим кассета (реккомендуется в случае возможных частых первышениях ПДК) | AI17: Требуется | AJ17: Не требуется
A18: Р : Азота оксид (оксид азота (II)) (Р) 2,5 - 100 мг/м19 | B18: комплект для подключения к ПК | AI18: ПО для работы с газоаналитической системой (по протоколу Modbus) | AJ18: ПО для работы с архивом | AK18: Не требуется
A19: Р : Азота оксид (оксид азота (II)) (Р) 2,5 - 100 мг/м20 | B19: Требуется ли шильд с позиционым обозначением?
A20: Р : Азота оксид (оксид азота (II)) (Р) 2,5 - 100 мг/м22 | B20: =IF(D2="ДА","Требуется ли расширение системы датчиками разлива СР-4?","") -> Требуется ли расширение системы датчиками разлива СР-4?
A21: Р : Азота оксид (оксид азота (II)) (Р) 2,5 - 100 мг/м23
A22: Р : Азота оксид (оксид азота (II)) (Р) 2,5 - 100 мг/м28
A23: Р : Азота оксид (оксид азота (II)) (Р) 2,5 - 100 мг/м29 | B23: Информация о проекте | C23: 6 ЗАПОЛНИТЬ↓↓↓
A24: Р : Азота оксид (оксид азота (II)) (Р) 2,5 - 100 мг/м30 | B24: Покупатель
A25: Р : Азота оксид (оксид азота (II)) (Р) 2,5 - 100 мг/м31 | B25: Конечный заказчик
A26: Р : Азота оксид (оксид азота (II)) (Р) 2,5 - 100 мг/м32 | B26: Объект
A27: Р : Азота оксид (оксид азота (II)) (Р) 2,5 - 100 мг/м34 | B27: Статус проекта
A28: Р : Азота оксид (оксид азота (II)) (Р) 2,5 - 100 мг/м35 | B28: Контактное лицо
A29: Р : Азота оксид (оксид азота (II)) (Р) 2,5 - 100 мг/м36 | B29: Телефон
A30: Р : Азота оксид (оксид азота (II)) (Р) 2,5 - 100 мг/м37 | B30: e-mail
A31: Р : Азота оксид (оксид азота (II)) (Р) 2,5 - 100 мг/м38
A32: Р : Азота оксид (оксид азота (II)) (Р) 2,5 - 100 мг/м39
A33: Р : Азота оксид (оксид азота (II)) (Р) 2,5 - 100 мг/м40
A34: Р : Азота оксид (оксид азота (II)) (Р) 2,5 - 100 мг/м41
A35: Р : Азота оксид (оксид азота (II)) (Р) 2,5 - 100 мг/м42
A36: Р : Азота оксид (оксид азота (II)) (Р) 2,5 - 100 мг/м43

Sheet ↑↑↑↑ ОЛ ГАНК-4М ↑↑↑↑
A1: 1. ВЫБРАТЬ вещества в приборе: Наименование вещества↓↓↓ | B1: Тип датчика: до двух (Д) | C1: Стандартный порог срабатывания | D1: Кол-во датчиков в приборе | F1: 2 КОЛ-ВО ГАНК-4 ЗАПОЛНИТЬ↓↓↓ | AI1: Да
A2: Р : Аммиак (Р) 10 - 400 мг/м3 | B2: =IFERROR(VLOOKUP(A2,Данные2!A:AM,37,FALSE)," ") -> Д | C2: =IFERROR(CONCATENATE(VLOOKUP(A2,Данные2!A:AM,26,FALSE)," мг/м3")," ") -> 20 мг/м3 | D2: =COUNTIF(B2:B3,"Д") -> 1 | AI2: Нет
B3: =IFERROR(VLOOKUP(A3,Данные2!A:AM,37,FALSE)," ") ->  | C3: =IFERROR(CONCATENATE(VLOOKUP(A3,Данные2!A:AM,26,FALSE)," мг/м3")," ") -> 
A4: Р : Азота оксид (оксид азота (II)) (Р) 2,5 - 100 мг/м3 | AI4: ВАРИАНТЫ ВЫПАДАЮЩЕГО СПИСКА | AP4: СЦЕПКА | AQ4: ВОЗМОЖНЫЕ ВАР-ТЫ ДИНАМ. СПИСКОВ
A5: Р : Азота оксид (оксид азота (II)) (Р) 2,5 - 100 мг/м4 | C5: 3 ЗАПОЛНИТЬ↓↓↓
A6: Р : Азота оксид (оксид азота (II)) (Р) 2,5 - 100 мг/м5 | B6: Температура эксплуатации газоанализатора | AI6: от +5 до +50° С | AJ6: от - 50 до + 50 ° С | AP6: =_xlfn.CONCAT(C6," и ",C7) -> и | AQ6: от - 50 до + 50 ° С и Открытая площадка | AR6: от +5 до +50° С и Открытая площадка | AS6: от - 50 до + 50 ° С и В помещении | AT6: от +5 до +50° С и В помещении
A7: Р : Азота оксид (оксид азота (II)) (Р) 2,5 - 100 мг/м6 | B7: Место установки оборудования | D7: =IF(C8=AJ8,"ПОРОГ 1 не менее 1 ПДК р.з.","") ->  | E7: =IF(C8=AJ8,"ПОРОГ 2 не менее 3 ПДК р.з.","") ->  | AI7: Открытая площадка | AJ7: В помещении
A8: Р : Азота оксид (оксид азота (II)) (Р) 2,5 - 100 мг/м7 | B8: Пороги срабатывания сигн, реле | AI8: =IF(D2=1,"1 реле - 1 ПДК р.з., 2 реле - 2 ПДК р.з. (По умолчанию)",IF(D2=2,"реле 1 (ПОРОГ 1 - 1ПДК по любому из в-в) реле 2 (ПОРОГ 2 - 2 ПДК по любому из в-в) ","")) -> 1 реле - 1 ПДК р.з., 2 реле - 2 ПДК р.з. (По умолчанию) | AJ8: Под заказ (уточнить значения)
B9: =IF(D2=2,"Выбор вещества для 4-20 мА (только 1 вых 4-20 мА)","") -> 
A11: Р : Азота оксид (оксид азота (II)) (Р) 2,5 - 100 мг/м13 | B11: Дополнительное оборудование | C11: 4 ЗАПОЛНИТЬ↓↓↓ | D11: =IF(C12="Шкаф ЩГК с СЗО ","Уточнить кабельный ввод","") ->  | F11: 5 КОЛ-ВО ЗАПОЛНИТЬ↓↓↓
B12: Способ размещения газоанализатора | AI12: =IF(AP6=AQ6,AQ12,IF(AP6=AR6,AQ12,IF(AP6=AS6,AR12,IF(AP6=AT6,AS12,"")))) ->  | AJ12: =IF(AP6=AT6,AT12,"") ->  | AK12: =IF(AP6=AT6,AU12,"") ->  | AM12: ТС-1*: На стойке с козырьком | AN12: на стойке без | AO12: тепло: стойка с распределительной коробкой*, СЗО | AP12: Стандартный (настенный, кронштейн) | AQ12: Термостат ТС-1 на стойке с козырьком | AR12: Термостат ТС-1 на стойке | AS12: Стойка СТМГ с распред.коробкой и СЗО | AT12: Шкаф ЩГК с СЗО | AU12: Настенный монтаж
B13: =IF(OR(C12=AQ12,C12=AR12),"Питание ТС-1 (потребляемая мощность 110Вт)","") ->  | AI13: 220В (по умолчанию) | AJ13: 24В
A14: Р : Азота оксид (оксид азота (II)) (Р) 2,5 - 100 мг/м15 | B14: Комплект отбора пробы (рекомендовано для веществ тяжелее воздуха) | AI14: шланг ПВД (до 7м), пробозаборная воронка | AJ14: шланг ПВД (до 7м) | AK14: Не требуется
A15: Р : Азота оксид (оксид азота (II)) (Р) 2,5 - 100 мг/м16 | B15: Комплект для проведения ПНР | AI15: УПР (устройство проверки работоспособности) | AJ15: Не требуется
A16: Р : Азота оксид (оксид азота (II)) (Р) 2,5 - 100 мг/м17 | B16: Вторичный блок питания, сбора данных | AI16: Блок информационный БИ-2 (вх.сигн: RS485, 4-20 mA; вых.сигн: RS485; Ethernet; реле) | AJ16: Не требуется
A17: Р : Азота оксид (оксид азота (II)) (Р) 2,5 - 100 мг/м19 | B17: Комплект для подключения к ПК | AI17: ПО для работы с газоаналитической системой | AJ17: ПО для работы с архивом | AK17: Не требуется
A18: Р : Азота оксид (оксид азота (II)) (Р) 2,5 - 100 мг/м20 | B18: =IF(OR(C6=AJ6,C7=AI7,C12=AQ12,C12=AR12,C15=AI15,"",C14=AI14,C14=AJ14),"","Принцип отбора пробы") -> Принцип отбора пробы | AI18: =IF(OR(C6=AJ6,C7=AI7,C12=AQ12,C12=AR12,C15=AI15,"",C14=AI14,C14=AJ14),"","Диффузионный") -> Диффузионный | AJ18: =IF(OR(C6=AJ6,C7=AI7,C12=AQ12,C12=AR12,C15=AI15,"",C14=AI14,C14=AJ14),"","Принудительный") -> Принудительный
A19: Р : Азота оксид (оксид азота (II)) (Р) 2,5 - 100 мг/м22 | B19: Требуется ли шильд с позиционым обозначением?
A20: Р : Азота оксид (оксид азота (II)) (Р) 2,5 - 100 мг/м23
A21: Р : Азота оксид (оксид азота (II)) (Р) 2,5 - 100 мг/м24 | B21: Информация о проекте | C21: 6 ЗАПОЛНИТЬ↓↓↓
A22: Р : Азота оксид (оксид азота (II)) (Р) 2,5 - 100 мг/м25 | B22: Покупатель
A23: Р : Азота оксид (оксид азота (II)) (Р) 2,5 - 100 мг/м26 | B23: Конечный заказчик
A24: Р : Азота оксид (оксид азота (II)) (Р) 2,5 - 100 мг/м27 | B24: Объект
A25: Р : Азота оксид (оксид азота (II)) (Р) 2,5 - 100 мг/м28 | B25: Статус проекта
A26: Р : Азота оксид (оксид азота (II)) (Р) 2,5 - 100 мг/м29 | B26: Контактное лицо
A27: Р : Азота оксид (оксид азота (II)) (Р) 2,5 - 100 мг/м30 | B27: Телефон
A28: Р : Азота оксид (оксид азота (II)) (Р) 2,5 - 100 мг/м31 | B28: e-mail
A29: Р : Азота оксид (оксид азота (II)) (Р) 2,5 - 100 мг/м32
A30: Р : Азота оксид (оксид азота (II)) (Р) 2,5 - 100 мг/м33
A31: Р : Азота оксид (оксид азота (II)) (Р) 2,5 - 100 мг/м34
A32: Р : Азота оксид (оксид азота (II)) (Р) 2,5 - 100 мг/м35
A33: Р : Азота оксид (оксид азота (II)) (Р) 2,5 - 100 мг/м36
A34: Р : Азота оксид (оксид азота (II)) (Р) 2,5 - 100 мг/м37
A35: Р : Азота оксид (оксид азота (II)) (Р) 2,5 - 100 мг/м38
A36: Р : Азота оксид (оксид азота (II)) (Р) 2,5 - 100 мг/м39
A37: Р : Азота оксид (оксид азота (II)) (Р) 2,5 - 100 мг/м40
A38: Р : Азота оксид (оксид азота (II)) (Р) 2,5 - 100 мг/м41
A39: Р : Азота оксид (оксид азота (II)) (Р) 2,5 - 100 мг/м42
A40: Р : Азота оксид (оксид азота (II)) (Р) 2,5 - 100 мг/м43

Sheet ↑↑↑↑ ОЛ ГАНК-4CEx ↑↑↑↑
A1: 1. ВЫБРАТЬ: Наименование вещества↓↓↓ | B1: Наименование модификации | C1: Стандартный порог срабатывания | D1: Тип датчика | E1: СР-4 Ex | F1: 2 КОЛ-ВО ГАНК-4 ЗАПОЛНИТЬ↓↓↓ | AI1: =IF(E2="Да","Да","") -> Да | AJ1: Да
A2: Р : Кислота серная (Р) 0,5 - 20 мг/м3 | B2: =IFERROR(VLOOKUP(A2,Данные2!A:AM,36,FALSE)," ") -> ГАНК-4СEx (Х) для определения: Кислота серная (Р) | C2: =IFERROR(CONCATENATE(VLOOKUP(A2,Данные2!A:AM,26,FALSE)," мг/м3")," ") -> 1 мг/м3 | D2: =IFERROR(VLOOKUP(A2,Данные2!A:AM,37,FALSE)," ") -> Х | E2: =IFERROR(VLOOKUP(A2,Данные2!A:AN,40,FALSE)," ") -> Да | AI2: =IF(E2="Да","Нет","") -> Нет | AJ2: Нет
A3: Р : Азота оксид (оксид азота (II)) (Р) 2,5 - 100 мг/м3 | AI3: ВАРИАНТЫ ВЫПАДАЮЩЕГО СПИСКА | AP3: СЦЕПКА | AQ3: ВОЗМОЖНЫЕ ВАР-ТЫ ДИНАМ. СПИСКОВ
A4: Р : Азота оксид (оксид азота (II)) (Р) 2,5 - 100 мг/м4 | C4: 3 ЗАПОЛНИТЬ↓↓↓
A5: Р : Азота оксид (оксид азота (II)) (Р) 2,5 - 100 мг/м5 | B5: Температура эксплуатации газоанализатора | C5: от +5 до +50° С | AI5: от +5 до +50° С | AJ5: от - 50 до + 50 ° С | AP5: =_xlfn.CONCAT(C5," и ",C6) -> от +5 до +50° С и Открытая площадка | AQ5: от - 50 до + 50 ° С и Открытая площадка | AR5: от +5 до +50° С и Открытая площадка | AS5: от - 50 до + 50 ° С и В помещении | AT5: от +5 до +50° С и В помещении
A6: Р : Азота оксид (оксид азота (II)) (Р) 2,5 - 100 мг/м6 | B6: Место установки оборудования | C6: Открытая площадка | D6: =IF(C7=AJ7,"УТОЧНИТЬ ПОРОГ (не менее 1 ПДК р.з.)","") -> УТОЧНИТЬ ПОРОГ (не менее 1 ПДК р.з.) | AI6: Открытая площадка | AJ6: В помещении
A7: Р : Азота оксид (оксид азота (II)) (Р) 2,5 - 100 мг/м7 | B7: Пороги срабатывания сигн, реле (на блоке питания) | C7: Под заказ (уточнить какие) | F7: =IF(C15="ДА","Будет занято СЗО","") ->  | AI7: 1 ПДК р.з. (По умолчанию) | AJ7: Под заказ (уточнить какие)
A8: Р : Азота оксид (оксид азота (II)) (Р) 2,5 - 100 мг/м9 | B8: Питание прибора (на блоке питания) | C8: 24В | D8: =IF(C9=AJ9,"Уточнить кабельный ввод","") -> Уточнить кабельный ввод | AI8: 220В (По умолчанию) | AJ8: 24В
A9: Р : Азота оксид (оксид азота (II)) (Р) 2,5 - 100 мг/м8 | B9: Подключение | C9: Распределительная коробка с каб.вводами под заказ | AI9: Распределительная коробка с каб.вводами M20*1.5 (По умолчанию) | AJ9: Распределительная коробка с каб.вводами под заказ
D10: =IF(C11=AJ11,"Уточнить кабельный ввод","") -> Уточнить кабельный ввод
B11: Длина кабеля между блоком питания и прибором | C11: Под заказ (уточнить) | AI11: 20м (по умолчанию) | AJ11: Под заказ (уточнить)
A13: Р : Азота оксид (оксид азота (II)) (Р) 2,5 - 100 мг/м13 | B13: Дополнительное оборудование | C13: 4 ЗАПОЛНИТЬ↓↓↓ | D13: =IF(C14="Шкаф ЩГК с СЗО ","Уточнить кабельный ввод","") ->  | F13: 5 КОЛ-ВО ЗАПОЛНИТЬ↓↓↓
B14: Способ размещения газоанализатора | C14: Термостат ТС-1 на стойке с козырьком | AI14: =IF(AP5=AQ5,AQ14,IF(AP5=AR5,AQ14,IF(AP5=AS5,AR14,IF(AP5=AT5,AS14,"")))) -> Термостат ТС-1 на стойке с козырьком | AJ14: =IF(AP5=AT5,AT14,"") ->  | AM14: ТС-1*: На стойке с козырьком | AN14: на стойке без | AO14: тепло: стойка с распределительной коробкой* | AP14: Стандартный (настенный, кронштейн) | AQ14: Термостат ТС-1 на стойке с козырьком | AR14: Термостат ТС-1 на стойке | AS14: Стойка СТМГ с распред.коробкой | AT14: Настенный монтаж
B15: =IF(OR(C14=AQ14,C14=AR14),"Питание ТС-1 (потребляемая мощность 110Вт)",IF(C14="Стойка СТМГ с распред.коробкой","Требуется ли установка СЗО на стойку (реле в этом случае будет занято СЗО)?","")) -> Питание ТС-1 (потребляемая мощность 110Вт) | AI15: =IF(B15="Питание ТС-1 (потребляемая мощность 110Вт)","220В (по умолчанию)",IF(B15="Требуется ли установка СЗО на стойку (реле в этом случае будет занято СЗО)?","Да","")) -> 220В (по умолчанию) | AJ15: =IF(B15="Питание ТС-1 (потребляемая мощность 110Вт)","24В",IF(B15="Требуется ли установка СЗО на стойку (реле в этом случае будет занято СЗО)?","Нет","")) -> 24В
A16: Р : Азота оксид (оксид азота (II)) (Р) 2,5 - 100 мг/м15 | B16: Комплект отбора пробы (рекомендовано для веществ тяжелее воздуха) | C16: шланг ПВД (до 7м) | AI16: шланг ПВД (до 7м), пробозаборная воронка | AJ16: шланг ПВД (до 7м) | AK16: Не требуется
A17: Р : Азота оксид (оксид азота (II)) (Р) 2,5 - 100 мг/м18 | B17: =IF(D2="Х","запасная хим кассета (реккомендуется в случае возможных частых первышениях ПДК)","") -> запасная хим кассета (реккомендуется в случае возможных частых первышениях ПДК) | C17: Требуется | AI17: =IF(D2="Х","Требуется","") -> Требуется | AJ17: =IF(D2="Х","Не требуется","") -> Не требуется
A18: Р : Азота оксид (оксид азота (II)) (Р) 2,5 - 100 мг/м20
B19: Требуется ли шильд с позиционым обозначением?
A20: Р : Азота оксид (оксид азота (II)) (Р) 2,5 - 100 мг/м22 | B20: =IF(E2="ДА","Требуется ли расширение системы датчиками разлива СР-4?","") -> Требуется ли расширение системы датчиками разлива СР-4? | C20: Да
A21: Р : Азота оксид (оксид азота (II)) (Р) 2,5 - 100 мг/м23
A22: Р : Азота оксид (оксид азота (II)) (Р) 2,5 - 100 мг/м24
A23: Р : Азота оксид (оксид азота (II)) (Р) 2,5 - 100 мг/м25
A24: Р : Азота оксид (оксид азота (II)) (Р) 2,5 - 100 мг/м26 | B24: Информация о проекте | C24: 6 ЗАПОЛНИТЬ↓↓↓
A25: Р : Азота оксид (оксид азота (II)) (Р) 2,5 - 100 мг/м27 | B25: Покупатель
A26: Р : Азота оксид (оксид азота (II)) (Р) 2,5 - 100 мг/м28 | B26: Конечный заказчик
A27: Р : Азота оксид (оксид азота (II)) (Р) 2,5 - 100 мг/м29 | B27: Объект
A28: Р : Азота оксид (оксид азота (II)) (Р) 2,5 - 100 мг/м30 | B28: Статус проекта
A29: Р : Азота оксид (оксид азота (II)) (Р) 2,5 - 100 мг/м31 | B29: Контактное лицо
A30: Р : Азота оксид (оксид азота (II)) (Р) 2,5 - 100 мг/м32 | B30: Телефон
A31: Р : Азота оксид (оксид азота (II)) (Р) 2,5 - 100 мг/м33 | B31: e-mail
A32: Р : Азота оксид (оксид азота (II)) (Р) 2,5 - 100 мг/м34
A33: Р : Азота оксид (оксид азота (II)) (Р) 2,5 - 100 мг/м35
A34: Р : Азота оксид (оксид азота (II)) (Р) 2,5 - 100 мг/м36
A35: Р : Азота оксид (оксид азота (II)) (Р) 2,5 - 100 мг/м37
A36: Р : Азота оксид (оксид азота (II)) (Р) 2,5 - 100 мг/м38
A37: Р : Азота оксид (оксид азота (II)) (Р) 2,5 - 100 мг/м39
A38: Р : Азота оксид (оксид азота (II)) (Р) 2,5 - 100 мг/м40
A39: Р : Азота оксид (оксид азота (II)) (Р) 2,5 - 100 мг/м41
A40: Р : Азота оксид (оксид азота (II)) (Р) 2,5 - 100 мг/м42
A41: Р : Азота оксид (оксид азота (II)) (Р) 2,5 - 100 мг/м43

Sheet ↑↑↑↑ ОЛ ГАНК-ФCEx ↑↑↑↑
A1: 1. ВЫБРАТЬ: Наименование вещества↓↓↓ | B1: Стандартный порог срабатывания | C1: Типы датчиков (до 1 Х и 3 Д или 4 Д) | D1: Кол-во Химкассет | E1: СР-4 | F1: 4 КОЛ-ВО ГАНК-4 ЗАПОЛНИТЬ↓↓↓ | AI1: СР-4 | AJ1: =COUNTIF(E2:E5,"Да") -> 1 | AK1: =IF(AJ1>0,"Да","") -> Да | AL1: =IF(AJ1>0,"Нет","") -> Нет
A2: Р : Азота диоксид (оксид азота (IV)) (Р) 1 - 40 мг/м3 | B2: =IFERROR(CONCATENATE(VLOOKUP(A2,Данные2!A:AM,26,FALSE)," мг/м3")," ") -> 2 мг/м3 | C2: =IFERROR(VLOOKUP(A2,Данные2!A:AM,37,FALSE)," ") -> Д | D2: =COUNTIF(C2:C5,"Х") -> 1 | E2: =IFERROR(VLOOKUP(A2,Данные2!A:AN,40,FALSE)," ") -> Нет
A3: Р : Кислота серная (Р) 0,5 - 20 мг/м3 | B3: =IFERROR(CONCATENATE(VLOOKUP(A3,Данные2!A:AM,26,FALSE)," мг/м3")," ") -> 1 мг/м3 | C3: =IFERROR(VLOOKUP(A3,Данные2!A:AM,37,FALSE)," ") -> Х | D3: Кол-во датчиков | E3: =IFERROR(VLOOKUP(A3,Данные2!A:AN,40,FALSE)," ") -> Да
A4: Р : Азота оксиды (Р) 2,5 - 100 мг/м3 | B4: =IFERROR(CONCATENATE(VLOOKUP(A4,Данные2!A:AM,26,FALSE)," мг/м3")," ") -> 5 мг/м3 | C4: =IFERROR(VLOOKUP(A4,Данные2!A:AM,37,FALSE)," ") -> Д | D4: =COUNTIF(C2:C5,"Д") -> 3 | E4: =IFERROR(VLOOKUP(A4,Данные2!A:AN,40,FALSE)," ") -> Нет
A5: Р : Амины алифатические (Р) 0,5 - 20 мг/м3 | B5: =IFERROR(CONCATENATE(VLOOKUP(A5,Данные2!A:AM,26,FALSE)," мг/м3")," ") -> 1 мг/м3 | C5: =IFERROR(VLOOKUP(A5,Данные2!A:AM,37,FALSE)," ") -> Д | E5: =IFERROR(VLOOKUP(A5,Данные2!A:AN,40,FALSE)," ") -> Нет
A6: Р : Азота оксид (оксид азота (II)) (Р) 2,5 - 100 мг/м3 | AI6: ВАРИАНТЫ ВЫПАДАЮЩЕГО СПИСКА | AP6: СЦЕПКА | AQ6: ВОЗМОЖНЫЕ ВАР-ТЫ ДИНАМ. СПИСКОВ
A7: Р : Азота оксид (оксид азота (II)) (Р) 2,5 - 100 мг/м4 | C7: 2 ЗАПОЛНИТЬ↓↓↓
A8: Р : Азота оксид (оксид азота (II)) (Р) 2,5 - 100 мг/м5 | B8: Температура эксплуатации газоанализатора | C8: от - 50 до + 50 ° С | AI8: от +5 до +50° С | AJ8: от - 50 до + 50 ° С | AP8: =_xlfn.CONCAT(C8," и ",C9) -> от - 50 до + 50 ° С и Открытая площадка | AQ8: от - 50 до + 50 ° С и Открытая площадка | AR8: от +5 до +50° С и Открытая площадка | AS8: от - 50 до + 50 ° С и В помещении | AT8: от +5 до +50° С и В помещении
A9: Р : Азота оксид (оксид азота (II)) (Р) 2,5 - 100 мг/м6 | B9: Место установки оборудования | C9: Открытая площадка | D9: =IF(C10=AJ10,"ПОРОГ 1 не менее 1 ПДК р.з.","") -> ПОРОГ 1 не менее 1 ПДК р.з. | E9: =IF(C10=AJ10,"ПОРОГ 2 не менее 3 ПДК р.з.","") -> ПОРОГ 2 не менее 3 ПДК р.з. | AI9: Открытая площадка | AJ9: В помещении
A10: Р : Азота оксид (оксид азота (II)) (Р) 2,5 - 100 мг/м7 | B10: Пороги срабатывания сигн, реле | C10: Под заказ (уточнить какие) | AI10: 1 ПДК р.з. (По умолчанию) | AJ10: Под заказ (уточнить какие)
B11: Выходные сигналы: 4-20 мА | C11: Требуется по каждому веществу (4) | AI11: =CONCATENATE("Требуется по каждому веществу (",SUM(D2,D4),")") -> Требуется по каждому веществу (4) | AJ11: Не требуется
B12: Выходные сигналы: реле "Сухие контакты" | AI12: Реле 1 (ПОРОГ 1 по любому из в-в) (по умолчанию) | AJ12: реле 1 (ПОРОГ 1 по любому из в-в) реле 2 (ПОРОГ 2 по любому из в-в) | AK12: =CONCATENATE("реле 1 для каждого вещества - при превышении ПОРОГА 1 (",SUM(D2,D4),"реле)") -> реле 1 для каждого вещества - при превышении ПОРОГА 1 (4реле) | AL12: =CONCATENATE("2 реле для каждого из веществ - при превышении ПОРОГА 1, ПОРОГА 2 (",SUM(D2,D4)*2,"реле)") -> 2 реле для каждого из веществ - при превышении ПОРОГА 1, ПОРОГА 2 (8реле)
B13: Выходные сигналы: RS-485 (Общее) | AI13: Требуется | AJ13: Не требуется
A15: Р : Азота оксид (оксид азота (II)) (Р) 2,5 - 100 мг/м13 | B15: Дополнительное оборудование | C15: 3 ЗАПОЛНИТЬ↓↓↓ | D15: =IF(C16="Шкаф ЩГК с СЗО ","Уточнить кабельный ввод","") -> Уточнить кабельный ввод | F15: 5 КОЛ-ВО ЗАПОЛНИТЬ↓↓↓
B16: Способ размещения газоанализатора | C16: Шкаф ЩГК с СЗО | AI16: =IF(AP8=AQ8,AQ16,IF(AP8=AR8,AQ16,IF(AP8=AS8,AR16,IF(AP8=AT8,AS16,"")))) -> Термостат ТС-1 на стойке с козырьком | AJ16: =IF(AP8=AT8,AT16,"") ->  | AK16: =IF(AP8=AT8,AU16,"") ->  | AM16: ТС-1*: На стойке с козырьком | AN16: на стойке без | AO16: тепло: стойка с распределительной коробкой*, СЗО | AP16: Стандартный (настенный, кронштейн) | AQ16: Термостат ТС-1 на стойке с козырьком | AR16: Термостат ТС-1 на стойке | AS16: Стойка СТМГ с распред.коробкой и СЗО | AT16: Шкаф ЩГК с СЗО | AU16: Настенный монтаж
B17: =IF(OR(C16=AQ16,C16=AR16),"Питание ТС-1 (потребляемая мощность 110Вт)","") ->  | AI17: 220В (по умолчанию) | AJ17: 24В
A18: Р : Азота оксид (оксид азота (II)) (Р) 2,5 - 100 мг/м15 | B18: Комплект отбора пробы (рекомендовано для веществ тяжелее воздуха) | AI18: шланг ПВД (до 7м), пробозаборная воронка | AJ18: шланг ПВД (до 7м) | AK18: Не требуется
A19: Р : Азота оксид (оксид азота (II)) (Р) 2,5 - 100 мг/м16 | B19: комплект для проведения ПНР | C19: УПР (устройство проверки работоспособности) | AI19: УПР (устройство проверки работоспособности) | AJ19: Не требуется
A20: Р : Азота оксид (оксид азота (II)) (Р) 2,5 - 100 мг/м17 | B20: вторичный блок сбора данных (устанавливается вне взрывоопасной зоны) | C20: Блок информационный БИ-2 (вх.сигн: RS485, 4-20 mA; вых.сигн: RS485; Ethernet; реле) | AI20: Блок информационный БИ-2 (вх.сигн: RS485, 4-20 mA; вых.сигн: RS485; Ethernet; реле) | AJ20: Не требуется
A21: Р : Азота оксид (оксид азота (II)) (Р) 2,5 - 100 мг/м18 | B21: =IF(D2>0,"запасная хим кассета (реккомендуется в случае возможных частых первышениях ПДК)","") -> запасная хим кассета (реккомендуется в случае возможных частых первышениях ПДК) | AI21: Требуется | AJ21: Не требуется
A22: Р : Азота оксид (оксид азота (II)) (Р) 2,5 - 100 мг/м19 | B22: комплект для подключения к ПК | AI22: ПО для работы с газоаналитической системой | AJ22: Не требуется
A23: Р : Азота оксид (оксид азота (II)) (Р) 2,5 - 100 мг/м20 | B23: Внешняя свето-звуковая сигнализация
A24: Р : Азота оксид (оксид азота (II)) (Р) 2,5 - 100 мг/м22 | B24: Требуется ли шильд с позиционым обозначением?
A25: Р : Азота оксид (оксид азота (II)) (Р) 2,5 - 100 мг/м23 | B25: =IF(AJ1>0,"Требуется ли расширение системы датчиками разлива СР-4?","") -> Требуется ли расширение системы датчиками разлива СР-4?
A26: Р : Азота оксид (оксид азота (II)) (Р) 2,5 - 100 мг/м24
A27: Р : Азота оксид (оксид азота (II)) (Р) 2,5 - 100 мг/м25
A28: Р : Азота оксид (оксид азота (II)) (Р) 2,5 - 100 мг/м26 | B28: Информация о проекте | C28: 6 ЗАПОЛНИТЬ↓↓↓
A29: Р : Азота оксид (оксид азота (II)) (Р) 2,5 - 100 мг/м27 | B29: Покупатель
A30: Р : Азота оксид (оксид азота (II)) (Р) 2,5 - 100 мг/м28 | B30: Конечный заказчик
A31: Р : Азота оксид (оксид азота (II)) (Р) 2,5 - 100 мг/м29 | B31: Объект
A32: Р : Азота оксид (оксид азота (II)) (Р) 2,5 - 100 мг/м30 | B32: Статус проекта
A33: Р : Азота оксид (оксид азота (II)) (Р) 2,5 - 100 мг/м31 | B33: Контактное лицо
A34: Р : Азота оксид (оксид азота (II)) (Р) 2,5 - 100 мг/м32 | B34: Телефон
A35: Р : Азота оксид (оксид азота (II)) (Р) 2,5 - 100 мг/м33 | B35: e-mail
A36: Р : Азота оксид (оксид азота (II)) (Р) 2,5 - 100 мг/м34
A37: Р : Азота оксид (оксид азота (II)) (Р) 2,5 - 100 мг/м35
A38: Р : Азота оксид (оксид азота (II)) (Р) 2,5 - 100 мг/м36
A39: Р : Азота оксид (оксид азота (II)) (Р) 2,5 - 100 мг/м37
A40: Р : Азота оксид (оксид азота (II)) (Р) 2,5 - 100 мг/м38
A41: Р : Азота оксид (оксид азота (II)) (Р) 2,5 - 100 мг/м39
A42: Р : Азота оксид (оксид азота (II)) (Р) 2,5 - 100 мг/м40
A43: Р : Азота оксид (оксид азота (II)) (Р) 2,5 - 100 мг/м41
A44: Р : Азота оксид (оксид азота (II)) (Р) 2,5 - 100 мг/м42
A45: Р : Азота оксид (оксид азота (II)) (Р) 2,5 - 100 мг/м43

Sheet ИНСТРУКЦИЯ
A1: 1. Нажать кнопку "Разрешить редактирование"
A3: 2. Нажать кнопку "Включить содержимое"
A5: 3. Перейти на лист "Соответствие модификациям"
A7: 4. В первой строке выбрать вещество (для удобства можно ввести часть названия)
A9: 5. Из выпадающего списка выбрать нужное вещество
A11: После выбора вещества отобразятся подходящие модификации приборов.
A13: Под каждой модификацией указаны особенности исполнения, помогающие определиться с выбором модели.
A15: 6. Выбрать наиболее подходящую модификацию и перейти на опросный лист модификации
A17: 7. В первой строке выбрать вещество (для удобства можно ввести часть названия)
A19: 8. Заполнить опросный лист (основные требования и дополнительное оборудование)
A21: 9. Заполнить количество
A22: 10. Заполнить информацию о проекте
A23: 11. Ненужные опросные листы можно скрыть или удалить

Sheet Данные2 (hidden)
A1: Nazvanie pribora | B1: Арт0 | C1: Диапазон измерений | D1: А/Р/АР | E1: Х/Д | H1: МВИ А | I1: МВИ Р | J1: МВИ АР | K1: Тип номенкл. | L1: А | M1: Р | N1: АР | O1: АEx | P1: РEx | Q1: АРEx | R1: РБ | S1: Название вещества | T1: Дож | U1: Пусто2 | V1: Пусто3 | W1: Пусто4 | X1: Пусто5 | Y1: Формула | Z1: ПДК | AA1: Товар | AB1: МВИ ПВ | AC1: М/С | AD1: СExД/СExХ | AE1: Стационарные исполнения | AF1: ГАНК-4С | AG1: ГАНК-4М | AH1: Артикул (С/Мд) | AI1: Арт.Мприн | AJ1: Сex | AK1: ТИП Д для Сex | AL1: Артикул | AM1: Фex | AN1: СР-4
A2: Р : Азота диоксид (оксид азота (IV)) (Р) 1 - 40 мг/м3 | B2: 20012 | C2: 1 - 40 мг/м3 | D2: Р | E2: Х | K2: В-во | L2: Нет | M2: Х | N2: Х | O2: Нет | P2: Х | Q2: Х | R2: Д | S2: Азота диоксид (оксид азота (IV)) (Р) | Y2: NO2 | Z2: 2 | AB2: Да | AC2: М | AD2: =IF(AC2="НЕТ","Нет",IF(AC2="С","Cex (Х)",IF(AC2="М","Cex (Д)"," "))) -> Cex (Д) | AE2: =CONCATENATE(IF(AC2="Нет","",CONCATENATE(AC2,";")),IF(AD2="Нет","",AD2)) -> М;Cex (Д) | AF2: Нет | AG2: ГАНК-4М для определения: Азота диоксид (оксид азота (IV)) (Р) | AH2: =102000+(B2-2)/10-2000 -> 102001 | AI2: =IF(AC2="Нет","Нет",AH2*10+2) -> 1020012 | AJ2: =IF(AC2="М",CONCATENATE("ГАНК-4СEx (Д) для определения: ",S2),IF(AC2="С",CONCATENATE("ГАНК-4СEx (Х) для определения: ",S2),"Нет")) -> ГАНК-4СEx (Д) для определения: Азота диоксид (оксид азота (IV)) (Р) | AK2: Д | AL2: =IF(AC2="нет","Нет",1026000+(B2-2)/10-2000) -> 1026001 | AM2: =IF(AC2="М",CONCATENATE("ГАНК-4ФEx (Д) для определения: ",S2),IF(AC2="С",CONCATENATE("ГАНК-4ФEx (Х) для определения: ",S2),"Нет")) -> ГАНК-4ФEx (Д) для определения: Азота диоксид (оксид азота (IV)) (Р) | AN2: Нет
A3: Р : Азота оксид (оксид азота (II)) (Р) 2,5 - 100 мг/м3 | B3: 20022 | C3: 2,5 - 100 мг/м3 | D3: Р | E3: Х | K3: В-во | L3: Нет | M3: Х | N3: Х | O3: Нет | P3: Х | Q3: Х | R3: Д | S3: Азота оксид (оксид азота (II)) (Р) | Y3: NO | Z3: 5 | AB3: Да | AC3: М | AD3: =IF(AC3="НЕТ","Нет",IF(AC3="С","Cex (Х)",IF(AC3="М","Cex (Д)"," "))) -> Cex (Д) | AE3: =CONCATENATE(IF(AC3="Нет","",CONCATENATE(AC3,";")),IF(AD3="Нет","",AD3)) -> М;Cex (Д) | AF3: Нет | AG3: ГАНК-4М для определения: Азота оксид (оксид азота (II)) (Р) | AH3: 102002 | AI3: 1020022 | AJ3: ГАНК-4СEx (Д) для определения: Азота оксид (оксид азота (II)) (Р) | AK3: Д | AL3: 1026002 | AM3: ГАНК-4ФEx (Д) для определения: Азота оксид (оксид азота (II)) (Р) | AN3: Нет
A4: Р : Азота оксиды (Р) 2,5 - 100 мг/м3 | B4: 20032 | C4: 2,5 - 100 мг/м3 | D4: Р | E4: Х | J4: АР5 | K4: В-во | L4: Нет | M4: Х | N4: Х | O4: Нет | P4: Х | Q4: Х | R4: Д | S4: Азота оксиды (Р) | Y4: NOx | Z4: 5 | AC4: М | AD4: Cex (Д) | AE4: М;Cex (Д) | AF4: Нет | AG4: ГАНК-4М для определения: Азота оксиды (Р) | AH4: 102003 | AI4: 1020032 | AJ4: ГАНК-4СEx (Д) для определения: Азота оксиды (Р) | AK4: Д | AL4: 1026003 | AM4: ГАНК-4ФEx (Д) для определения: Азота оксиды (Р) | AN4: Нет
A5: Р : Кислота азотная (Р) 1 - 40 мг/м3 | B5: 20042 | C5: 1 - 40 мг/м3 | D5: Р | E5: Х | I5: Р03 | K5: В-во | L5: Нет | M5: Х | N5: Х | O5: Нет | P5: Х | Q5: Х | R5: Нет | S5: Кислота азотная (Р) | Y5: HNO3 | Z5: 2 | AB5: Да | AC5: С | AD5: Cex (Х) | AE5: С;Cex (Х) | AF5: ГАНК-4С для определения: Кислота азотная (Р) | AG5: Нет | AH5: 102004 | AI5: 1020042 | AJ5: ГАНК-4СEx (Х) для определения: Кислота азотная (Р) | AK5: Х | AL5: 1026004 | AM5: ГАНК-4ФEx (Х) для определения: Кислота азотная (Р) | AN5: Да
A6: Р : Амины алифатические (Р) 0,5 - 20 мг/м3 | B6: 20052 | C6: 0,5 - 20 мг/м3 | D6: Р | E6: Х | I6: Р03 | K6: В-во | L6: Нет | M6: Х | N6: Х | O6: Нет | P6: Х | Q6: Х | R6: Д | S6: Амины алифатические (Р) | Y6: С15-С20 | Z6: 1 | AC6: М | AD6: Cex (Д) | AE6: М;Cex (Д) | AF6: Нет | AG6: ГАНК-4М для определения: Амины алифатические (Р) | AH6: 102005 | AI6: 1020052 | AJ6: ГАНК-4СEx (Д) для определения: Амины алифатические (Р) | AK6: Д | AL6: 1026005 | AM6: ГАНК-4ФEx (Д) для определения: Амины алифатические (Р) | AN6: Нет
A7: Р : Анилин (аминобензол) (Р) 0,05 - 2 мг/м3 | B7: 20062 | C7: 0,05 - 2 мг/м3 | D7: Р | E7: Д | I7: Р04 | K7: В-во | L7: Нет | M7: Д | N7: Д | O7: Нет | P7: Д | Q7: Д | R7: Д | S7: Анилин (аминобензол) (Р) | Y7: С6Н5NН2 | Z7: 0.1 | AC7: М | AD7: Cex (Д) | AE7: М;Cex (Д) | AF7: Нет | AG7: ГАНК-4М для определения: Анилин (аминобензол) (Р) | AH7: 102006 | AI7: 1020062 | AJ7: ГАНК-4СEx (Д) для определения: Анилин (аминобензол) (Р) | AK7: Д | AL7: 1026006 | AM7: ГАНК-4ФEx (Д) для определения: Анилин (аминобензол) (Р) | AN7: Нет
A8: Р : 2-Аминоэтанол (Моноэтаноламин, 2-аминоэтан-1-ол) (Р) 0,25 - 10 мг/м3 | B8: 20072 | C8: 0,25 - 10 мг/м3 | D8: Р | E8: Х | K8: В-во | L8: Нет | M8: Х | N8: Х | O8: Нет | P8: Х | Q8: Х | R8: Д | S8: 2-Аминоэтанол (Моноэтаноламин, 2-аминоэтан-1-ол) (Р) | Y8: C2H7NO | Z8: 0.5 | AB8: ОТ | AC8: М | AD8: Cex (Д) | AE8: М;Cex (Д) | AF8: Нет | AG8: ГАНК-4М для определения: 2-Аминоэтанол (Моноэтаноламин, 2-аминоэтан-1-ол) (Р) | AH8: 102007 | AI8: 1020072 | AJ8: ГАНК-4СEx (Д) для определения: 2-Аминоэтанол (Моноэтаноламин, 2-аминоэтан-1-ол) (Р) | AK8: Д | AL8: 1026007 | AM8: ГАНК-4ФEx (Д) для определения: 2-Аминоэтанол (Моноэтаноламин, 2-аминоэтан-1-ол) (Р) | AN8: Нет
A9: Р : Аммиак (Р) 10 - 400 мг/м3 | B9: 20082 | C9: 10 - 400 мг/м3 | D9: Р | E9: Х | K9: В-во | L9: Нет | M9: Х | N9: Х | O9: Нет | P9: Х | Q9: Х | R9: Д | S9: Аммиак (Р) | Y9: NH3 | Z9: 20 | AB9: Да | AC9: М | AD9: Cex (Д) | AE9: М;Cex (Д) | AF9: Нет | AG9: ГАНК-4М для определения: Аммиак (Р) | AH9: 102008 | AI9: 1020082 | AJ9: ГАНК-4СEx (Д) для определения: Аммиак (Р) | AK9: Д | AL9: 1026008 | AM9: ГАНК-4ФEx (Д) для определения: Аммиак (Р) | AN9: Нет
A10: Р : Ацетальдегид (этаналь, уксусный альдегид) (Р) 2,5 - 100 мг/м3 | B10: 20092 | C10: 2,5 - 100 мг/м3 | D10: Р | E10: Д | K10: В-во | L10: Нет | M10: Д | N10: Д | O10: Нет | P10: Д | Q10: Д | R10: Д | S10: Ацетальдегид (этаналь, уксусный альдегид) (Р) | Y10: C2H3OH | Z10: 5 | AB10: Да | AC10: М | AD10: Cex (Д) | AE10: М;Cex (Д) | AF10: Нет | AG10: ГАНК-4М для определения: Ацетальдегид (этаналь, уксусный альдегид) (Р) | AH10: 102009 | AI10: 1020092 | AJ10: ГАНК-4СEx (Д) для определения: Ацетальдегид (этаналь, уксусный альдегид) (Р) | AK10: Д | AL10: 1026009 | AM10: ГАНК-4ФEx (Д) для определения: Ацетальдегид (этаналь, уксусный альдегид) (Р) | AN10: Нет
A11: Р : Ацетонитрил (уксусной кислоты нитрил) (Р) 5 - 200 мг/м3 | B11: 20102 | C11: 5 - 200 мг/м3 | D11: Р | E11: Д | K11: В-во | L11: Нет | M11: Д | N11: Д | O11: Нет | P11: Д | Q11: Д | R11: Д | S11: Ацетонитрил (уксусной кислоты нитрил) (Р) | Y11: C2H3N | Z11: 10 | AB11: ОТ | AC11: М | AD11: Cex (Д) | AE11: М;Cex (Д) | AF11: Нет | AG11: ГАНК-4М для определения: Ацетонитрил (уксусной кислоты нитрил) (Р) | AH11: 102010 | AI11: 1020102 | AJ11: ГАНК-4СEx (Д) для определения: Ацетонитрил (уксусной кислоты нитрил) (Р) | AK11: Д | AL11: 1026010 | AM11: ГАНК-4ФEx (Д) для определения: Ацетонитрил (уксусной кислоты нитрил) (Р) | AN11: Нет
A12: Р : Аэрозоль краски (по ксилолу) (Р) 25 - 1000 мг/м3 | B12: 20112 | C12: 25 - 1000 мг/м3 | D12: Р | E12: Д | K12: В-во | L12: Нет | M12: Д | N12: Д | O12: Нет | P12: Д | Q12: Д | R12: Д | S12: Аэрозоль краски (по ксилолу) (Р) | Z12: 50 | AB12: ОТ | AC12: М | AD12: Cex (Д) | AE12: М;Cex (Д) | AF12: Нет | AG12: ГАНК-4М для определения: Аэрозоль краски (по ксилолу) (Р) | AH12: 102011 | AI12: 1020112 | AJ12: ГАНК-4СEx (Д) для определения: Аэрозоль краски (по ксилолу) (Р) | AK12: Д | AL12: 1026011 | AM12: ГАНК-4ФEx (Д) для определения: Аэрозоль краски (по ксилолу) (Р) | AN12: Нет
A13: Р : Бензальдегид (бензойный альдегид) (Р) 2,5 - 100 мг/м3 | B13: 20122 | C13: 2,5 - 100 мг/м3 | D13: Р | E13: Д | I13: Р05 | K13: В-во | L13: Нет | M13: Д | N13: Д | O13: Нет | P13: Д | Q13: Д | R13: Д | S13: Бензальдегид (бензойный альдегид) (Р) | Y13: C₇H₆O | Z13: 5 | AC13: М | AD13: Cex (Д) | AE13: М;Cex (Д) | AF13: Нет | AG13: ГАНК-4М для определения: Бензальдегид (бензойный альдегид) (Р) | AH13: 102012 | AI13: 1020122 | AJ13: ГАНК-4СEx (Д) для определения: Бензальдегид (бензойный альдегид) (Р) | AK13: Д | AL13: 1026012 | AM13: ГАНК-4ФEx (Д) для определения: Бензальдегид (бензойный альдегид) (Р) | AN13: Нет
A14: Р : Бензилацетат (Р) 2,5 - 100 мг/м3 | B14: 20132 | C14: 2,5 - 100 мг/м3 | D14: Р | E14: Д | I14: Р06 | K14: В-во | L14: Нет | M14: Д | N14: Д | O14: Нет | P14: Д | Q14: Д | R14: Д | S14: Бензилацетат (Р) | Y14: С9Н10О2 | Z14: 5 | AC14: М | AD14: Cex (Д) | AE14: М;Cex (Д) | AF14: Нет | AG14: ГАНК-4М для определения: Бензилацетат (Р) | AH14: 102013 | AI14: 1020132 | AJ14: ГАНК-4СEx (Д) для определения: Бензилацетат (Р) | AK14: Д | AL14: 1026013 | AM14: ГАНК-4ФEx (Д) для определения: Бензилацетат (Р) | AN14: Нет
A15: Р : Бензин (Р) 50 - 2000 мг/м3 | B15: 20142 | C15: 50 - 2000 мг/м3 | D15: Р | E15: Д | K15: В-во | L15: Нет | M15: Д | N15: Д | O15: Нет | P15: Д | Q15: Д | R15: Д | S15: Бензин (Р) | Z15: 100 | AB15: Да | AC15: М | AD15: Cex (Д) | AE15: М;Cex (Д) | AF15: Нет | AG15: ГАНК-4М для определения: Бензин (Р) | AH15: 102014 | AI15: 1020142 | AJ15: ГАНК-4СEx (Д) для определения: Бензин (Р) | AK15: Д | AL15: 1026014 | AM15: ГАНК-4ФEx (Д) для определения: Бензин (Р) | AN15: Нет
A16: Р : Бензол (Р) 2,5 - 100 мг/м3 | B16: 20152 | C16: 2,5 - 100 мг/м3 | D16: Р | E16: Д | K16: В-во | L16: Нет | M16: Д | N16: Д | O16: Нет | P16: Д | Q16: Д | R16: Д | S16: Бензол (Р) | Y16: C6H6 | Z16: 5 | AB16: ОТ | AC16: М | AD16: Cex (Д) | AE16: М;Cex (Д) | AF16: Нет | AG16: ГАНК-4М для определения: Бензол (Р) | AH16: 102015 | AI16: 1020152 | AJ16: ГАНК-4СEx (Д) для определения: Бензол (Р) | AK16: Д | AL16: 1026015 | AM16: ГАНК-4ФEx (Д) для определения: Бензол (Р) | AN16: Нет
A17: Р : Динил (смесь дифенила и дефинилового эфира) (Р) 5 - 200 мг/м3 | B17: 20162 | C17: 5 - 200 мг/м3 | D17: Р | E17: Д | I17: Р05 | K17: В-во | L17: Нет | M17: Д | N17: Д | O17: Нет | P17: Д | Q17: Д | R17: Д | S17: Динил (смесь дифенила и дефинилового эфира) (Р) | Y17: C12H10O · C12H10 | Z17: 10 | AC17: М | AD17: Cex (Д) | AE17: М;Cex (Д) | AF17: Нет | AG17: ГАНК-4М для определения: Динил (смесь дифенила и дефинилового эфира) (Р) | AH17: 102016 | AI17: 1020162 | AJ17: ГАНК-4СEx (Д) для определения: Динил (смесь дифенила и дефинилового эфира) (Р) | AK17: Д | AL17: 1026016 | AM17: ГАНК-4ФEx (Д) для определения: Динил (смесь дифенила и дефинилового эфира) (Р) | AN17: Нет
A18: Р : Бромбензол (Р) 1,5 - 60 мг/м3 | B18: 20172 | C18: 1,5 - 60 мг/м3 | D18: Р | E18: Д | I18: Р08 | K18: В-во | L18: Нет | M18: Д | N18: Д | O18: Нет | P18: Д | Q18: Д | R18: Д | S18: Бромбензол (Р) | Y18: С6Н5Вr | Z18: 3 | AC18: М | AD18: Cex (Д) | AE18: М;Cex (Д) | AF18: Нет | AG18: ГАНК-4М для определения: Бромбензол (Р) | AH18: 102017 | AI18: 1020172 | AJ18: ГАНК-4СEx (Д) для определения: Бромбензол (Р) | AK18: Д | AL18: 1026017 | AM18: ГАНК-4ФEx (Д) для определения: Бромбензол (Р) | AN18: Нет
A19: Р : 1-Бромгексан (Р) 0,15 - 6 мг/м3 | B19: 20182 | C19: 0,15 - 6 мг/м3 | D19: Р | E19: Д | I19: Р08 | K19: В-во | L19: Нет | M19: Д | N19: Д | O19: Нет | P19: Д | Q19: Д | R19: Д | S19: 1-Бромгексан (Р) | Y19: C6H13Br | Z19: 0.3 | AC19: М | AD19: Cex (Д) | AE19: М;Cex (Д) | AF19: Нет | AG19: ГАНК-4М для определения: 1-Бромгексан (Р) | AH19: 102018 | AI19: 1020182 | AJ19: ГАНК-4СEx (Д) для определения: 1-Бромгексан (Р) | AK19: Д | AL19: 1026018 | AM19: ГАНК-4ФEx (Д) для определения: 1-Бромгексан (Р) | AN19: Нет
A20: Р : Бромметан (Р) 0,5 - 20 мг/м3 | B20: 20192 | C20: 0,5 - 20 мг/м3 | D20: Р | E20: Д | I20: Р08 | K20: В-во | L20: Нет | M20: Д | N20: Д | O20: Нет | P20: Д | Q20: Д | R20: Д | S20: Бромметан (Р) | Y20: СН3Вr | Z20: 1 | AC20: М | AD20: Cex (Д) | AE20: М;Cex (Д) | AF20: Нет | AG20: ГАНК-4М для определения: Бромметан (Р) | AH20: 102019 | AI20: 1020192 | AJ20: ГАНК-4СEx (Д) для определения: Бромметан (Р) | AK20: Д | AL20: 1026019 | AM20: ГАНК-4ФEx (Д) для определения: Бромметан (Р) | AN20: Нет
A21: Р : Бромфенол (Р) 0,15 - 6 мг/м3 | B21: 20202 | C21: 0,15 - 6 мг/м3 | D21: Р | E21: Д | I21: Р08 | K21: В-во | L21: Нет | M21: Д | N21: Д | O21: Нет | P21: Д | Q21: Д | R21: Д | S21: Бромфенол (Р) | Y21: ВrС6Н4ОН | Z21: 0.3 | AC21: М | AD21: Cex (Д) | AE21: М;Cex (Д) | AF21: Нет | AG21: ГАНК-4М для определения: Бромфенол (Р) | AH21: 102020 | AI21: 1020202 | AJ21: ГАНК-4СEx (Д) для определения: Бромфенол (Р) | AK21: Д | AL21: 1026020 | AM21: ГАНК-4ФEx (Д) для определения: Бромфенол (Р) | AN21: Нет
A22: Р : Бутадиен (Р) 50 - 2000 мг/м3 | B22: 20212 | C22: 50 - 2000 мг/м3 | D22: Р | E22: Д | I22: Р06 | K22: В-во | L22: Нет | M22: Д | N22: Д | O22: Нет | P22: Д | Q22: Д | R22: Д | S22: Бутадиен (Р) | Y22: С4Н6 | Z22: 100 | AC22: М | AD22: Cex (Д) | AE22: М;Cex (Д) | AF22: Нет | AG22: ГАНК-4М для определения: Бутадиен (Р) | AH22: 102021 | AI22: 1020212 | AJ22: ГАНК-4СEx (Д) для определения: Бутадиен (Р) | AK22: Д | AL22: 1026021 | AM22: ГАНК-4ФEx (Д) для определения: Бутадиен (Р) | AN22: Нет
A23: Р : Бутан (Р) 150 - 6000 мг/м3 | B23: 20222 | C23: 150 - 6000 мг/м3 | D23: Р | E23: Д | I23: Р07 | K23: В-во | L23: Нет | M23: Д | N23: Д | O23: Нет | P23: Д | Q23: Д | R23: Д | S23: Бутан (Р) | Y23: С4Н10 | Z23: 300 | AC23: М | AD23: Cex (Д) | AE23: М;Cex (Д) | AF23: Нет | AG23: ГАНК-4М для определения: Бутан (Р) | AH23: 102022 | AI23: 1020222 | AJ23: ГАНК-4СEx (Д) для определения: Бутан (Р) | AK23: Д | AL23: 1026022 | AM23: ГАНК-4ФEx (Д) для определения: Бутан (Р) | AN23: Нет
A24: Р : Масляный альдегид (бутаналь) (Р) 2,5 - 100 мг/м3 | B24: 20232 | C24: 2,5 - 100 мг/м3 | D24: Р | E24: Д | I24: Р05 | K24: В-во | L24: Нет | M24: Д | N24: Д | O24: Нет | P24: Д | Q24: Д | R24: Д | S24: Масляный альдегид (бутаналь) (Р) | Y24: C4H8O | Z24: 5 | AC24: М | AD24: Cex (Д) | AE24: М;Cex (Д) | AF24: Нет | AG24: ГАНК-4М для определения: Масляный альдегид (бутаналь) (Р) | AH24: 102023 | AI24: 1020232 | AJ24: ГАНК-4СEx (Д) для определения: Масляный альдегид (бутаналь) (Р) | AK24: Д | AL24: 1026023 | AM24: ГАНК-4ФEx (Д) для определения: Масляный альдегид (бутаналь) (Р) | AN24: Нет
A25: Р : Бутандиол (Р) 2,5 - 100 мг/м3 | B25: 20242 | C25: 2,5 - 100 мг/м3 | D25: Р | E25: Д | I25: Р09 | K25: В-во | L25: Нет | M25: Д | N25: Д | O25: Нет | P25: Д | Q25: Д | R25: Д | S25: Бутандиол (Р) | Y25: С4Н8(ОН)2 | Z25: 5 | AC25: М | AD25: Cex (Д) | AE25: М;Cex (Д) | AF25: Нет | AG25: ГАНК-4М для определения: Бутандиол (Р) | AH25: 102024 | AI25: 1020242 | AJ25: ГАНК-4СEx (Д) для определения: Бутандиол (Р) | AK25: Д | AL25: 1026024 | AM25: ГАНК-4ФEx (Д) для определения: Бутандиол (Р) | AN25: Нет
A26: Р : Бутанол (бутан-1-ол, 1-бутанол, бутиловый спирт) (Р) 5 - 200 мг/м3 | B26: 20252 | C26: 5 - 200 мг/м3 | D26: Р | E26: Д | K26: В-во | L26: Нет | M26: Д | N26: Д | O26: Нет | P26: Д | Q26: Д | R26: Д | S26: Бутанол (бутан-1-ол, 1-бутанол, бутиловый спирт) (Р) | Y26: C4H9OH | Z26: 10 | AB26: Да | AC26: М | AD26: Cex (Д) | AE26: М;Cex (Д) | AF26: Нет | AG26: ГАНК-4М для определения: Бутанол (бутан-1-ол, 1-бутанол, бутиловый спирт) (Р) | AH26: 102025 | AI26: 1020252 | AJ26: ГАНК-4СEx (Д) для определения: Бутанол (бутан-1-ол, 1-бутанол, бутиловый спирт) (Р) | AK26: Д | AL26: 1026025 | AM26: ГАНК-4ФEx (Д) для определения: Бутанол (бутан-1-ол, 1-бутанол, бутиловый спирт) (Р) | AN26: Нет
A27: Р : Изобутанол (бутан-2-ол, 2-метилпропанол-1) (Р) 5 - 200 мг/м3 | B27: 20262 | C27: 5 - 200 мг/м3 | D27: Р | E27: Д | K27: В-во | L27: Нет | M27: Д | N27: Д | O27: Нет | P27: Д | Q27: Д | R27: Д | S27: Изобутанол (бутан-2-ол, 2-метилпропанол-1) (Р) | Y27: C4H10O | Z27: 10 | AB27: ОТ | AC27: М | AD27: =IF(AC27="НЕТ","Нет",IF(AC27="С","Cex (Х)",IF(AC27="М","Cex (Д)"," "))) -> Cex (Д) | AE27: =CONCATENATE(IF(AC27="Нет","",CONCATENATE(AC27,";")),IF(AD27="Нет","",AD27)) -> М;Cex (Д) | AF27: Нет | AG27: ГАНК-4М для определения: Изобутанол (бутан-2-ол, 2-метилпропанол-1) (Р) | AH27: 102026 | AI27: 1020262 | AJ27: ГАНК-4СEx (Д) для определения: Изобутанол (бутан-2-ол, 2-метилпропанол-1) (Р) | AK27: Д | AL27: 1026026 | AM27: ГАНК-4ФEx (Д) для определения: Изобутанол (бутан-2-ол, 2-метилпропанол-1) (Р) | AN27: Нет
A28: Р : Метилэтилкетон Бутанон-2 (Р) 100 - 4000 мг/м3 | B28: 20272 | C28: 100 - 4000 мг/м3 | D28: Р | E28: Д | I28: Р05 | K28: В-во | L28: Нет | M28: Д | N28: Д | O28: Нет | P28: Д | Q28: Д | R28: Д | S28: Метилэтилкетон Бутанон-2 (Р) | Y28: C4H8O | Z28: 200 | AC28: М | AD28: Cex (Д) | AE28: М;Cex (Д) | AF28: Нет | AG28: ГАНК-4М для определения: Метилэтилкетон Бутанон-2 (Р) | AH28: 102027 | AI28: 1020272 | AJ28: ГАНК-4СEx (Д) для определения: Метилэтилкетон Бутанон-2 (Р) | AK28: Д | AL28: 1026027 | AM28: ГАНК-4ФEx (Д) для определения: Метилэтилкетон Бутанон-2 (Р) | AN28: Нет
A29: Р : Диэтилсульфид (Р) 25 - 1000 мг/м3 | B29: 20282 | C29: 25 - 1000 мг/м3 | D29: Р | E29: Д | I29: Р04 | K29: В-во | L29: Нет | M29: Д | N29: Д | O29: Нет | P29: Д | Q29: Д | R29: Д | S29: Диэтилсульфид (Р) | Y29: С4Н10S | Z29: 50 | AC29: М | AD29: Cex (Д) | AE29: М;Cex (Д) | AF29: Нет | AG29: ГАНК-4М для определения: Диэтилсульфид (Р) | AH29: 102028 | AI29: 1020282 | AJ29: ГАНК-4СEx (Д) для определения: Диэтилсульфид (Р) | AK29: Д | AL29: 1026028 | AM29: ГАНК-4ФEx (Д) для определения: Диэтилсульфид (Р) | AN29: Нет
A30: Р : Бутилакрилат (Р) 5 - 200 мг/м3 | B30: 20292 | C30: 5 - 200 мг/м3 | D30: Р | E30: Д | I30: Р05 | K30: В-во | L30: Нет | M30: Д | N30: Д | O30: Нет | P30: Д | Q30: Д | R30: Д | S30: Бутилакрилат (Р) | Y30: C7H12O2 | Z30: 10 | AC30: М | AD30: Cex (Д) | AE30: М;Cex (Д) | AF30: Нет | AG30: ГАНК-4М для определения: Бутилакрилат (Р) | AH30: 102029 | AI30: 1020292 | AJ30: ГАНК-4СEx (Д) для определения: Бутилакрилат (Р) | AK30: Д | AL30: 1026029 | AM30: ГАНК-4ФEx (Д) для определения: Бутилакрилат (Р) | AN30: Нет
A31: Р : Бутилацетат (уксусный кислоты бутиловый эфир) (Р) 25 - 1000 мг/м3 | B31: 20302 | C31: 25 - 1000 мг/м3 | D31: Р | E31: Д | K31: В-во | L31: Нет | M31: Д | N31: Д | O31: Нет | P31: Д | Q31: Д | R31: Д | S31: Бутилацетат (уксусный кислоты бутиловый эфир) (Р) | Y31: C6H12O2 | Z31: 50 | AB31: ОТ | AC31: М | AD31: Cex (Д) | AE31: М;Cex (Д) | AF31: Нет | AG31: ГАНК-4М для определения: Бутилацетат (уксусный кислоты бутиловый эфир) (Р) | AH31: 102030 | AI31: 1020302 | AJ31: ГАНК-4СEx (Д) для определения: Бутилацетат (уксусный кислоты бутиловый эфир) (Р) | AK31: Д | AL31: 1026030 | AM31: ГАНК-4ФEx (Д) для определения: Бутилацетат (уксусный кислоты бутиловый эфир) (Р) | AN31: Нет
A32: Р : Бутилен (2-метилпроп-1-ен, бут-1-ен) (Р) 50 - 2000 мг/м3 | B32: 20312 | C32: 50 - 2000 мг/м3 | D32: Р | E32: Д | K32: В-во | L32: Нет | M32: Д | N32: Д | O32: Нет | P32: Д | Q32: Д | R32: Д | S32: Бутилен (2-метилпроп-1-ен, бут-1-ен) (Р) | Y32: С4Н8 | Z32: 100 | AB32: ОТ | AC32: М | AD32: Cex (Д) | AE32: М;Cex (Д) | AF32: Нет | AG32: ГАНК-4М для определения: Бутилен (2-метилпроп-1-ен, бут-1-ен) (Р) | AH32: 102031 | AI32: 1020312 | AJ32: ГАНК-4СEx (Д) для определения: Бутилен (2-метилпроп-1-ен, бут-1-ен) (Р) | AK32: Д | AL32: 1026031 | AM32: ГАНК-4ФEx (Д) для определения: Бутилен (2-метилпроп-1-ен, бут-1-ен) (Р) | AN32: Нет
A33: Р : Природный газ в пересчете на метан (Р) 3500 - 35000 мг/м3 | B33: 20322 | C33: 3500 - 35000 мг/м3 | D33: Р | E33: Д | I33: Р07 | K33: В-во | L33: Нет | M33: Д | N33: Д | O33: Нет | P33: Д | Q33: Д | R33: Д | S33: Природный газ в пересчете на метан (Р) | Z33: 7000 | AC33: М | AD33: Cex (Д) | AE33: М;Cex (Д) | AF33: Нет | AG33: ГАНК-4М для определения: Природный газ в пересчете на метан (Р) | AH33: 102032 | AI33: 1020322 | AJ33: ГАНК-4СEx (Д) для определения: Природный газ в пересчете на метан (Р) | AK33: Д | AL33: 1026032 | AM33: ГАНК-4ФEx (Д) для определения: Природный газ в пересчете на метан (Р) | AN33: Нет
A34: Р : Топливный газ в пересчете на пропан (Р) 50 - 2000 мг/м3 | B34: 20332 | C34: 50 - 2000 мг/м3 | D34: Р | E34: Д | I34: Р07 | K34: В-во | L34: Нет | M34: Д | N34: Д | O34: Нет | P34: Д | Q34: Д | R34: Д | S34: Топливный газ в пересчете на пропан (Р) | Z34: 100 | AC34: М | AD34: Cex (Д) | AE34: М;Cex (Д) | AF34: Нет | AG34: ГАНК-4М для определения: Топливный газ в пересчете на пропан (Р) | AH34: =102000+(B34-2)/10-2000 -> 102033 | AI34: =IF(AC34="Нет","Нет",AH34*10+2) -> 1020332 | AJ34: ГАНК-4СEx (Д) для определения: Топливный газ в пересчете на пропан (Р) | AK34: Д | AL34: 1026033 | AM34: ГАНК-4ФEx (Д) для определения: Топливный газ в пересчете на пропан (Р) | AN34: Нет
A35: Р : Капролактам (Гексагидро-2Н-азепин-2-он) (Р) 5 - 200 мг/м3 | B35: 20342 | C35: 5 - 200 мг/м3 | D35: Р | E35: Д | I35: Р04 | K35: В-во | L35: Нет | M35: Д | N35: Д | O35: Нет | P35: Д | Q35: Д | R35: Д | S35: Капролактам (Гексагидро-2Н-азепин-2-он) (Р) | Y35: С6Н11NО | Z35: 10 | AC35: М | AD35: Cex (Д) | AE35: М;Cex (Д) | AF35: Нет | AG35: ГАНК-4М для определения: Капролактам (Гексагидро-2Н-азепин-2-он) (Р) | AH35: 102034 | AI35: 1020342 | AJ35: ГАНК-4СEx (Д) для определения: Капролактам (Гексагидро-2Н-азепин-2-он) (Р) | AK35: Д | AL35: 1026034 | AM35: ГАНК-4ФEx (Д) для определения: Капролактам (Гексагидро-2Н-азепин-2-он) (Р) | AN35: Нет
A36: Р : Гексан (Р) 150 - 6000 мг/м3 | B36: 20352 | C36: 150 - 6000 мг/м3 | D36: Р | E36: Д | I36: Р07 | K36: В-во | L36: Нет | M36: Д | N36: Д | O36: Нет | P36: Д | Q36: Д | R36: Д | S36: Гексан (Р) | Y36: C6H14 | Z36: 300 | AB36: Да | AC36: М | AD36: Cex (Д) | AE36: М;Cex (Д) | AF36: Нет | AG36: ГАНК-4М для определения: Гексан (Р) | AH36: 102035 | AI36: 1020352 | AJ36: ГАНК-4СEx (Д) для определения: Гексан (Р) | AK36: Д | AL36: 1026035 | AM36: ГАНК-4ФEx (Д) для определения: Гексан (Р) | AN36: Нет
A37: Р : Гексан-1-ол (Р) 5 - 200 мг/м3 | B37: 20362 | C37: 5 - 200 мг/м3 | D37: Р | E37: Д | I37: Р09 | K37: В-во | L37: Нет | M37: Д | N37: Д | O37: Нет | P37: Д | Q37: Д | R37: Д | S37: Гексан-1-ол (Р) | Y37: С6Н13ОН | Z37: 10 | AC37: М | AD37: Cex (Д) | AE37: М;Cex (Д) | AF37: Нет | AG37: ГАНК-4М для определения: Гексан-1-ол (Р) | AH37: 102036 | AI37: 1020362 | AJ37: ГАНК-4СEx (Д) для определения: Гексан-1-ол (Р) | AK37: Д | AL37: 1026036 | AM37: ГАНК-4ФEx (Д) для определения: Гексан-1-ол (Р) | AN37: Нет
A38: Р : Гептан в пересчете на гексан (Р) 150 - 6000 мг/м3 | B38: 20372 | C38: 150 - 6000 мг/м3 | D38: Р | E38: Д | I38: Р07 | K38: В-во | L38: Нет | M38: Д | N38: Д | O38: Нет | P38: Д | Q38: Д | R38: Д | S38: Гептан в пересчете на гексан (Р) | Y38: С7Н16 | Z38: 300 | AC38: М | AD38: Cex (Д) | AE38: М;Cex (Д) | AF38: Нет | AG38: ГАНК-4М для определения: Гептан в пересчете на гексан (Р) | AH38: 102037 | AI38: 1020372 | AJ38: ГАНК-4СEx (Д) для определения: Гептан в пересчете на гексан (Р) | AK38: Д | AL38: 1026037 | AM38: ГАНК-4ФEx (Д) для определения: Гептан в пересчете на гексан (Р) | AN38: Нет
A39: Р : Гептан-1-ол по изоамиловому спирту (Р) 5 - 200 мг/м3 | B39: 20382 | C39: 5 - 200 мг/м3 | D39: Р | E39: Д | I39: Р09 | K39: В-во | L39: Нет | M39: Д | N39: Д | O39: Нет | P39: Д | Q39: Д | R39: Д | S39: Гептан-1-ол по изоамиловому спирту (Р) | Y39: С7Н15ОН | Z39: 10 | AC39: М | AD39: Cex (Д) | AE39: М;Cex (Д) | AF39: Нет | AG39: ГАНК-4М для определения: Гептан-1-ол по изоамиловому спирту (Р) | AH39: 102038 | AI39: 1020382 | AJ39: ГАНК-4СEx (Д) для определения: Гептан-1-ол по изоамиловому спирту (Р) | AK39: Д | AL39: 1026038 | AM39: ГАНК-4ФEx (Д) для определения: Гептан-1-ол по изоамиловому спирту (Р) | AN39: Нет
A40: Р : Гидразин (Р) 0,05 - 2 мг/м3 | B40: 20392 | C40: 0,05 - 2 мг/м3 | D40: Р | E40: Х | I40: Р03 | K40: В-во | L40: Нет | M40: Х | N40: Х | O40: Нет | P40: Х | Q40: Х | R40: Нет | S40: Гидразин (Р) | Y40: N2H4 | Z40: 0.1 | AC40: С | AD40: Cex (Х) | AE40: С;Cex (Х) | AF40: ГАНК-4С для определения: Гидразин (Р) | AG40: Нет | AH40: 102039 | AI40: 1020392 | AJ40: ГАНК-4СEx (Х) для определения: Гидразин (Р) | AK40: Х | AL40: 1026039 | AM40: ГАНК-4ФEx (Х) для определения: Гидразин (Р) | AN40: Нет
A41: Р : Гидроксибензол (фенол) (Р) 0,15 - 6 мг/м3 | B41: 20402 | C41: 0,15 - 6 мг/м3 | D41: Р | E41: Х | K41: В-во | L41: Нет | M41: Х | N41: Х | O41: Нет | P41: Х | Q41: Х | R41: Д | S41: Гидроксибензол (фенол) (Р) | Y41: C6H5OH | Z41: 0.3 | AB41: Да | AC41: М | AD41: Cex (Д) | AE41: М;Cex (Д) | AF41: Нет | AG41: ГАНК-4М для определения: Гидроксибензол (фенол) (Р) | AH41: 102040 | AI41: 1020402 | AJ41: ГАНК-4СEx (Д) для определения: Гидроксибензол (фенол) (Р) | AK41: Д | AL41: 1026040 | AM41: ГАНК-4ФEx (Д) для определения: Гидроксибензол (фенол) (Р) | AN41: Нет
A42: Р : Крезолы (Р) 0,25 - 10 мг/м3 | B42: 20412 | C42: 0,25 - 10 мг/м3 | D42: Р | E42: Д | I42: Р06 | K42: В-во | L42: Нет | M42: Д | N42: Д | O42: Нет | P42: Д | Q42: Д | R42: Д | S42: Крезолы (Р) | Y42: С7Н8О | Z42: 0.5 | AC42: М | AD42: Cex (Д) | AE42: М;Cex (Д) | AF42: Нет | AG42: ГАНК-4М для определения: Крезолы (Р) | AH42: 102041 | AI42: 1020412 | AJ42: ГАНК-4СEx (Д) для определения: Крезолы (Р) | AK42: Д | AL42: 1026041 | AM42: ГАНК-4ФEx (Д) для определения: Крезолы (Р) | AN42: Нет
A43: Р : Гидрофторид (фтороводород) (Р) 0,25 - 10 мг/м3 | B43: 20422 | C43: 0,25 - 10 мг/м3 | D43: Р | E43: Х | K43: В-во | L43: Нет | M43: Х | N43: Х | O43: Нет | P43: Х | Q43: Х | R43: Д | S43: Гидрофторид (фтороводород) (Р) | Y43: HF | Z43: 0.5 | AB43: Да | AC43: М | AD43: Cex (Д) | AE43: М;Cex (Д) | AF43: Нет | AG43: ГАНК-4М для определения: Гидрофторид (фтороводород) (Р) | AH43: 102042 | AI43: 1020422 | AJ43: ГАНК-4СEx (Д) для определения: Гидрофторид (фтороводород) (Р) | AK43: Д | AL43: 1026042 | AM43: ГАНК-4ФEx (Д) для определения: Гидрофторид (фтороводород) (Р) | AN43: Нет
A44: Р : Гидрохлорид (хлороводород) (Р) 2,5 - 100 мг/м3 | B44: 20432 | C44: 2,5 - 100 мг/м3 | D44: Р | E44: Х | K44: В-во | L44: Нет | M44: Х | N44: Х | O44: Нет | P44: Х | Q44: Х | R44: Д | S44: Гидрохлорид (хлороводород) (Р) | Y44: HCl | Z44: 5 | AB44: Да | AC44: М | AD44: Cex (Д) | AE44: М;Cex (Д) | AF44: Нет | AG44: ГАНК-4М для определения: Гидрохлорид (хлороводород) (Р) | AH44: 102043 | AI44: 1020432 | AJ44: ГАНК-4СEx (Д) для определения: Гидрохлорид (хлороводород) (Р) | AK44: Д | AL44: 1026043 | AM44: ГАНК-4ФEx (Д) для определения: Гидрохлорид (хлороводород) (Р) | AN44: Да
A45: Р : Этилендиамин (Р) 1 - 40 мг/м3 | B45: 20442 | C45: 1 - 40 мг/м3 | D45: Р | E45: Х | I45: Р03 | K45: В-во | L45: Нет | M45: Х | N45: Х | O45: Нет | P45: Х | Q45: Х | R45: Д | S45: Этилендиамин (Р) | Y45: C2H8N2 | Z45: 2 | AC45: М | AD45: Cex (Д) | AE45: М;Cex (Д) | AF45: Нет | AG45: ГАНК-4М для определения: Этилендиамин (Р) | AH45: 102044 | AI45: 1020442 | AJ45: ГАНК-4СEx (Д) для определения: Этилендиамин (Р) | AK45: Д | AL45: 1026044 | AM45: ГАНК-4ФEx (Д) для определения: Этилендиамин (Р) | AN45: Нет
A46: Р : Дибутилфталат (Р) 0,25 - 10 мг/м3 | B46: 20452 | C46: 0,25 - 10 мг/м3 | D46: Р | E46: Д | I46: Р05 | K46: В-во | L46: Нет | M46: Д | N46: Д | O46: Нет | P46: Д | Q46: Д | R46: Д | S46: Дибутилфталат (Р) | Y46: C16H22O4 | Z46: 0.5 | AC46: М | AD46: Cex (Д) | AE46: М;Cex (Д) | AF46: Нет | AG46: ГАНК-4М для определения: Дибутилфталат (Р) | AH46: 102045 | AI46: 1020452 | AJ46: ГАНК-4СEx (Д) для определения: Дибутилфталат (Р) | AK46: Д | AL46: 1026045 | AM46: ГАНК-4ФEx (Д) для определения: Дибутилфталат (Р) | AN46: Нет
A47: Р : Дигидросульфид (сероводород, сульфид водорода) (Р) 5 - 200 мг/м3 | B47: 20462 | C47: 5 - 200 мг/м3 | D47: Р | E47: Х | K47: В-во | L47: Нет | M47: Х | N47: Х | O47: Нет | P47: Х | Q47: Х | R47: Д | S47: Дигидросульфид (сероводород, сульфид водорода) (Р) | Y47: H2S | Z47: 10 | AB47: ОТ | AC47: М | AD47: Cex (Д) | AE47: М;Cex (Д) | AF47: Нет | AG47: ГАНК-4М для определения: Дигидросульфид (сероводород, сульфид водорода) (Р) | AH47: 102046 | AI47: 1020462 | AJ47: ГАНК-4СEx (Д) для определения: Дигидросульфид (сероводород, сульфид водорода) (Р) | AK47: Д | AL47: 1026046 | AM47: ГАНК-4ФEx (Д) для определения: Дигидросульфид (сероводород, сульфид водорода) (Р) | AN47: Нет
A48: Р : Дизельное топливо (Р) 150 - 6000 мг/м3 | B48: 20482 | C48: 150 - 6000 мг/м3 | D48: Р | E48: Д | K48: В-во | L48: Нет | M48: Д | N48: Д | O48: Нет | P48: Д | Q48: Д | R48: Д | S48: Дизельное топливо (Р) | Z48: 300 | AB48: ОТ | AC48: М | AD48: Cex (Д) | AE48: М;Cex (Д) | AF48: Нет | AG48: ГАНК-4М для определения: Дизельное топливо (Р) | AH48: 102048 | AI48: 1020482 | AJ48: ГАНК-4СEx (Д) для определения: Дизельное топливо (Р) | AK48: Д | AL48: 1026048 | AM48: ГАНК-4ФEx (Д) для определения: Дизельное топливо (Р) | AN48: Нет
A49: Р : Диметиламин (Р) 0,5 - 20 мг/м3 | B49: 20492 | C49: 0,5 - 20 мг/м3 | D49: Р | E49: Х | I49: Р03 | K49: В-во | L49: Нет | M49: Х | N49: Х | O49: Нет | P49: Х | Q49: Х | R49: Д | S49: Диметиламин (Р) | Y49: C2H7N | Z49: 1 | AC49: М | AD49: =IF(AC49="НЕТ","Нет",IF(AC49="С","Cex (Х)",IF(AC49="М","Cex (Д)"," "))) -> Cex (Д) | AE49: =CONCATENATE(IF(AC49="Нет","",CONCATENATE(AC49,";")),IF(AD49="Нет","",AD49)) -> М;Cex (Д) | AF49: Нет | AG49: ГАНК-4М для определения: Диметиламин (Р) | AH49: 102049 | AI49: 1020492 | AJ49: ГАНК-4СEx (Д) для определения: Диметиламин (Р) | AK49: Д | AL49: 1026049 | AM49: ГАНК-4ФEx (Д) для определения: Диметиламин (Р) | AN49: Нет
A50: Р : Диметилсульфид (Р) 25 - 1000 мг/м3 | B50: 20522 | C50: 25 - 1000 мг/м3 | D50: Р | E50: Д | I50: Р04 | K50: В-во | L50: Нет | M50: Д | N50: Д | O50: Нет | P50: Д | Q50: Д | R50: Д | S50: Диметилсульфид (Р) | Y50: С2Н6S | Z50: 50 | AC50: М | AD50: Cex (Д) | AE50: М;Cex (Д) | AF50: Нет | AG50: ГАНК-4М для определения: Диметилсульфид (Р) | AH50: 102052 | AI50: 1020522 | AJ50: ГАНК-4СEx (Д) для определения: Диметилсульфид (Р) | AK50: Д | AL50: 1026052 | AM50: ГАНК-4ФEx (Д) для определения: Диметилсульфид (Р) | AN50: Нет
A51: Р : Диметилсульфоксид (Р) 10 - 400 мг/м3 | B51: 20532 | C51: 10 - 400 мг/м3 | D51: Р | E51: Д | I51: Р04 | K51: В-во | L51: Нет | M51: Д | N51: Д | O51: Нет | P51: Д | Q51: Д | R51: Д | S51: Диметилсульфоксид (Р) | Y51: (СН3)2 SO | Z51: 20 | AC51: М | AD51: Cex (Д) | AE51: М;Cex (Д) | AF51: Нет | AG51: ГАНК-4М для определения: Диметилсульфоксид (Р) | AH51: 102053 | AI51: 1020532 | AJ51: ГАНК-4СEx (Д) для определения: Диметилсульфоксид (Р) | AK51: Д | AL51: 1026053 | AM51: ГАНК-4ФEx (Д) для определения: Диметилсульфоксид (Р) | AN51: Нет
A52: Р : N-N-Диметилформамид (Р) 5 - 200 мг/м3 | B52: 20542 | C52: 5 - 200 мг/м3 | D52: Р | E52: Д | I52: Р04 | K52: В-во | L52: Нет | M52: Д | N52: Д | O52: Нет | P52: Д | Q52: Д | R52: Д | S52: N-N-Диметилформамид (Р) | Y52: С3Н7ON | Z52: 10 | AC52: М | AD52: Cex (Д) | AE52: М;Cex (Д) | AF52: Нет | AG52: ГАНК-4М для определения: N-N-Диметилформамид (Р) | AH52: 102054 | AI52: 1020542 | AJ52: ГАНК-4СEx (Д) для определения: N-N-Диметилформамид (Р) | AK52: Д | AL52: 1026054 | AM52: ГАНК-4ФEx (Д) для определения: N-N-Диметилформамид (Р) | AN52: Нет
A53: Р : Ксилидины (Р) 1,5 - 60 мг/м3 | B53: 20552 | C53: 1,5 - 60 мг/м3 | D53: Р | E53: Д | I53: Р03 | K53: В-во | L53: Нет | M53: Д | N53: Д | O53: Нет | P53: Д | Q53: Д | R53: Д | S53: Ксилидины (Р) | Y53: C8H11N | Z53: 3 | AC53: М | AD53: Cex (Д) | AE53: М;Cex (Д) | AF53: Нет | AG53: ГАНК-4М для определения: Ксилидины (Р) | AH53: 102055 | AI53: 1020552 | AJ53: ГАНК-4СEx (Д) для определения: Ксилидины (Р) | AK53: Д | AL53: 1026055 | AM53: ГАНК-4ФEx (Д) для определения: Ксилидины (Р) | AN53: Нет
A54: Р : Диметилфталат (Р) 0,15 - 6 мг/м3 | B54: 20562 | C54: 0,15 - 6 мг/м3 | D54: Р | E54: Д | I54: Р05 | K54: В-во | L54: Нет | M54: Д | N54: Д | O54: Нет | P54: Д | Q54: Д | R54: Д | S54: Диметилфталат (Р) | Y54: C10H10O4 | Z54: 0.3 | AC54: М | AD54: Cex (Д) | AE54: М;Cex (Д) | AF54: Нет | AG54: ГАНК-4М для определения: Диметилфталат (Р) | AH54: 102056 | AI54: 1020562 | AJ54: ГАНК-4СEx (Д) для определения: Диметилфталат (Р) | AK54: Д | AL54: 1026056 | AM54: ГАНК-4ФEx (Д) для определения: Диметилфталат (Р) | AN54: Нет
A55: Р : Ксилол (диметилбензол) (Р) 25 - 1000 мг/м3 | B55: 20572 | C55: 25 - 1000 мг/м3 | D55: Р | E55: Д | K55: В-во | L55: Нет | M55: Д | N55: Д | O55: Нет | P55: Д | Q55: Д | R55: Д | S55: Ксилол (диметилбензол) (Р) | Y55: C8H10 | Z55: 50 | AB55: Да | AC55: М | AD55: Cex (Д) | AE55: М;Cex (Д) | AF55: Нет | AG55: ГАНК-4М для определения: Ксилол (диметилбензол) (Р) | AH55: 102057 | AI55: 1020572 | AJ55: ГАНК-4СEx (Д) для определения: Ксилол (диметилбензол) (Р) | AK55: Д | AL55: 1026057 | AM55: ГАНК-4ФEx (Д) для определения: Ксилол (диметилбензол) (Р) | AN55: Нет
A56: Р : Метилаль (диметоксиметан) (Р) 5 - 200 мг/м3 | B56: 20592 | C56: 5 - 200 мг/м3 | D56: Р | E56: Д | I56: Р05 | K56: В-во | L56: Нет | M56: Д | N56: Д | O56: Нет | P56: Д | Q56: Д | R56: Д | S56: Метилаль (диметоксиметан) (Р) | Y56: CH2(OCH3)2 | Z56: 10 | AC56: М | AD56: Cex (Д) | AE56: М;Cex (Д) | AF56: Нет | AG56: ГАНК-4М для определения: Метилаль (диметоксиметан) (Р) | AH56: 102059 | AI56: 1020592 | AJ56: ГАНК-4СEx (Д) для определения: Метилаль (диметоксиметан) (Р) | AK56: Д | AL56: 1026059 | AM56: ГАНК-4ФEx (Д) для определения: Метилаль (диметоксиметан) (Р) | AN56: Нет
A57: Р : Диоктилфталат (Р) 0,5 - 20 мг/м3 | B57: 20612 | C57: 0,5 - 20 мг/м3 | D57: Р | E57: Д | I57: Р05 | K57: В-во | L57: Нет | M57: Д | N57: Д | O57: Нет | P57: Д | Q57: Д | R57: Д | S57: Диоктилфталат (Р) | Y57: C₁₆H₂₂O₄ | Z57: 1 | AC57: М | AD57: Cex (Д) | AE57: М;Cex (Д) | AF57: Нет | AG57: ГАНК-4М для определения: Диоктилфталат (Р) | AH57: 102061 | AI57: 1020612 | AJ57: ГАНК-4СEx (Д) для определения: Диоктилфталат (Р) | AK57: Д | AL57: 1026061 | AM57: ГАНК-4ФEx (Д) для определения: Диоктилфталат (Р) | AN57: Нет
A58: Р : Дихлорметан (Р) 25 - 1000 мг/м3 | B58: 20622 | C58: 25 - 1000 мг/м3 | D58: Р | E58: Д | I58: Р08 | K58: В-во | L58: Нет | M58: Д | N58: Д | O58: Нет | P58: Д | Q58: Д | R58: Д | S58: Дихлорметан (Р) | Y58: СН2Cl2 | Z58: 50 | AC58: М | AD58: Cex (Д) | AE58: М;Cex (Д) | AF58: Нет | AG58: ГАНК-4М для определения: Дихлорметан (Р) | AH58: 102062 | AI58: 1020622 | AJ58: ГАНК-4СEx (Д) для определения: Дихлорметан (Р) | AK58: Д | AL58: 1026062 | AM58: ГАНК-4ФEx (Д) для определения: Дихлорметан (Р) | AN58: Нет
A59: Р : 1,2-Дихлорэтан (Р) 5 - 200 мг/м3 | B59: 20632 | C59: 5 - 200 мг/м3 | D59: Р | E59: Д | K59: В-во | L59: Нет | M59: Д | N59: Д | O59: Нет | P59: Д | Q59: Д | R59: Д | S59: 1,2-Дихлорэтан (Р) | Y59: C2H4Cl2 | Z59: 10 | AB59: ОТ | AC59: М | AD59: Cex (Д) | AE59: М;Cex (Д) | AF59: Нет | AG59: ГАНК-4М для определения: 1,2-Дихлорэтан (Р) | AH59: 102063 | AI59: 1020632 | AJ59: ГАНК-4СEx (Д) для определения: 1,2-Дихлорэтан (Р) | AK59: Д | AL59: 1026063 | AM59: ГАНК-4ФEx (Д) для определения: 1,2-Дихлорэтан (Р) | AN59: Нет
A60: Р : Дихлорэтилен (Р) 25 - 1000 мг/м3 | B60: 20642 | C60: 25 - 1000 мг/м3 | D60: Р | E60: Д | I60: Р08 | K60: В-во | L60: Нет | M60: Д | N60: Д | O60: Нет | P60: Д | Q60: Д | R60: Д | S60: Дихлорэтилен (Р) | Y60: С2Н2Cl2 | Z60: 50 | AC60: М | AD60: Cex (Д) | AE60: М;Cex (Д) | AF60: Нет | AG60: ГАНК-4М для определения: Дихлорэтилен (Р) | AH60: 102064 | AI60: 1020642 | AJ60: ГАНК-4СEx (Д) для определения: Дихлорэтилен (Р) | AK60: Д | AL60: 1026064 | AM60: ГАНК-4ФEx (Д) для определения: Дихлорэтилен (Р) | AN60: Нет
A61: Р : Диэтиламин (Р) 15 - 600 мг/м3 | B61: 20652 | C61: 15 - 600 мг/м3 | D61: Р | E61: Х | I61: Р03 | K61: В-во | L61: Нет | M61: Х | N61: Х | O61: Нет | P61: Х | Q61: Х | R61: Д | S61: Диэтиламин (Р) | Y61: C4H11N | Z61: 30 | AC61: М | AD61: Cex (Д) | AE61: М;Cex (Д) | AF61: Нет | AG61: ГАНК-4М для определения: Диэтиламин (Р) | AH61: 102065 | AI61: 1020652 | AJ61: ГАНК-4СEx (Д) для определения: Диэтиламин (Р) | AK61: Д | AL61: 1026065 | AM61: ГАНК-4ФEx (Д) для определения: Диэтиламин (Р) | AN61: Нет
A62: Р : Диэтилбензол (Р) 5 - 200 мг/м3 | B62: 20662 | C62: 5 - 200 мг/м3 | D62: Р | E62: Д | I62: Р06 | K62: В-во | L62: Нет | M62: Д | N62: Д | O62: Нет | P62: Д | Q62: Д | R62: Д | S62: Диэтилбензол (Р) | Y62: С10Н14 | Z62: 10 | AC62: М | AD62: Cex (Д) | AE62: М;Cex (Д) | AF62: Нет | AG62: ГАНК-4М для определения: Диэтилбензол (Р) | AH62: 102066 | AI62: 1020662 | AJ62: ГАНК-4СEx (Д) для определения: Диэтилбензол (Р) | AK62: Д | AL62: 1026066 | AM62: ГАНК-4ФEx (Д) для определения: Диэтилбензол (Р) | AN62: Нет
A63: Р : Диэтилфталат (Р) 0,25 - 10 мг/м3 | B63: 20672 | C63: 0,25 - 10 мг/м3 | D63: Р | E63: Д | I63: Р05 | K63: В-во | L63: Нет | M63: Д | N63: Д | O63: Нет | P63: Д | Q63: Д | R63: Д | S63: Диэтилфталат (Р) | Y63: C12H14O4 | Z63: 0.5 | AC63: М | AD63: Cex (Д) | AE63: М;Cex (Д) | AF63: Нет | AG63: ГАНК-4М для определения: Диэтилфталат (Р) | AH63: 102067 | AI63: 1020672 | AJ63: ГАНК-4СEx (Д) для определения: Диэтилфталат (Р) | AK63: Д | AL63: 1026067 | AM63: ГАНК-4ФEx (Д) для определения: Диэтилфталат (Р) | AN63: Нет
A64: Р : Ди-Железо триоксид (Р) 3 - 120 мг/м3 | B64: 20682 | C64: 3 - 120 мг/м3 | D64: Р | E64: Х | I64: Р10 | K64: В-во | L64: Нет | M64: Х | N64: Х | O64: Нет | P64: Х | Q64: Х | R64: Нет | S64: Ди-Железо триоксид (Р) | Y64: Fe2О3 | Z64: 6 | AB64: Да | AC64: С | AD64: Cex (Х) | AE64: С;Cex (Х) | AF64: ГАНК-4С для определения: Ди-Железо триоксид (Р) | AG64: Нет | AH64: 102068 | AI64: 1020682 | AJ64: ГАНК-4СEx (Х) для определения: Ди-Железо триоксид (Р) | AK64: Х | AL64: 1026068 | AM64: ГАНК-4ФEx (Х) для определения: Ди-Железо триоксид (Р) | AN64: Нет
A65: Р : Зола (угольная) (Р) 2 - 80 мг/м3 | B65: 20692 | C65: 2 - 80 мг/м3 | D65: Р | E65: Х | I65: Р11 | K65: В-во | L65: Нет | M65: Х | N65: Х | O65: Нет | P65: Х | Q65: Х | R65: Нет | S65: Зола (угольная) (Р) | Z65: 4 | AC65: С | AD65: Cex (Х) | AE65: С;Cex (Х) | AF65: ГАНК-4С для определения: Зола (угольная) (Р) | AG65: Нет | AH65: 102069 | AI65: 1020692 | AJ65: ГАНК-4СEx (Х) для определения: Зола (угольная) (Р) | AK65: Х | AL65: 1026069 | AM65: ГАНК-4ФEx (Х) для определения: Зола (угольная) (Р) | AN65: Нет
A66: Р : Изобутан (Р) 150 - 6000 мг/м3 | B66: 20702 | C66: 150 - 6000 мг/м3 | D66: Р | E66: Д | I66: Р07 | K66: В-во | L66: Нет | M66: Д | N66: Д | O66: Нет | P66: Д | Q66: Д | R66: Д | S66: Изобутан (Р) | Y66: С4Н10 | Z66: 300 | AC66: М | AD66: Cex (Д) | AE66: М;Cex (Д) | AF66: Нет | AG66: ГАНК-4М для определения: Изобутан (Р) | AH66: 102070 | AI66: =IF(AC66="Нет","Нет",AH66*10+2) -> 1020702 | AJ66: =IF(AC66="М",CONCATENATE("ГАНК-4СEx (Д) для определения: ",S66),IF(AC66="С",CONCATENATE("ГАНК-4СEx (Х) для определения: ",S66),"Нет")) -> ГАНК-4СEx (Д) для определения: Изобутан (Р) | AK66: Д | AL66: =IF(AC66="нет","Нет",1026000+(B66-2)/10-2000) -> 1026070 | AM66: =IF(AC66="М",CONCATENATE("ГАНК-4ФEx (Д) для определения: ",S66),IF(AC66="С",CONCATENATE("ГАНК-4ФEx (Х) для определения: ",S66),"Нет")) -> ГАНК-4ФEx (Д) для определения: Изобутан (Р) | AN66: Нет
A67: Р : Изопропилбензол (1-метилэтил-бензол, кумол, 2-фенилпропан) (Р) 25 - 1000 мг/м3 | B67: 20712 | C67: 25 - 1000 мг/м3 | D67: Р | E67: Д | K67: В-во | L67: Нет | M67: Д | N67: Д | O67: Нет | P67: Д | Q67: Д | R67: Д | S67: Изопропилбензол (1-метилэтил-бензол, кумол, 2-фенилпропан) (Р) | Y67: C9H12 | Z67: 50 | AB67: ОТ | AC67: М | AD67: Cex (Д) | AE67: М;Cex (Д) | AF67: Нет | AG67: ГАНК-4М для определения: Изопропилбензол (1-метилэтил-бензол, кумол, 2-фенилпропан) (Р) | AH67: 102071 | AI67: 1020712 | AJ67: ГАНК-4СEx (Д) для определения: Изопропилбензол (1-метилэтил-бензол, кумол, 2-фенилпропан) (Р) | AK67: Д | AL67: 1026071 | AM67: ГАНК-4ФEx (Д) для определения: Изопропилбензол (1-метилэтил-бензол, кумол, 2-фенилпропан) (Р) | AN67: Нет
A68: Р : Канифоль (Р) 2 - 80 мг/м3 | B68: 20722 | C68: 2 - 80 мг/м3 | D68: Р | E68: Д | J68: АР4 | K68: В-во | L68: Нет | M68: Д | N68: Д | O68: Нет | P68: Д | Q68: Д | R68: Д | S68: Канифоль (Р) | Y68: Канифоль | Z68: 4 | AC68: М | AD68: Cex (Д) | AE68: М;Cex (Д) | AF68: Нет | AG68: ГАНК-4М для определения: Канифоль (Р) | AH68: =102000+(B68-2)/10-2000 -> 102072 | AI68: 1020722 | AJ68: ГАНК-4СEx (Д) для определения: Канифоль (Р) | AK68: Д | AL68: 1026072 | AM68: ГАНК-4ФEx (Д) для определения: Канифоль (Р) | AN68: Нет
A69: Р : Керосин (Р) 150 - 6000 мг/м3 | B69: 20732 | C69: 150 - 6000 мг/м3 | D69: Р | E69: Д | I69: Р07 | K69: В-во | L69: Нет | M69: Д | N69: Д | O69: Нет | P69: Д | Q69: Д | R69: Д | S69: Керосин (Р) | Z69: 300 | AB69: Да | AC69: М | AD69: Cex (Д) | AE69: М;Cex (Д) | AF69: Нет | AG69: ГАНК-4М для определения: Керосин (Р) | AH69: =102000+(B69-2)/10-2000 -> 102073 | AI69: 1020732 | AJ69: ГАНК-4СEx (Д) для определения: Керосин (Р) | AK69: Д | AL69: 1026073 | AM69: ГАНК-4ФEx (Д) для определения: Керосин (Р) | AN69: Нет
A70: АР : Кислород (АР) 0,2% об. - 30% об. | B70: 20743 | C70: 0,2% об. - 30% об. | D70: АР | E70: Д | J70: АР1 | K70: В-во | L70: Нет | M70: Нет | N70: Д | O70: Нет | P70: Нет | Q70: Д | R70: Д | S70: Кислород (АР) | Y70: О2 | Z70: 0.18 | AC70: М | AD70: Cex (Д) | AE70: М;Cex (Д) | AF70: Нет | AG70: ГАНК-4М для определения: Кислород | AJ70: ГАНК-4СEx (Д) для определения: Кислород (АР) | AK70: Д | AL70: 1026074.1 | AM70: ГАНК-4ФEx (Д) для определения: Кислород (АР) | AN70: Нет
A71: Р : Марганец в сварочном аэрозоле (с содержанием до 20 %) (Р) 0,1 - 4 мг/м3 | B71: 20752 | C71: 0,1 - 4 мг/м3 | D71: Р | E71: Х | I71: Р13 | K71: В-во | L71: Нет | M71: Х | N71: Х | O71: Нет | P71: Х | Q71: Х | R71: Нет | S71: Марганец в сварочном аэрозоле (с содержанием до 20 %) (Р) | Y71: Mn (до 20%) | Z71: 0.2 | AC71: С | AD71: Cex (Х) | AE71: С;Cex (Х) | AF71: ГАНК-4С для определения: Марганец в сварочном аэрозоле (с содержанием до 20 %) (Р) | AG71: Нет | AH71: =102000+(B71-2)/10-2000 -> 102075 | AI71: =IF(AC71="Нет","Нет",AH71*10+2) -> 1020752 | AJ71: ГАНК-4СEx (Х) для определения: Марганец в сварочном аэрозоле (с содержанием до 20 %) (Р) | AK71: Х | AL71: 1026075 | AM71: ГАНК-4ФEx (Х) для определения: Марганец в сварочном аэрозоле (с содержанием до 20 %) (Р) | AN71: Нет
A72: Р : Масло минеральное (Р) 2,5 - 100 мг/м3 | B72: 20762 | C72: 2,5 - 100 мг/м3 | D72: Р | E72: Д | I72: Р07 | K72: В-во | L72: Нет | M72: Д | N72: Д | O72: Нет | P72: Д | Q72: Д | R72: Д | S72: Масло минеральное (Р) | Z72: 5 | AB72: Да | AC72: М | AD72: =IF(AC72="НЕТ","Нет",IF(AC72="С","Cex (Х)",IF(AC72="М","Cex (Д)"," "))) -> Cex (Д) | AE72: =CONCATENATE(IF(AC72="Нет","",CONCATENATE(AC72,";")),IF(AD72="Нет","",AD72)) -> М;Cex (Д) | AF72: Нет | AG72: ГАНК-4М для определения: Масло минеральное (Р) | AH72: 102076 | AI72: 1020762 | AJ72: ГАНК-4СEx (Д) для определения: Масло минеральное (Р) | AK72: Д | AL72: 1026076 | AM72: ГАНК-4ФEx (Д) для определения: Масло минеральное (Р) | AN72: Нет
A73: Р : Медь (Р) 0,25 - 10 мг/м3 | B73: 20772 | C73: 0,25 - 10 мг/м3 | D73: Р | E73: Х | I73: Р10 | K73: В-во | L73: Нет | M73: Х | N73: Х | O73: Нет | P73: Х | Q73: Х | R73: Нет | S73: Медь (Р) | Y73: Сu | Z73: 0.5 | AC73: С | AD73: Cex (Х) | AE73: С;Cex (Х) | AF73: ГАНК-4С для определения: Медь (Р) | AG73: Нет | AH73: 102077 | AI73: 1020772 | AJ73: ГАНК-4СEx (Х) для определения: Медь (Р) | AK73: Х | AL73: 1026077 | AM73: ГАНК-4ФEx (Х) для определения: Медь (Р) | AN73: Нет
A74: Р : Метакриловая кислота (Р) 5 - 200 мг/м3 | B74: 20782 | C74: 5 - 200 мг/м3 | D74: Р | E74: Д | I74: Р03 | K74: В-во | L74: Нет | M74: Д | N74: Д | O74: Нет | P74: Д | Q74: Д | R74: Д | S74: Метакриловая кислота (Р) | Y74: C4H6O2 | Z74: 10 | AC74: М | AD74: Cex (Д) | AE74: М;Cex (Д) | AF74: Нет | AG74: ГАНК-4М для определения: Метакриловая кислота (Р) | AH74: 102078 | AI74: 1020782 | AJ74: ГАНК-4СEx (Д) для определения: Метакриловая кислота (Р) | AK74: Д | AL74: 1026078 | AM74: ГАНК-4ФEx (Д) для определения: Метакриловая кислота (Р) | AN74: Нет
A75: Р : Метан (Р) 3500 - 35000 мг/м3 | B75: 20792 | C75: 3500 - 35000 мг/м3 | D75: Р | E75: Д | I75: Р07 | K75: В-во | L75: Нет | M75: Д | N75: Д | O75: Нет | P75: Д | Q75: Д | R75: Д | S75: Метан (Р) | Y75: СН4 | Z75: 7000 | AB75: Да | AC75: М | AD75: Cex (Д) | AE75: М;Cex (Д) | AF75: Нет | AG75: ГАНК-4М для определения: Метан (Р) | AH75: 102079 | AI75: 1020792 | AJ75: ГАНК-4СEx (Д) для определения: Метан (Р) | AK75: Д | AL75: 1026079 | AM75: ГАНК-4ФEx (Д) для определения: Метан (Р) | AN75: Нет
A76: Р : Кислота муравьиная (метановая кислота) (Р) 0,5 - 20 мг/м3 | B76: 20802 | C76: 0,5 - 20 мг/м3 | D76: Р | E76: Х | K76: В-во | L76: Нет | M76: Х | N76: Х | O76: Нет | P76: Х | Q76: Х | R76: Д | S76: Кислота муравьиная (метановая кислота) (Р) | Y76: CH2O2 | Z76: 1 | AB76: ОТ | AC76: М | AD76: Cex (Д) | AE76: М;Cex (Д) | AF76: Нет | AG76: ГАНК-4М для определения: Кислота муравьиная (метановая кислота) (Р) | AH76: 102080 | AI76: 1020802 | AJ76: ГАНК-4СEx (Д) для определения: Кислота муравьиная (метановая кислота) (Р) | AK76: Д | AL76: 1026080 | AM76: ГАНК-4ФEx (Д) для определения: Кислота муравьиная (метановая кислота) (Р) | AN76: Да
A77: Р : Метанол (метиловый спирт) (Р) 2,5 - 100 мг/м3 | B77: 20812 | C77: 2,5 - 100 мг/м3 | D77: Р | E77: Д | K77: В-во | L77: Нет | M77: Д | N77: Д | O77: Нет | P77: Д | Q77: Д | R77: Д | S77: Метанол (метиловый спирт) (Р) | Y77: CH3OH | Z77: 5 | AB77: ОТ | AC77: М | AD77: Cex (Д) | AE77: М;Cex (Д) | AF77: Нет | AG77: ГАНК-4М для определения: Метанол (метиловый спирт) (Р) | AH77: 102081 | AI77: 1020812 | AJ77: ГАНК-4СEx (Д) для определения: Метанол (метиловый спирт) (Р) | AK77: Д | AL77: 1026081 | AM77: ГАНК-4ФEx (Д) для определения: Метанол (метиловый спирт) (Р) | AN77: Нет
A78: Р : Метантиол (метилмеркаптан) (Р) 0,4 - 16 мг/м3 | B78: 20822 | C78: 0,4 - 16 мг/м3 | D78: Р | E78: Х | K78: В-во | L78: Нет | M78: Х | N78: Х | O78: Нет | P78: Х | Q78: Х | R78: Д | S78: Метантиол (метилмеркаптан) (Р) | Y78: CH3SH | Z78: 0.8 | AB78: Да | AC78: М | AD78: Cex (Д) | AE78: М;Cex (Д) | AF78: Нет | AG78: ГАНК-4М для определения: Метантиол (метилмеркаптан) (Р) | AH78: 102082 | AI78: 1020822 | AJ78: ГАНК-4СEx (Д) для определения: Метантиол (метилмеркаптан) (Р) | AK78: Д | AL78: 1026082 | AM78: ГАНК-4ФEx (Д) для определения: Метантиол (метилмеркаптан) (Р) | AN78: Нет
A79: Р : Меркаптаны (Р) 0,4 - 16 мг/м3 | B79: 20832 | C79: 0,4 - 16 мг/м3 | D79: Р | E79: Х | I79: Р04 | K79: В-во | L79: Нет | M79: Х | N79: Х | O79: Нет | P79: Х | Q79: Х | R79: Д | S79: Меркаптаны (Р) | Y79: R-SН | Z79: 0.8 | AC79: М | AD79: Cex (Д) | AE79: М;Cex (Д) | AF79: Нет | AG79: ГАНК-4М для определения: Меркаптаны (Р) | AH79: 102083 | AI79: 1020832 | AJ79: ГАНК-4СEx (Д) для определения: Меркаптаны (Р) | AK79: Д | AL79: 1026083 | AM79: ГАНК-4ФEx (Д) для определения: Меркаптаны (Р) | AN79: Нет
A80: Р : Изопрен (Р) 20 - 800 мг/м3 | B80: 20842 | C80: 20 - 800 мг/м3 | D80: Р | E80: Д | I80: Р06 | K80: В-во | L80: Нет | M80: Д | N80: Д | O80: Нет | P80: Д | Q80: Д | R80: Д | S80: Изопрен (Р) | Y80: С5Н8 | Z80: 40 | AC80: М | AD80: Cex (Д) | AE80: М;Cex (Д) | AF80: Нет | AG80: ГАНК-4М для определения: Изопрен (Р) | AJ80: ГАНК-4СEx (Д) для определения: Изопрен (Р) | AK80: Д | AL80: 1026084 | AM80: ГАНК-4ФEx (Д) для определения: Изопрен (Р) | AN80: Нет
A81: Р : Метилакрилат (метилпроп-2-еноат) (Р) 2,5 - 100 мг/м3 | B81: 20852 | C81: 2,5 - 100 мг/м3 | D81: Р | E81: Д | I81: Р05 | K81: В-во | L81: Нет | M81: Д | N81: Д | O81: Нет | P81: Д | Q81: Д | R81: Д | S81: Метилакрилат (метилпроп-2- еноат) (Р) | Y81: C4H6O2 | Z81: 5 | AC81: М | AD81: Cex (Д) | AE81: М;Cex (Д) | AF81: Нет | AG81: ГАНК-4М для определения: Метилакрилат (метилпроп-2- еноат) (Р) | AH81: 102085 | AI81: 1020852 | AJ81: ГАНК-4СEx (Д) для определения: Метилакрилат (метилпроп-2- еноат) (Р) | AK81: Д | AL81: 1026085 | AM81: ГАНК-4ФEx (Д) для определения: Метилакрилат (метилпроп-2- еноат) (Р) | AN81: Нет
A82: Р : Метил-2-метилпроп-2-еноат (Метилметакрилат, метиловый эфир метакриловой кислоты) (Р) 5 - 200 мг/м3 | B82: 20862 | C82: 5 - 200 мг/м3 | D82: Р | E82: Д | K82: В-во | L82: Нет | M82: Д | N82: Д | O82: Нет | P82: Д | Q82: Д | R82: Д | S82: Метил-2-метилпроп-2-еноат (Метилметакрилат, метиловый эфир метакриловой кислоты) (Р) | Y82: C5H8O2 | Z82: 10 | AB82: ОТ | AC82: М | AD82: Cex (Д) | AE82: М;Cex (Д) | AF82: Нет | AG82: ГАНК-4М для определения: Метил-2-метилпроп-2-еноат (Метилметакрилат, метиловый эфир метакриловой кислоты) (Р) | AH82: 102086 | AI82: 1020862 | AJ82: ГАНК-4СEx (Д) для определения: Метил-2-метилпроп-2-еноат (Метилметакрилат, метиловый эфир метакриловой кислоты) (Р) | AK82: Д | AL82: 1026086 | AM82: ГАНК-4ФEx (Д) для определения: Метил-2-метилпроп-2-еноат (Метилметакрилат, метиловый эфир метакриловой кислоты) (Р) | AN82: Нет
A83: Р : Метилацетат (Р) 50 - 2000 мг/м3 | B83: 20872 | C83: 50 - 2000 мг/м3 | D83: Р | E83: Д | I83: Р06 | K83: В-во | L83: Нет | M83: Д | N83: Д | O83: Нет | P83: Д | Q83: Д | R83: Д | S83: Метилацетат (Р) | Y83: С3Н6О2 | Z83: 100 | AC83: М | AD83: Cex (Д) | AE83: М;Cex (Д) | AF83: Нет | AG83: ГАНК-4М для определения: Метилацетат (Р) | AH83: 102087 | AI83: 1020872 | AJ83: ГАНК-4СEx (Д) для определения: Метилацетат (Р) | AK83: Д | AL83: 1026087 | AM83: ГАНК-4ФEx (Д) для определения: Метилацетат (Р) | AN83: Нет
A84: Р : Метилбензол (толуол) (Р) 25 - 1000 мг/м3 | B84: 20882 | C84: 25 - 1000 мг/м3 | D84: Р | E84: Д | K84: В-во | L84: Нет | M84: Д | N84: Д | O84: Нет | P84: Д | Q84: Д | R84: Д | S84: Метилбензол (толуол) (Р) | Y84: C7H8 | Z84: 50 | AB84: Да | AC84: М | AD84: Cex (Д) | AE84: М;Cex (Д) | AF84: Нет | AG84: ГАНК-4М для определения: Метилбензол (толуол) (Р) | AH84: 102088 | AI84: 1020882 | AJ84: ГАНК-4СEx (Д) для определения: Метилбензол (толуол) (Р) | AK84: Д | AL84: 1026088 | AM84: ГАНК-4ФEx (Д) для определения: Метилбензол (толуол) (Р) | AN84: Нет
A85: Р : Метилхлорид (Р) 2,5 - 100 мг/м3 | B85: 20892 | C85: 2,5 - 100 мг/м3 | D85: Р | E85: Д | I85: Р08 | K85: В-во | L85: Нет | M85: Д | N85: Д | O85: Нет | P85: Д | Q85: Д | R85: Д | S85: Метилхлорид (Р) | Y85: СН3Cl | Z85: 5 | AC85: М | AD85: Cex (Д) | AE85: М;Cex (Д) | AF85: Нет | AG85: ГАНК-4М для определения: Метилхлорид (Р) | AH85: 102089 | AI85: 1020892 | AJ85: ГАНК-4СEx (Д) для определения: Метилхлорид (Р) | AK85: Д | AL85: 1026089 | AM85: ГАНК-4ФEx (Д) для определения: Метилхлорид (Р) | AN85: Нет
A86: Р : Метиламин (Р) 0,5 - 20 мг/м3 | B86: 20902 | C86: 0,5 - 20 мг/м3 | D86: Р | E86: Х | I86: Р04 | K86: В-во | L86: Нет | M86: Х | N86: Х | O86: Нет | P86: Х | Q86: Х | R86: Д | S86: Метиламин (Р) | Y86: СН3NН2 | Z86: 1 | AC86: М | AD86: Cex (Д) | AE86: М;Cex (Д) | AF86: Нет | AG86: ГАНК-4М для определения: Метиламин (Р) | AH86: 102090 | AI86: 1020902 | AJ86: ГАНК-4СEx (Д) для определения: Метиламин (Р) | AK86: Д | AL86: 1026090 | AM86: ГАНК-4ФEx (Д) для определения: Метиламин (Р) | AN86: Нет
A87: Р : Этилтолуол (Р) 25 - 1000 мг/м3 | B87: 20912 | C87: 25 - 1000 мг/м3 | D87: Р | E87: Д | I87: Р06 | K87: В-во | L87: Нет | M87: Д | N87: Д | O87: Нет | P87: Д | Q87: Д | R87: Д | S87: Этилтолуол (Р) | Y87: С9Н12 | Z87: 50 | AC87: М | AD87: Cex (Д) | AE87: М;Cex (Д) | AF87: Нет | AG87: ГАНК-4М для определения: Этилтолуол (Р) | AH87: 102091 | AI87: 1020912 | AJ87: ГАНК-4СEx (Д) для определения: Этилтолуол (Р) | AK87: Д | AL87: 1026091 | AM87: ГАНК-4ФEx (Д) для определения: Этилтолуол (Р) | AN87: Нет
A88: Р : Щелочь (гидроокись натрия, гидроокись калия) (Р) 0,25 - 10 мг/м3 | B88: 20922 | C88: 0,25 - 10 мг/м3 | D88: Р | E88: Х | I88: Р03 | K88: В-во | L88: Нет | M88: Х | N88: Х | O88: Нет | P88: Х | Q88: Х | R88: Нет | S88: Щелочь (гидроокись натрия, гидроокись калия) (Р) | Y88: NaOH, KOH | Z88: 0.5 | AC88: С | AD88: Cex (Х) | AE88: С;Cex (Х) | AF88: ГАНК-4С для определения: Щелочь (гидроокись натрия, гидроокись калия) (Р) | AG88: Нет | AH88: 102092 | AI88: 1020922 | AJ88: ГАНК-4СEx (Х) для определения: Щелочь (гидроокись натрия, гидроокись калия) (Р) | AK88: Х | AL88: 1026092 | AM88: ГАНК-4ФEx (Х) для определения: Щелочь (гидроокись натрия, гидроокись калия) (Р) | AN88: Да
A89: Р : Нафталин (Р) 10 - 400 мг/м3 | B89: 20932 | C89: 10 - 400 мг/м3 | D89: Р | E89: Д | K89: В-во | L89: Нет | M89: Д | N89: Д | O89: Нет | P89: Д | Q89: Д | R89: Д | S89: Нафталин (Р) | Y89: C10H8 | Z89: 20 | AB89: ОТ | AC89: М | AD89: Cex (Д) | AE89: М;Cex (Д) | AF89: Нет | AG89: ГАНК-4М для определения: Нафталин (Р) | AH89: 102093 | AI89: 1020932 | AJ89: ГАНК-4СEx (Д) для определения: Нафталин (Р) | AK89: Д | AL89: 1026093 | AM89: ГАНК-4ФEx (Д) для определения: Нафталин (Р) | AN89: Нет
A90: Р : Нефрас (гептановая фракция) (Р) 50 - 2000 мг/м3 | B90: 20942 | C90: 50 - 2000 мг/м3 | D90: Р | E90: Д | I90: Р07 | K90: В-во | L90: Нет | M90: Д | N90: Д | O90: Нет | P90: Д | Q90: Д | R90: Д | S90: Нефрас (гептановая фракция) (Р) | Z90: 100 | AC90: М | AD90: Cex (Д) | AE90: М;Cex (Д) | AF90: Нет | AG90: ГАНК-4М для определения: Нефрас (гептановая фракция) (Р) | AH90: 102094 | AI90: 1020942 | AJ90: ГАНК-4СEx (Д) для определения: Нефрас (гептановая фракция) (Р) | AK90: Д | AL90: 1026094 | AM90: ГАНК-4ФEx (Д) для определения: Нефрас (гептановая фракция) (Р) | AN90: Нет
A91: Р : Никель и соединения (Р) 0,025 - 1 мг/м3 | B91: 20952 | C91: 0,025 - 1 мг/м3 | D91: Р | E91: Х | J91: АР5 | K91: В-во | L91: Нет | M91: Х | N91: Х | O91: Нет | P91: Х | Q91: Х | R91: Нет | S91: Никель и соединения (Р) | Y91: NiО, Ni2О3 | Z91: 0.05 | AC91: С | AD91: Cex (Х) | AE91: С;Cex (Х) | AF91: ГАНК-4С для определения: Никель и соединения (Р) | AG91: Нет | AH91: 102095 | AI91: 1020952 | AJ91: ГАНК-4СEx (Х) для определения: Никель и соединения (Р) | AK91: Х | AL91: 1026095 | AM91: ГАНК-4ФEx (Х) для определения: Никель и соединения (Р) | AN91: Нет
A92: Р : Нитробензол (Р) 1,5 - 60 мг/м3 | B92: 20962 | C92: 1,5 - 60 мг/м3 | D92: Р | E92: Д | I92: Р04 | K92: В-во | L92: Нет | M92: Д | N92: Д | O92: Нет | P92: Д | Q92: Д | R92: Д | S92: Нитробензол (Р) | Y92: С6Н5NО2 | Z92: 3 | AC92: М | AD92: Cex (Д) | AE92: М;Cex (Д) | AF92: Нет | AG92: ГАНК-4М для определения: Нитробензол (Р) | AH92: 102096 | AI92: 1020962 | AJ92: ГАНК-4СEx (Д) для определения: Нитробензол (Р) | AK92: Д | AL92: 1026096 | AM92: ГАНК-4ФEx (Д) для определения: Нитробензол (Р) | AN92: Нет
A93: Р : Нитрометан (Р) 15 - 600 мг/м3 | B93: 20972 | C93: 15 - 600 мг/м3 | D93: Р | E93: Д | I93: Р04 | K93: В-во | L93: Нет | M93: Д | N93: Д | O93: Нет | P93: Д | Q93: Д | R93: Д | S93: Нитрометан (Р) | Y93: СН3NО2 | Z93: 30 | AC93: М | AD93: Cex (Д) | AE93: М;Cex (Д) | AF93: Нет | AG93: ГАНК-4М для определения: Нитрометан (Р) | AH93: 102097 | AI93: 1020972 | AJ93: ГАНК-4СEx (Д) для определения: Нитрометан (Р) | AK93: Д | AL93: 1026097 | AM93: ГАНК-4ФEx (Д) для определения: Нитрометан (Р) | AN93: Нет
A94: Р : Нитроэтан по нитрометану (Р) 15 - 600 мг/м3 | B94: 20982 | C94: 15 - 600 мг/м3 | D94: Р | E94: Д | I94: Р04 | K94: В-во | L94: Нет | M94: Д | N94: Д | O94: Нет | P94: Д | Q94: Д | R94: Д | S94: Нитроэтан по нитрометану (Р) | Y94: С2Н5NО2 | Z94: 30 | AC94: М | AD94: Cex (Д) | AE94: М;Cex (Д) | AF94: Нет | AG94: ГАНК-4М для определения: Нитроэтан по нитрометану (Р) | AH94: 102098 | AI94: 1020982 | AJ94: ГАНК-4СEx (Д) для определения: Нитроэтан по нитрометану (Р) | AK94: Д | AL94: 1026098 | AM94: ГАНК-4ФEx (Д) для определения: Нитроэтан по нитрометану (Р) | AN94: Нет
A95: Р : Нитропропан по нитрометану (Р) 15 - 600 мг/м3 | B95: 20992 | C95: 15 - 600 мг/м3 | D95: Р | E95: Д | I95: Р04 | K95: В-во | L95: Нет | M95: Д | N95: Д | O95: Нет | P95: Д | Q95: Д | R95: Д | S95: Нитропропан по нитрометану (Р) | Y95: С3Н7NО2 | Z95: 30 | AC95: М | AD95: =IF(AC95="НЕТ","Нет",IF(AC95="С","Cex (Х)",IF(AC95="М","Cex (Д)"," "))) -> Cex (Д) | AE95: =CONCATENATE(IF(AC95="Нет","",CONCATENATE(AC95,";")),IF(AD95="Нет","",AD95)) -> М;Cex (Д) | AF95: Нет | AG95: ГАНК-4М для определения: Нитропропан по нитрометану (Р) | AH95: 102099 | AI95: 1020992 | AJ95: ГАНК-4СEx (Д) для определения: Нитропропан по нитрометану (Р) | AK95: Д | AL95: 1026099 | AM95: ГАНК-4ФEx (Д) для определения: Нитропропан по нитрометану (Р) | AN95: Нет
A96: Р : Озон (трикислород) (Р) 0,05 - 2 мг/м3 | B96: 21002 | C96: 0,05 - 2 мг/м3 | D96: Р | E96: Х | K96: В-во | L96: Нет | M96: Х | N96: Х | O96: Нет | P96: Х | Q96: Х | R96: Д | S96: Озон (трикислород) (Р) | Y96: O3 | Z96: 0.1 | AB96: ОТ | AC96: М | AD96: Cex (Д) | AE96: М;Cex (Д) | AF96: Нет | AG96: ГАНК-4М для определения: Озон (трикислород) (Р) | AH96: 102100 | AI96: 1021002 | AJ96: ГАНК-4СEx (Д) для определения: Озон (трикислород) (Р) | AK96: Д | AL96: 1026100 | AM96: ГАНК-4ФEx (Д) для определения: Озон (трикислород) (Р) | AN96: Нет
A97: Р : Диизопропиловый эфир (Р) 50 - 2000 мг/м3 | B97: 21012 | C97: 50 - 2000 мг/м3 | D97: Р | E97: Д | I97: Р05 | K97: В-во | L97: Нет | M97: Д | N97: Д | O97: Нет | P97: Д | Q97: Д | R97: Д | S97: Диизопропиловый эфир (Р) | Y97: C5H12O2 | Z97: 100 | AC97: М | AD97: Cex (Д) | AE97: М;Cex (Д) | AF97: Нет | AG97: ГАНК-4М для определения: Диизопропиловый эфир (Р) | AH97: 102101 | AI97: 1021012 | AJ97: ГАНК-4СEx (Д) для определения: Диизопропиловый эфир (Р) | AK97: Д | AL97: 1026101 | AM97: ГАНК-4ФEx (Д) для определения: Диизопропиловый эфир (Р) | AN97: Нет
A98: Р : Диметиловый эфир (Р) 150 - 4000 мг/м3 | B98: 21022 | C98: 150 - 4000 мг/м3 | D98: Р | E98: Д | I98: Р05 | K98: В-во | L98: Нет | M98: Д | N98: Д | O98: Нет | P98: Д | Q98: Д | R98: Д | S98: Диметиловый эфир (Р) | Y98: C2H6O | Z98: 300 | AC98: М | AD98: Cex (Д) | AE98: М;Cex (Д) | AF98: Нет | AG98: ГАНК-4М для определения: Диметиловый эфир (Р) | AH98: 102102 | AI98: 1021022 | AJ98: ГАНК-4СEx (Д) для определения: Диметиловый эфир (Р) | AK98: Д | AL98: 1026102 | AM98: ГАНК-4ФEx (Д) для определения: Диметиловый эфир (Р) | AN98: Нет
A99: Р : Диэтиленгликоль (Р) 5 - 200 мг/м3 | B99: 21032 | C99: 5 - 200 мг/м3 | D99: Р | E99: Д | I99: Р09 | K99: В-во | L99: Нет | M99: Д | N99: Д | O99: Нет | P99: Д | Q99: Д | R99: Д | S99: Диэтиленгликоль (Р) | Y99: (С2Н4ОН)2О | Z99: 10 | AC99: М | AD99: Cex (Д) | AE99: М;Cex (Д) | AF99: Нет | AG99: ГАНК-4М для определения: Диэтиленгликоль (Р) | AH99: 102103 | AI99: 1021032 | AJ99: ГАНК-4СEx (Д) для определения: Диэтиленгликоль (Р) | AK99: Д | AL99: 1026103 | AM99: ГАНК-4ФEx (Д) для определения: Диэтиленгликоль (Р) | AN99: Нет
A100: Р : Оксид алюминия (Р) 1 - 40 мг/м3 | B100: 21042 | C100: 1 - 40 мг/м3 | D100: Р | E100: Х | I100: Р15 | K100: В-во | L100: Нет | M100: Х | N100: Х | O100: Нет | P100: Х | Q100: Х | R100: Нет | S100: Оксид алюминия (Р) | Y100: Al2O3 | Z100: 2 | AC100: С | AD100: Cex (Х) | AE100: С;Cex (Х) | AF100: ГАНК-4С для определения: Оксид алюминия (Р) | AG100: Нет | AH100: 102104 | AI100: 1021042 | AJ100: ГАНК-4СEx (Х) для определения: Оксид алюминия (Р) | AK100: Х | AL100: 1026104 | AM100: ГАНК-4ФEx (Х) для определения: Оксид алюминия (Р) | AN100: Нет
A101: Р : Оксиды железа (в сварочном аэрозоле) (Р) 3 - 120 мг/м3 | B101: 21052 | C101: 3 - 120 мг/м3 | D101: Р | E101: Х | J101: АР5 | K101: В-во | L101: Нет | M101: Х | N101: Х | O101: Нет | P101: Х | Q101: Х | R101: Нет | S101: Оксиды железа (в сварочном аэрозоле) (Р) | Y101: FexOy | Z101: 6 | AC101: С | AD101: Cex (Х) | AE101: С;Cex (Х) | AF101: ГАНК-4С для определения: Оксиды железа (в сварочном аэрозоле) (Р) | AG101: Нет | AH101: 102105 | AI101: 1021052 | AJ101: ГАНК-4СEx (Х) для определения: Оксиды железа (в сварочном аэрозоле) (Р) | AK101: Х | AL101: 1026105 | AM101: ГАНК-4ФEx (Х) для определения: Оксиды железа (в сварочном аэрозоле) (Р) | AN101: Нет
A102: Р : Оксиды марганца (Р) 0,15 - 6 мг/м3 | B102: 21062 | C102: 0,15 - 6 мг/м3 | D102: Р | E102: Х | I102: Р15 | K102: В-во | L102: Нет | M102: Х | N102: Х | O102: Нет | P102: Х | Q102: Х | R102: Нет | S102: Оксиды марганца (Р) | Y102: MnxОy | Z102: 0.3 | AC102: С | AD102: Cex (Х) | AE102: С;Cex (Х) | AF102: ГАНК-4С для определения: Оксиды марганца (Р) | AG102: Нет | AH102: 102106 | AI102: 1021062 | AJ102: ГАНК-4СEx (Х) для определения: Оксиды марганца (Р) | AK102: Х | AL102: 1026106 | AM102: ГАНК-4ФEx (Х) для определения: Оксиды марганца (Р) | AN102: Нет
A103: Р : Оксид меди (Р) 0,25 - 10 мг/м3 | B103: 21072 | C103: 0,25 - 10 мг/м3 | D103: Р | E103: Х | I103: Р15 | K103: В-во | L103: Нет | M103: Х | N103: Х | O103: Нет | P103: Х | Q103: Х | R103: Нет | S103: Оксид меди (Р) | Y103: CuO | Z103: 0.5 | AC103: С | AD103: Cex (Х) | AE103: С;Cex (Х) | AF103: ГАНК-4С для определения: Оксид меди (Р) | AG103: Нет | AH103: =102000+(B103-2)/10-2000 -> 102107 | AI103: =IF(AC103="Нет","Нет",AH103*10+2) -> 1021072 | AJ103: ГАНК-4СEx (Х) для определения: Оксид меди (Р) | AK103: Х | AL103: 1026107 | AM103: ГАНК-4ФEx (Х) для определения: Оксид меди (Р) | AN103: Нет
A104: Р : Оксиды никеля (Р) 0,025 - 1 мг/м3 | B104: 21082 | C104: 0,025 - 1 мг/м3 | D104: Р | E104: Х | I104: Р15 | K104: В-во | L104: Нет | M104: Х | N104: Х | O104: Нет | P104: Х | Q104: Х | R104: Нет | S104: Оксиды никеля (Р) | Y104: NixOy | Z104: 0.05 | AC104: С | AD104: Cex (Х) | AE104: С;Cex (Х) | AF104: ГАНК-4С для определения: Оксиды никеля (Р) | AG104: Нет | AH104: 102108 | AI104: 1021082 | AJ104: ГАНК-4СEx (Х) для определения: Оксиды никеля (Р) | AK104: Х | AL104: 1026108 | AM104: ГАНК-4ФEx (Х) для определения: Оксиды никеля (Р) | AN104: Нет
A105: Р : Оксиды хрома (в сварочном аэрозоле) (Р) 0,5 - 20 мг/м3 | B105: 21092 | C105: 0,5 - 20 мг/м3 | D105: Р | E105: Х | J105: АР5 | K105: В-во | L105: Нет | M105: Х | N105: Х | O105: Нет | P105: Х | Q105: Х | R105: Нет | S105: Оксиды хрома (в сварочном аэрозоле) (Р) | Y105: CrxOy | Z105: 1 | AC105: С | AD105: Cex (Х) | AE105: С;Cex (Х) | AF105: ГАНК-4С для определения: Оксиды хрома (в сварочном аэрозоле) (Р) | AG105: Нет | AH105: 102109 | AI105: 1021092 | AJ105: ГАНК-4СEx (Х) для определения: Оксиды хрома (в сварочном аэрозоле) (Р) | AK105: Х | AL105: 1026109 | AM105: ГАНК-4ФEx (Х) для определения: Оксиды хрома (в сварочном аэрозоле) (Р) | AN105: Нет
A106: Р : Оксид цинка (Р) 0,25 - 10 мг/м3 | B106: 21102 | C106: 0,25 - 10 мг/м3 | D106: Р | E106: Х | I106: Р15 | K106: В-во | L106: Нет | M106: Х | N106: Х | O106: Нет | P106: Х | Q106: Х | R106: Нет | S106: Оксид цинка (Р) | Y106: ZnO | Z106: 0.5 | AC106: С | AD106: Cex (Х) | AE106: С;Cex (Х) | AF106: ГАНК-4С для определения: Оксид цинка (Р) | AG106: Нет | AH106: 102110 | AI106: 1021102 | AJ106: ГАНК-4СEx (Х) для определения: Оксид цинка (Р) | AK106: Х | AL106: 1026110 | AM106: ГАНК-4ФEx (Х) для определения: Оксид цинка (Р) | AN106: Нет
A107: Р : Кислота ортофосфорная (Р) 0,5 - 20 мг/м3 | B107: 21112 | C107: 0,5 - 20 мг/м3 | D107: Р | E107: Х | I107: Р03 | K107: В-во | L107: Нет | M107: Х | N107: Х | O107: Нет | P107: Х | Q107: Х | R107: Нет | S107: Кислота ортофосфорная (Р) | Y107: H3PO4 | Z107: 1 | AC107: С | AD107: Cex (Х) | AE107: С;Cex (Х) | AF107: ГАНК-4С для определения: Кислота ортофосфорная (Р) | AG107: Нет | AH107: 102111 | AI107: 1021112 | AJ107: ГАНК-4СEx (Х) для определения: Кислота ортофосфорная (Р) | AK107: Х | AL107: 1026111 | AM107: ГАНК-4ФEx (Х) для определения: Кислота ортофосфорная (Р) | AN107: Да
A108: Р : Пентан (Р) 150 - 6000 мг/м3 | B108: 21122 | C108: 150 - 6000 мг/м3 | D108: Р | E108: Д | I108: Р07 | K108: В-во | L108: Нет | M108: Д | N108: Д | O108: Нет | P108: Д | Q108: Д | R108: Д | S108: Пентан (Р) | Y108: С5Н12 | Z108: 300 | AC108: М | AD108: Cex (Д) | AE108: М;Cex (Д) | AF108: Нет | AG108: ГАНК-4М для определения: Пентан (Р) | AH108: 102112 | AI108: 1021122 | AJ108: ГАНК-4СEx (Д) для определения: Пентан (Р) | AK108: Д | AL108: 1026112 | AM108: ГАНК-4ФEx (Д) для определения: Пентан (Р) | AN108: Нет
A109: Р : Глутаровый альдегид (пентандиаль) (Р) 2,5 - 100 мг/м3 | B109: 21132 | C109: 2,5 - 100 мг/м3 | D109: Р | E109: Д | I109: Р05 | K109: В-во | L109: Нет | M109: Д | N109: Д | O109: Нет | P109: Д | Q109: Д | R109: Д | S109: Глутаровый альдегид (пентандиаль) (Р) | Y109: C5H8O2 | Z109: 5 | AC109: М | AD109: Cex (Д) | AE109: М;Cex (Д) | AF109: Нет | AG109: ГАНК-4М для определения: Глутаровый альдегид (пентандиаль) (Р) | AH109: 102113 | AI109: 1021132 | AJ109: ГАНК-4СEx (Д) для определения: Глутаровый альдегид (пентандиаль) (Р) | AK109: Д | AL109: 1026113 | AM109: ГАНК-4ФEx (Д) для определения: Глутаровый альдегид (пентандиаль) (Р) | AN109: Нет
A110: Р : Пентан-1-ол (спирт амиловый) (Р) 5 - 200 мг/м3 | B110: 21142 | C110: 5 - 200 мг/м3 | D110: Р | E110: Д | K110: В-во | L110: Нет | M110: Д | N110: Д | O110: Нет | P110: Д | Q110: Д | R110: Д | S110: Пентан-1-ол (спирт амиловый) (Р) | Y110: С5H11OH | Z110: 10 | AB110: ОТ | AC110: М | AD110: Cex (Д) | AE110: М;Cex (Д) | AF110: Нет | AG110: ГАНК-4М для определения: Пентан-1-ол (спирт амиловый) (Р) | AH110: 102114 | AI110: 1021142 | AJ110: ГАНК-4СEx (Д) для определения: Пентан-1-ол (спирт амиловый) (Р) | AK110: Д | AL110: 1026114 | AM110: ГАНК-4ФEx (Д) для определения: Пентан-1-ол (спирт амиловый) (Р) | AN110: Нет
A111: Р : Диэтилендиамин (пиперазин) (Р) 0,5 - 20 мг/м3 | B111: 21152 | C111: 0,5 - 20 мг/м3 | D111: Р | E111: Д | I111: Р04 | K111: В-во | L111: Нет | M111: Д | N111: Д | O111: Нет | P111: Д | Q111: Д | R111: Д | S111: Диэтилендиамин (пиперазин) (Р) | Y111: С4Н10N2 | Z111: 1 | AC111: М | AD111: Cex (Д) | AE111: М;Cex (Д) | AF111: Нет | AG111: ГАНК-4М для определения: Диэтилендиамин (пиперазин) (Р) | AH111: 102115 | AI111: 1021152 | AJ111: ГАНК-4СEx (Д) для определения: Диэтилендиамин (пиперазин) (Р) | AK111: Д | AL111: 1026115 | AM111: ГАНК-4ФEx (Д) для определения: Диэтилендиамин (пиперазин) (Р) | AN111: Нет
A112: Р : Пиридин (Р) 2,5 - 100 мг/м3 | B112: 21162 | C112: 2,5 - 100 мг/м3 | D112: Р | E112: Д | I112: Р04 | K112: В-во | L112: Нет | M112: Д | N112: Д | O112: Нет | P112: Д | Q112: Д | R112: Д | S112: Пиридин (Р) | Y112: С5Н5N | Z112: 5 | AC112: М | AD112: Cex (Д) | AE112: М;Cex (Д) | AF112: Нет | AG112: ГАНК-4М для определения: Пиридин (Р) | AH112: 102116 | AI112: 1021162 | AJ112: ГАНК-4СEx (Д) для определения: Пиридин (Р) | AK112: Д | AL112: 1026116 | AM112: ГАНК-4ФEx (Д) для определения: Пиридин (Р) | AN112: Нет
A113: Р : Пропан (Р) 50 - 2000 мг/м3 | B113: 21172 | C113: 50 - 2000 мг/м3 | D113: Р | E113: Д | I113: Р07 | K113: В-во | L113: Нет | M113: Д | N113: Д | O113: Нет | P113: Д | Q113: Д | R113: Д | S113: Пропан (Р) | Y113: С3Н8 | Z113: 100 | AC113: М | AD113: Cex (Д) | AE113: М;Cex (Д) | AF113: Нет | AG113: ГАНК-4М для определения: Пропан (Р) | AH113: 102117 | AI113: 1021172 | AJ113: ГАНК-4СEx (Д) для определения: Пропан (Р) | AK113: Д | AL113: 1026117 | AM113: ГАНК-4ФEx (Д) для определения: Пропан (Р) | AN113: Нет
A114: Р : Пропан-1-ол (Р) 5 - 200 мг/м3 | B114: 21182 | C114: 5 - 200 мг/м3 | D114: Р | E114: Д | I114: Р09 | K114: В-во | L114: Нет | M114: Д | N114: Д | O114: Нет | P114: Д | Q114: Д | R114: Д | S114: Пропан-1-ол (Р) | Y114: С3Н7ОН | Z114: 10 | AC114: М | AD114: Cex (Д) | AE114: М;Cex (Д) | AF114: Нет | AG114: ГАНК-4М для определения: Пропан-1-ол (Р) | AH114: 102118 | AI114: 1021182 | AJ114: ГАНК-4СEx (Д) для определения: Пропан-1-ол (Р) | AK114: Д | AL114: 1026118 | AM114: ГАНК-4ФEx (Д) для определения: Пропан-1-ол (Р) | AN114: Нет
A115: Р : Пропан-2-ол (изопропанол, изопропиловый спирт) (Р) 5 - 200 мг/м3 | B115: 21192 | C115: 5 - 200 мг/м3 | D115: Р | E115: Д | K115: В-во | L115: Нет | M115: Д | N115: Д | O115: Нет | P115: Д | Q115: Д | R115: Д | S115: Пропан-2-ол (изопропанол, изопропиловый спирт) (Р) | Y115: C3H8O | Z115: 10 | AB115: ОТ | AC115: М | AD115: Cex (Д) | AE115: М;Cex (Д) | AF115: Нет | AG115: ГАНК-4М для определения: Пропан-2-ол (изопропанол, изопропиловый спирт) (Р) | AH115: 102119 | AI115: 1021192 | AJ115: ГАНК-4СEx (Д) для определения: Пропан-2-ол (изопропанол, изопропиловый спирт) (Р) | AK115: Д | AL115: 1026119 | AM115: ГАНК-4ФEx (Д) для определения: Пропан-2-ол (изопропанол, изопропиловый спирт) (Р) | AN115: Нет
A116: Р : Ацетон (пропан-2он) (Р) 100 - 4000 мг/м3 | B116: 21202 | C116: 100 - 4000 мг/м3 | D116: Р | E116: Д | K116: В-во | L116: Нет | M116: Д | N116: Д | O116: Нет | P116: Д | Q116: Д | R116: Д | S116: Ацетон (пропан-2он) (Р) | Y116: C3H6O | Z116: 200 | AB116: Да | AC116: М | AD116: Cex (Д) | AE116: М;Cex (Д) | AF116: Нет | AG116: ГАНК-4М для определения: Ацетон (пропан-2он) (Р) | AJ116: ГАНК-4СEx (Д) для определения: Ацетон (пропан-2он) (Р) | AK116: Д | AL116: 1026120 | AM116: ГАНК-4ФEx (Д) для определения: Ацетон (пропан-2он) (Р) | AN116: Нет
A117: Р : Акрилонитрил (проп-2-енонитрил) (Р) 0,25 - 10 мг/м3 | B117: 21212 | C117: 0,25 - 10 мг/м3 | D117: Р | E117: Д | K117: В-во | L117: Нет | M117: Д | N117: Д | O117: Нет | P117: Д | Q117: Д | R117: Д | S117: Акрилонитрил (проп-2-енонитрил) (Р) | Y117: C3H3N | Z117: 0.5 | AB117: ОТ | AC117: М | AD117: Cex (Д) | AE117: М;Cex (Д) | AF117: Нет | AG117: ГАНК-4М для определения: Акрилонитрил (проп-2-енонитрил) (Р) | AH117: 102121 | AI117: 1021212 | AJ117: ГАНК-4СEx (Д) для определения: Акрилонитрил (проп-2-енонитрил) (Р) | AK117: Д | AL117: 1026121 | AM117: ГАНК-4ФEx (Д) для определения: Акрилонитрил (проп-2-енонитрил) (Р) | AN117: Нет
A118: Р : Акролеин (проп-2ен-1-аль) (Р) 0,1 - 4 мг/м3 | B118: 21222 | C118: 0,1 - 4 мг/м3 | D118: Р | E118: Д | K118: В-во | L118: Нет | M118: Д | N118: Д | O118: Нет | P118: Д | Q118: Д | R118: Д | S118: Акролеин (проп-2ен-1-аль) (Р) | Y118: C3H4O | Z118: 0.2 | AB118: Да | AC118: М | AD118: Cex (Д) | AE118: М;Cex (Д) | AF118: Нет | AG118: ГАНК-4М для определения: Акролеин (проп-2ен-1-аль) (Р) | AH118: 102122 | AI118: 1021222 | AJ118: ГАНК-4СEx (Д) для определения: Акролеин (проп-2ен-1-аль) (Р) | AK118: Д | AL118: 1026122 | AM118: ГАНК-4ФEx (Д) для определения: Акролеин (проп-2ен-1-аль) (Р) | AN118: Нет
A119: Р : Кислота акриловая (Р) 2,5 - 100 мг/м3 | B119: 21232 | C119: 2,5 - 100 мг/м3 | D119: Р | E119: Д | I119: Р03 | K119: В-во | L119: Нет | M119: Д | N119: Д | O119: Нет | P119: Д | Q119: Д | R119: Д | S119: Кислота акриловая (Р) | Y119: C3H4O2 | Z119: 5 | AC119: М | AD119: Cex (Д) | AE119: М;Cex (Д) | AF119: Нет | AG119: ГАНК-4М для определения: Кислота акриловая (Р) | AH119: 102123 | AI119: 1021232 | AJ119: ГАНК-4СEx (Д) для определения: Кислота акриловая (Р) | AK119: Д | AL119: 1026123 | AM119: ГАНК-4ФEx (Д) для определения: Кислота акриловая (Р) | AN119: Нет
A120: Р : Пропен (пропилен) (Р) 25 - 1000 мг/м3 | B120: 21242 | C120: 25 - 1000 мг/м3 | D120: Р | E120: Д | K120: В-во | L120: Нет | M120: Д | N120: Д | O120: Нет | P120: Д | Q120: Д | R120: Д | S120: Пропен (пропилен) (Р) | Y120: С3H6 | Z120: 50 | AB120: ОТ | AC120: М | AD120: =IF(AC120="НЕТ","Нет",IF(AC120="С","Cex (Х)",IF(AC120="М","Cex (Д)"," "))) -> Cex (Д) | AE120: =CONCATENATE(IF(AC120="Нет","",CONCATENATE(AC120,";")),IF(AD120="Нет","",AD120)) -> М;Cex (Д) | AF120: Нет | AG120: ГАНК-4М для определения: Пропен (пропилен) (Р) | AH120: 102124 | AI120: 1021242 | AJ120: ГАНК-4СEx (Д) для определения: Пропен (пропилен) (Р) | AK120: Д | AL120: 1026124 | AM120: ГАНК-4ФEx (Д) для определения: Пропен (пропилен) (Р) | AN120: Нет
A121: Р : Пыль (бумажная) (Р) 1 - 40 мг/м3 | B121: 21252 | C121: 1 - 40 мг/м3 | D121: Р | E121: Х | I121: Р11 | K121: В-во | L121: Нет | M121: Х | N121: Х | O121: Нет | P121: Х | Q121: Х | R121: Нет | S121: Пыль (бумажная) (Р) | Z121: 2 | AC121: С | AD121: Cex (Х) | AE121: С;Cex (Х) | AF121: ГАНК-4С для определения: Пыль (бумажная) (Р) | AG121: Нет | AH121: 102125 | AI121: 1021252 | AJ121: ГАНК-4СEx (Х) для определения: Пыль (бумажная) (Р) | AK121: Х | AL121: 1026125 | AM121: ГАНК-4ФEx (Х) для определения: Пыль (бумажная) (Р) | AN121: Нет
A122: Р : Пыль (взвешенные вещества) (Р) 1 - 40 мг/м3 | B122: 21272 | C122: 1 - 40 мг/м3 | D122: Р | E122: Х | I122: Р11 | K122: В-во | L122: Нет | M122: Х | N122: Х | O122: Нет | P122: Х | Q122: Х | R122: Нет | S122: Пыль (взвешенные вещества) (Р) | Z122: 2 | AC122: С | AD122: Cex (Х) | AE122: С;Cex (Х) | AF122: ГАНК-4С для определения: Пыль (взвешенные вещества) (Р) | AG122: Нет | AH122: 102127 | AI122: 1021272 | AJ122: ГАНК-4СEx (Х) для определения: Пыль (взвешенные вещества) (Р) | AK122: Х | AL122: 1026127 | AM122: ГАНК-4ФEx (Х) для определения: Пыль (взвешенные вещества) (Р) | AN122: Нет
A123: Р : Пыль (10 %>SiO2>2 %) (Р) 2 - 80 мг/м3 | B123: 21282 | C123: 2 - 80 мг/м3 | D123: Р | E123: Х | I123: Р11 | K123: В-во | L123: Нет | M123: Х | N123: Х | O123: Нет | P123: Х | Q123: Х | R123: Нет | S123: Пыль (10 %>SiO2>2 %) (Р) | Z123: 4 | AC123: С | AD123: Cex (Х) | AE123: С;Cex (Х) | AF123: ГАНК-4С для определения: Пыль (10 %>SiO2>2 %) (Р) | AG123: Нет | AH123: 102128 | AI123: 1021282 | AJ123: ГАНК-4СEx (Х) для определения: Пыль (10 %>SiO2>2 %) (Р) | AK123: Х | AL123: 1026128 | AM123: ГАНК-4ФEx (Х) для определения: Пыль (10 %>SiO2>2 %) (Р) | AN123: Нет
A124: Р : Пыль (20 %>SiO2>10 %) (Р) 1 - 40 мг/м3 | B124: 21292 | C124: 1 - 40 мг/м3 | D124: Р | E124: Х | I124: Р11 | K124: В-во | L124: Нет | M124: Х | N124: Х | O124: Нет | P124: Х | Q124: Х | R124: Нет | S124: Пыль (20 %>SiO2>10 %) (Р) | Z124: 2 | AC124: С | AD124: Cex (Х) | AE124: С;Cex (Х) | AF124: ГАНК-4С для определения: Пыль (20 %>SiO2>10 %) (Р) | AG124: Нет | AH124: 102129 | AI124: 1021292 | AJ124: ГАНК-4СEx (Х) для определения: Пыль (20 %>SiO2>10 %) (Р) | AK124: Х | AL124: 1026129 | AM124: ГАНК-4ФEx (Х) для определения: Пыль (20 %>SiO2>10 %) (Р) | AN124: Нет
A125: Р : Пыль (70 %>SiO2>20 %) (Р) 1 - 40 мг/м3 | B125: 21302 | C125: 1 - 40 мг/м3 | D125: Р | E125: Х | I125: Р11 | K125: В-во | L125: Нет | M125: Х | N125: Х | O125: Нет | P125: Х | Q125: Х | R125: Нет | S125: Пыль (70 %>SiO2>20 %) (Р) | Z125: 2 | AB125: Да | AC125: С | AD125: Cex (Х) | AE125: С;Cex (Х) | AF125: ГАНК-4С для определения: Пыль (70 %>SiO2>20 %) (Р) | AG125: Нет | AH125: 102130 | AI125: 1021302 | AJ125: ГАНК-4СEx (Х) для определения: Пыль (70 %>SiO2>20 %) (Р) | AK125: Х | AL125: 1026130 | AM125: ГАНК-4ФEx (Х) для определения: Пыль (70 %>SiO2>20 %) (Р) | AN125: Нет
A126: Р : Пыль (SiO2<2%) (Р) 3 - 120 мг/м3 | B126: 21312 | C126: 3 - 120 мг/м3 | D126: Р | E126: Х | I126: Р11 | K126: В-во | L126: Нет | M126: Х | N126: Х | O126: Нет | P126: Х | Q126: Х | R126: Нет | S126: Пыль (SiO2<2%) (Р) | Z126: 6 | AC126: С | AD126: Cex (Х) | AE126: С;Cex (Х) | AF126: ГАНК-4С для определения: Пыль (SiO2<2%) (Р) | AG126: Нет | AH126: 102131 | AI126: 1021312 | AJ126: ГАНК-4СEx (Х) для определения: Пыль (SiO2<2%) (Р) | AK126: Х | AL126: 1026131 | AM126: ГАНК-4ФEx (Х) для определения: Пыль (SiO2<2%) (Р) | AN126: Нет
A127: Р : Пыль (SiO2>70%) (Р) 1 - 40 мг/м3 | B127: 21322 | C127: 1 - 40 мг/м3 | D127: Р | E127: Х | I127: Р11 | K127: В-во | L127: Нет | M127: Х | N127: Х | O127: Нет | P127: Х | Q127: Х | R127: Нет | S127: Пыль (SiO2>70%) (Р) | Z127: 2 | AC127: С | AD127: Cex (Х) | AE127: С;Cex (Х) | AF127: ГАНК-4С для определения: Пыль (SiO2>70%) (Р) | AG127: Нет | AH127: 102132 | AI127: 1021322 | AJ127: ГАНК-4СEx (Х) для определения: Пыль (SiO2>70%) (Р) | AK127: Х | AL127: 1026132 | AM127: ГАНК-4ФEx (Х) для определения: Пыль (SiO2>70%) (Р) | AN127: Нет
A128: Р : Пыль (доменного шлака) (Р) 3 - 120 мг/м3 | B128: 21332 | C128: 3 - 120 мг/м3 | D128: Р | E128: Х | I128: Р11 | K128: В-во | L128: Нет | M128: Х | N128: Х | O128: Нет | P128: Х | Q128: Х | R128: Нет | S128: Пыль (доменного шлака) (Р) | Z128: 6 | AC128: С | AD128: Cex (Х) | AE128: С;Cex (Х) | AF128: ГАНК-4С для определения: Пыль (доменного шлака) (Р) | AG128: Нет | AH128: 102133 | AI128: 1021332 | AJ128: ГАНК-4СEx (Х) для определения: Пыль (доменного шлака) (Р) | AK128: Х | AL128: 1026133 | AM128: ГАНК-4ФEx (Х) для определения: Пыль (доменного шлака) (Р) | AN128: Нет
A129: Р : Пыль (древесная) (Р) 3 - 120 мг/м3 | B129: 21342 | C129: 3 - 120 мг/м3 | D129: Р | E129: Х | I129: Р11 | K129: В-во | L129: Нет | M129: Х | N129: Х | O129: Нет | P129: Х | Q129: Х | R129: Нет | S129: Пыль (древесная) (Р) | Z129: 6 | AC129: С | AD129: Cex (Х) | AE129: С;Cex (Х) | AF129: ГАНК-4С для определения: Пыль (древесная) (Р) | AG129: Нет | AH129: 102134 | AI129: 1021342 | AJ129: =IF(AC129="М",CONCATENATE("ГАНК-4СEx (Д) для определения: ",S129),IF(AC129="С",CONCATENATE("ГАНК-4СEx (Х) для определения: ",S129),"Нет")) -> ГАНК-4СEx (Х) для определения: Пыль (древесная) (Р) | AK129: Х | AL129: =IF(AC129="нет","Нет",1026000+(B129-2)/10-2000) -> 1026134 | AM129: =IF(AC129="М",CONCATENATE("ГАНК-4ФEx (Д) для определения: ",S129),IF(AC129="С",CONCATENATE("ГАНК-4ФEx (Х) для определения: ",S129),"Нет")) -> ГАНК-4ФEx (Х) для определения: Пыль (древесная) (Р) | AN129: Нет
A130: Р : Пыль (зерновая) (Р) 2 - 80 мг/м3 | B130: 21352 | C130: 2 - 80 мг/м3 | D130: Р | E130: Х | I130: Р11 | K130: В-во | L130: Нет | M130: Х | N130: Х | O130: Нет | P130: Х | Q130: Х | R130: Нет | S130: Пыль (зерновая) (Р) | Z130: 4 | AB130: Да | AC130: С | AD130: Cex (Х) | AE130: С;Cex (Х) | AF130: ГАНК-4С для определения: Пыль (зерновая) (Р) | AG130: Нет | AH130: 102135 | AI130: 1021352 | AJ130: ГАНК-4СEx (Х) для определения: Пыль (зерновая) (Р) | AK130: Х | AL130: 1026135 | AM130: ГАНК-4ФEx (Х) для определения: Пыль (зерновая) (Р) | AN130: Нет
A131: Р : Пыль (мучная) (Р) 3 - 120 мг/м3 | B131: 21362 | C131: 3 - 120 мг/м3 | D131: Р | E131: Х | I131: Р11 | K131: В-во | L131: Нет | M131: Х | N131: Х | O131: Нет | P131: Х | Q131: Х | R131: Нет | S131: Пыль (мучная) (Р) | Z131: 6 | AC131: С | AD131: Cex (Х) | AE131: С;Cex (Х) | AF131: ГАНК-4С для определения: Пыль (мучная) (Р) | AG131: Нет | AH131: 102136 | AI131: 1021362 | AJ131: ГАНК-4СEx (Х) для определения: Пыль (мучная) (Р) | AK131: Х | AL131: 1026136 | AM131: ГАНК-4ФEx (Х) для определения: Пыль (мучная) (Р) | AN131: Нет
A132: Р : Пыль (хлопковая) (Р) 0,25 - 10 мг/м3 | B132: 21372 | C132: 0,25 - 10 мг/м3 | D132: Р | E132: Х | I132: Р11 | K132: В-во | L132: Нет | M132: Х | N132: Х | O132: Нет | P132: Х | Q132: Х | R132: Нет | S132: Пыль (хлопковая) (Р) | Z132: 0.5 | AC132: С | AD132: Cex (Х) | AE132: С;Cex (Х) | AF132: ГАНК-4С для определения: Пыль (хлопковая) (Р) | AG132: Нет | AH132: 102137 | AI132: 1021372 | AJ132: ГАНК-4СEx (Х) для определения: Пыль (хлопковая) (Р) | AK132: Х | AL132: 1026137 | AM132: ГАНК-4ФEx (Х) для определения: Пыль (хлопковая) (Р) | AN132: Нет
A133: Р : Пыль (цементная) (Р) 4 - 160 мг/м3 | B133: 21382 | C133: 4 - 160 мг/м3 | D133: Р | E133: Х | I133: Р11 | K133: В-во | L133: Нет | M133: Х | N133: Х | O133: Нет | P133: Х | Q133: Х | R133: Нет | S133: Пыль (цементная) (Р) | Z133: 8 | AC133: С | AD133: Cex (Х) | AE133: С;Cex (Х) | AF133: ГАНК-4С для определения: Пыль (цементная) (Р) | AG133: Нет | AH133: 102138 | AI133: 1021382 | AJ133: ГАНК-4СEx (Х) для определения: Пыль (цементная) (Р) | AK133: Х | AL133: 1026138 | AM133: ГАНК-4ФEx (Х) для определения: Пыль (цементная) (Р) | AN133: Нет
A134: Р : Свинец и его неорганические соединения (Р) 0,025 - 1 мг/м3 | B134: 21392 | C134: 0,025 - 1 мг/м3 | D134: Р | E134: Х | I134: Р10 | K134: В-во | L134: Нет | M134: Х | N134: Х | O134: Нет | P134: Х | Q134: Х | R134: Нет | S134: Свинец и его неорганические соединения (Р) | Y134: Pb, PbО, PbО2, Pb3О4 | Z134: 0.05 | AC134: С | AD134: Cex (Х) | AE134: С;Cex (Х) | AF134: ГАНК-4С для определения: Свинец и его неорганические соединения (Р) | AG134: Нет | AH134: 102139 | AI134: 1021392 | AJ134: ГАНК-4СEx (Х) для определения: Свинец и его неорганические соединения (Р) | AK134: Х | AL134: 1026139 | AM134: ГАНК-4ФEx (Х) для определения: Свинец и его неорганические соединения (Р) | AN134: Нет
A135: Р : Элегаз (сера гексафторид) (Р) 10 - 12000 мг/м3 | B135: 21402 | C135: 10 - 12000 мг/м3 | D135: Р | E135: Д - РБ | J135: АР3 | K135: В-во | L135: Нет | M135: Нет | N135: Нет | O135: Нет | P135: Нет | Q135: Нет | R135: Нет | S135: Элегаз (сера гексафторид) (Р) | Y135: SF6 | Z135: 500 | AC135: М | AD135: Cex (Д) | AE135: М;Cex (Д) | AF135: Нет | AG135: ГАНК-4М для определения: Элегаз (сера гексафторид) (Р) | AH135: =102000+(B135-2)/10-2000 -> 102140 | AI135: =IF(AC135="Нет","Нет",AH135*10+2) -> 1021402 | AJ135: ГАНК-4СEx (Д) для определения: Элегаз (сера гексафторид) (Р) | AK135: Д | AL135: 1026140 | AM135: ГАНК-4ФEx (Д) для определения: Элегаз (сера гексафторид) (Р) | AN135: Нет
A136: Р : Ангидрид сернистый (сера диоксид, оксид серы (IV)) (Р) 5 - 200 мг/м3 | B136: 21412 | C136: 5 - 200 мг/м3 | D136: Р | E136: Х | K136: В-во | L136: Нет | M136: Х | N136: Х | O136: Нет | P136: Х | Q136: Х | R136: Д | S136: Ангидрид сернистый (сера диоксид, оксид серы (IV)) (Р) | Y136: SO2 | Z136: 10 | AB136: Да | AC136: М | AD136: Cex (Д) | AE136: М;Cex (Д) | AF136: Нет | AG136: ГАНК-4М для определения: Ангидрид сернистый (сера диоксид, оксид серы (IV)) (Р) | AH136: 102141 | AI136: 1021412 | AJ136: ГАНК-4СEx (Д) для определения: Ангидрид сернистый (сера диоксид, оксид серы (IV)) (Р) | AK136: Д | AL136: 1026141 | AM136: ГАНК-4ФEx (Д) для определения: Ангидрид сернистый (сера диоксид, оксид серы (IV)) (Р) | AN136: Нет
A137: Р : Кислота серная (Р) 0,5 - 20 мг/м3 | B137: 21422 | C137: 0,5 - 20 мг/м3 | D137: Р | E137: Х | I137: Р03 | K137: В-во | L137: Нет | M137: Х | N137: Х | O137: Нет | P137: Х | Q137: Х | R137: Нет | S137: Кислота серная (Р) | Y137: H2SO4 | Z137: 1 | AB137: Да | AC137: С | AD137: Cex (Х) | AE137: С;Cex (Х) | AF137: ГАНК-4С для определения: Кислота серная (Р) | AG137: Нет | AH137: 102142 | AI137: 1021422 | AJ137: ГАНК-4СEx (Х) для определения: Кислота серная (Р) | AK137: Х | AL137: 1026142 | AM137: ГАНК-4ФEx (Х) для определения: Кислота серная (Р) | AN137: Да
A138: Р : Сероуглерод (углерод дисульфид, сульфид углерода (IV)) (Р) 1,5 - 60 мг/м3 | B138: 21432 | C138: 1,5 - 60 мг/м3 | D138: Р | E138: Д | K138: В-во | L138: Нет | M138: Д | N138: Д | O138: Нет | P138: Д | Q138: Д | R138: Д | S138: Сероуглерод (углерод дисульфид, сульфид углерода (IV)) (Р) | Y138: CS2 | Z138: 3 | AB138: ОТ | AC138: М | AD138: Cex (Д) | AE138: М;Cex (Д) | AF138: Нет | AG138: ГАНК-4М для определения: Сероуглерод (углерод дисульфид, сульфид углерода (IV)) (Р) | AH138: 102143 | AI138: 1021432 | AJ138: ГАНК-4СEx (Д) для определения: Сероуглерод (углерод дисульфид, сульфид углерода (IV)) (Р) | AK138: Д | AL138: 1026143 | AM138: ГАНК-4ФEx (Д) для определения: Сероуглерод (углерод дисульфид, сульфид углерода (IV)) (Р) | AN138: Нет
A139: Р : Скипидар (Р) 150 - 6000 мг/м3 | B139: 21442 | C139: 150 - 6000 мг/м3 | D139: Р | E139: Д | I139: Р07 | K139: В-во | L139: Нет | M139: Д | N139: Д | O139: Нет | P139: Д | Q139: Д | R139: Д | S139: Скипидар (Р) | Z139: 300 | AC139: М | AD139: Cex (Д) | AE139: М;Cex (Д) | AF139: Нет | AG139: ГАНК-4М для определения: Скипидар (Р) | AH139: 102144 | AI139: 1021442 | AJ139: ГАНК-4СEx (Д) для определения: Скипидар (Р) | AK139: Д | AL139: 1026144 | AM139: ГАНК-4ФEx (Д) для определения: Скипидар (Р) | AN139: Нет
A140: Р : Сольвент-нафта (Р) 50 - 2000 мг/м3 | B140: 21452 | C140: 50 - 2000 мг/м3 | D140: Р | E140: Д | I140: Р07 | K140: В-во | L140: Нет | M140: Д | N140: Д | O140: Нет | P140: Д | Q140: Д | R140: Д | S140: Сольвент-нафта (Р) | Z140: 100 | AC140: М | AD140: Cex (Д) | AE140: М;Cex (Д) | AF140: Нет | AG140: ГАНК-4М для определения: Сольвент-нафта (Р) | AH140: 102145 | AI140: 1021452 | AJ140: ГАНК-4СEx (Д) для определения: Сольвент-нафта (Р) | AK140: Д | AL140: 1026145 | AM140: ГАНК-4ФEx (Д) для определения: Сольвент-нафта (Р) | AN140: Нет
A141: Р : Спирт аллиловый (Р) 1 - 40 мг/м3 | B141: 21462 | C141: 1 - 40 мг/м3 | D141: Р | E141: Д | I141: Р09 | K141: В-во | L141: Нет | M141: Д | N141: Д | O141: Нет | P141: Д | Q141: Д | R141: Д | S141: Спирт аллиловый (Р) | Y141: С3Н5ОН | Z141: 2 | AC141: М | AD141: Cex (Д) | AE141: М;Cex (Д) | AF141: Нет | AG141: ГАНК-4М для определения: Спирт аллиловый (Р) | AH141: 102146 | AI141: 1021462 | AJ141: ГАНК-4СEx (Д) для определения: Спирт аллиловый (Р) | AK141: Д | AL141: 1026146 | AM141: ГАНК-4ФEx (Д) для определения: Спирт аллиловый (Р) | AN141: Нет
A142: Р : Тетралин (Р) 12 - 400 мг/м3 | B142: 21482 | C142: 12 - 400 мг/м3 | D142: Р | E142: Д | I142: Р06 | K142: В-во | L142: Нет | M142: Д | N142: Д | O142: Нет | P142: Д | Q142: Д | R142: Д | S142: Тетралин (Р) | Y142: С10Н12 | Z142: 20 | AC142: М | AD142: Cex (Д) | AE142: М;Cex (Д) | AF142: Нет | AG142: ГАНК-4М для определения: Тетралин (Р) | AH142: 102148 | AI142: 1021482 | AJ142: ГАНК-4СEx (Д) для определения: Тетралин (Р) | AK142: Д | AL142: 1026148 | AM142: ГАНК-4ФEx (Д) для определения: Тетралин (Р) | AN142: Нет
A143: Р : Тетрахлорэтилен (Р) 5 - 200 мг/м3 | B143: 21492 | C143: 5 - 200 мг/м3 | D143: Р | E143: Х - ДОЖ | I143: Р08 | K143: В-во | L143: Нет | M143: Х - ДОЖ | N143: Х - ДОЖ | O143: Нет | P143: Нет | Q143: Нет | R143: Нет | S143: Тетрахлорэтилен (Р) | T143: .0403 | Y143: С2Cl4 | Z143: 10 | AC143: М | AD143: =IF(AC143="НЕТ","Нет",IF(AC143="С","Cex (Х)",IF(AC143="М","Cex (Д)"," "))) -> Cex (Д) | AE143: =CONCATENATE(IF(AC143="Нет","",CONCATENATE(AC143,";")),IF(AD143="Нет","",AD143)) -> М;Cex (Д) | AF143: Нет | AG143: ГАНК-4М для определения: Тетрахлорэтилен (Р) | AH143: 102149 | AI143: 1021492 | AJ143: ГАНК-4СEx (Д) для определения: Тетрахлорэтилен (Р) | AK143: Д | AL143: 1026149 | AM143: ГАНК-4ФEx (Д) для определения: Тетрахлорэтилен (Р) | AN143: Нет
A144: Р : Тетрахлорметан (углерод 4-х хлористый, перхлорметан) (Р) 5 - 200 мг/м3 | B144: 21502 | C144: 5 - 200 мг/м3 | D144: Р | E144: Х - ДОЖ | K144: В-во | L144: Нет | M144: Х - ДОЖ | N144: Х - ДОЖ | O144: Нет | P144: Нет | Q144: Нет | R144: Нет | S144: Тетрахлорметан (углерод 4-х хлористый, перхлорметан) (Р) | T144: .0403 | Y144: CCl4 | Z144: 10 | AB144: ОТ | AC144: М | AD144: Cex (Д) | AE144: М;Cex (Д) | AF144: Нет | AG144: ГАНК-4М для определения: Тетрахлорметан (углерод 4-х хлористый, перхлорметан) (Р) | AH144: 102150 | AI144: 1021502 | AJ144: ГАНК-4СEx (Д) для определения: Тетрахлорметан (углерод 4-х хлористый, перхлорметан) (Р) | AK144: Д | AL144: 1026150 | AM144: ГАНК-4ФEx (Д) для определения: Тетрахлорметан (углерод 4-х хлористый, перхлорметан) (Р) | AN144: Нет
A145: Р : Тиокарбамид (Тиомочевина) (Р) 0,15 - 6 мг/м3 | B145: 21512 | C145: 0,15 - 6 мг/м3 | D145: Р | E145: Х | I145: Р04 | K145: В-во | L145: Нет | M145: Х | N145: Х | O145: Нет | P145: Х | Q145: Х | R145: Д | S145: Тиокарбамид (Тиомочевина) (Р) | Y145: NН2СSNН2 | Z145: 0.3 | AC145: М | AD145: Cex (Д) | AE145: М;Cex (Д) | AF145: Нет | AG145: ГАНК-4М для определения: Тиокарбамид (Тиомочевина) (Р) | AH145: 102151 | AI145: 1021512 | AJ145: ГАНК-4СEx (Д) для определения: Тиокарбамид (Тиомочевина) (Р) | AK145: Д | AL145: 1026151 | AM145: ГАНК-4ФEx (Д) для определения: Тиокарбамид (Тиомочевина) (Р) | AN145: Нет
A146: Р : Бромоформ (Р) 2,5 - 100 мг/м3 | B146: 21522 | C146: 2,5 - 100 мг/м3 | D146: Р | E146: Д | I146: Р08 | K146: В-во | L146: Нет | M146: Д | N146: Д | O146: Нет | P146: Д | Q146: Д | R146: Д | S146: Бромоформ (Р) | Y146: СНВr3 | Z146: 5 | AC146: М | AD146: Cex (Д) | AE146: М;Cex (Д) | AF146: Нет | AG146: ГАНК-4М для определения: Бромоформ (Р) | AH146: 102152 | AI146: 1021522 | AJ146: ГАНК-4СEx (Д) для определения: Бромоформ (Р) | AK146: Д | AL146: 1026152 | AM146: ГАНК-4ФEx (Д) для определения: Бромоформ (Р) | AN146: Нет
A147: Р : Трихлорметан (Р) 2,5 - 100 мг/м3 | B147: 21532 | C147: 2,5 - 100 мг/м3 | D147: Р | E147: Д | I147: Р08 | K147: В-во | L147: Нет | M147: Д | N147: Д | O147: Нет | P147: Д | Q147: Д | R147: Д | S147: Трихлорметан (Р) | Y147: СНCl3 | Z147: 5 | AC147: М | AD147: Cex (Д) | AE147: М;Cex (Д) | AF147: Нет | AG147: ГАНК-4М для определения: Трихлорметан (Р) | AH147: 102153 | AI147: 1021532 | AJ147: ГАНК-4СEx (Д) для определения: Трихлорметан (Р) | AK147: Д | AL147: 1026153 | AM147: ГАНК-4ФEx (Д) для определения: Трихлорметан (Р) | AN147: Нет
A148: Р : Трихлорэтилен (Р) 5 - 200 мг/м3 | B148: 21542 | C148: 5 - 200 мг/м3 | D148: Р | E148: Х - ДОЖ | I148: Р08 | K148: В-во | L148: Нет | M148: Х - ДОЖ | N148: Х - ДОЖ | O148: Нет | P148: Нет | Q148: Нет | R148: Нет | S148: Трихлорэтилен (Р) | T148: .0403 | Y148: С2НCl3 | Z148: 10 | AC148: М | AD148: Cex (Д) | AE148: М;Cex (Д) | AF148: Нет | AG148: ГАНК-4М для определения: Трихлорэтилен (Р) | AH148: 102154 | AI148: 1021542 | AJ148: ГАНК-4СEx (Д) для определения: Трихлорэтилен (Р) | AK148: Д | AL148: 1026154 | AM148: ГАНК-4ФEx (Д) для определения: Трихлорэтилен (Р) | AN148: Нет
A149: Р : Триэтаноламин (Р) 2,5 - 100 мг/м3 | B149: 21552 | C149: 2,5 - 100 мг/м3 | D149: Р | E149: Х | I149: Р03 | K149: В-во | L149: Нет | M149: Х | N149: Х | O149: Нет | P149: Х | Q149: Х | R149: Д | S149: Триэтаноламин (Р) | Y149: C6H15NO3 | Z149: 5 | AC149: М | AD149: Cex (Д) | AE149: М;Cex (Д) | AF149: Нет | AG149: ГАНК-4М для определения: Триэтаноламин (Р) | AH149: 102155 | AI149: 1021552 | AJ149: ГАНК-4СEx (Д) для определения: Триэтаноламин (Р) | AK149: Д | AL149: 1026155 | AM149: ГАНК-4ФEx (Д) для определения: Триэтаноламин (Р) | AN149: Нет
A150: Р : Триэтиламин (Р) 5 - 200 мг/м3 | B150: 21562 | C150: 5 - 200 мг/м3 | D150: Р | E150: Х | I150: Р03 | K150: В-во | L150: Нет | M150: Х | N150: Х | O150: Нет | P150: Х | Q150: Х | R150: Д | S150: Триэтиламин (Р) | Y150: C6H15N | Z150: 10 | AC150: М | AD150: Cex (Д) | AE150: М;Cex (Д) | AF150: Нет | AG150: ГАНК-4М для определения: Триэтиламин (Р) | AH150: 102156 | AI150: 1021562 | AJ150: ГАНК-4СEx (Д) для определения: Триэтиламин (Р) | AK150: Д | AL150: 1026156 | AM150: ГАНК-4ФEx (Д) для определения: Триэтиламин (Р) | AN150: Нет
A151: Р : Уайт-спирит (Р) 150 - 6000 мг/м3 | B151: 21572 | C151: 150 - 6000 мг/м3 | D151: Р | E151: Д | I151: Р07 | K151: В-во | L151: Нет | M151: Д | N151: Д | O151: Нет | P151: Д | Q151: Д | R151: Д | S151: Уайт-спирит (Р) | Z151: 300 | AC151: М | AD151: Cex (Д) | AE151: М;Cex (Д) | AF151: Нет | AG151: ГАНК-4М для определения: Уайт-спирит (Р) | AH151: 102157 | AI151: 1021572 | AJ151: ГАНК-4СEx (Д) для определения: Уайт-спирит (Р) | AK151: Д | AL151: 1026157 | AM151: ГАНК-4ФEx (Д) для определения: Уайт-спирит (Р) | AN151: Нет
A152: Р : Углеводороды предельные С1-С5 в пересчете на метан (Р) 3500 - 35000 мг/м3 | B152: 21582 | C152: 3500 - 35000 мг/м3 | D152: Р | E152: Д | I152: Р07 | K152: В-во | L152: Нет | M152: Д | N152: Д | O152: Нет | P152: Д | Q152: Д | R152: Д | S152: Углеводороды предельные С1-С5 в пересчете на метан (Р) | Y152: С1-С5 | Z152: 7000 | AC152: М | AD152: Cex (Д) | AE152: М;Cex (Д) | AF152: Нет | AG152: ГАНК-4М для определения: Углеводороды предельные С1-С5 в пересчете на метан (Р) | AH152: 102158 | AI152: 1021582 | AJ152: ГАНК-4СEx (Д) для определения: Углеводороды предельные С1-С5 в пересчете на метан (Р) | AK152: Д | AL152: 1026158 | AM152: ГАНК-4ФEx (Д) для определения: Углеводороды предельные С1-С5 в пересчете на метан (Р) | AN152: Нет
A153: Р : Предельные углеводороды С1-С10 в пересчете на гексан (Р) 150 - 6000 мг/м3 | B153: 21592 | C153: 150 - 6000 мг/м3 | D153: Р | E153: Д | I153: Р07 | K153: В-во | L153: Нет | M153: Д | N153: Д | O153: Нет | P153: Д | Q153: Д | R153: Д | S153: Предельные углеводороды С1-С10 в пересчете на гексан (Р) | Y153: С1-С10 | Z153: 300 | AC153: М | AD153: Cex (Д) | AE153: М;Cex (Д) | AF153: Нет | AG153: ГАНК-4М для определения: Предельные углеводороды С1-С10 в пересчете на гексан (Р) | AH153: 102159 | AI153: 1021592 | AJ153: ГАНК-4СEx (Д) для определения: Предельные углеводороды С1-С10 в пересчете на гексан (Р) | AK153: Д | AL153: 1026159 | AM153: ГАНК-4ФEx (Д) для определения: Предельные углеводороды С1-С10 в пересчете на гексан (Р) | AN153: Нет
A154: Р : Предельные углеводороды С6-С10 в пересчете на гексан (Р) 150 - 6000 мг/м3 | B154: 21602 | C154: 150 - 6000 мг/м3 | D154: Р | E154: Д | I154: Р07 | K154: В-во | L154: Нет | M154: Д | N154: Д | O154: Нет | P154: Д | Q154: Д | R154: Д | S154: Предельные углеводороды С6-С10 в пересчете на гексан (Р) | Y154: С6-С10 | Z154: 300 | AC154: М | AD154: Cex (Д) | AE154: М;Cex (Д) | AF154: Нет | AG154: ГАНК-4М для определения: Предельные углеводороды С6-С10 в пересчете на гексан (Р) | AH154: 102160 | AI154: 1021602 | AJ154: ГАНК-4СEx (Д) для определения: Предельные углеводороды С6-С10 в пересчете на гексан (Р) | AK154: Д | AL154: 1026160 | AM154: ГАНК-4ФEx (Д) для определения: Предельные углеводороды С6-С10 в пересчете на гексан (Р) | AN154: Нет
A155: Р : Углеводороды предельные С12-С19 (Р) 50 - 2000 мг/м3 | B155: 21612 | C155: 50 - 2000 мг/м3 | D155: Р | E155: Д | I155: Р07 | K155: В-во | L155: Нет | M155: Д | N155: Д | O155: Нет | P155: Д | Q155: Д | R155: Д | S155: Углеводороды предельные С12-С19 (Р) | Y155: С12-С16 | Z155: 100 | AB155: Да | AC155: М | AD155: Cex (Д) | AE155: М;Cex (Д) | AF155: Нет | AG155: ГАНК-4М для определения: Углеводороды предельные С12-С19 (Р) | AH155: 102161 | AI155: 1021612 | AJ155: ГАНК-4СEx (Д) для определения: Углеводороды предельные С12-С19 (Р) | AK155: Д | AL155: 1026161 | AM155: ГАНК-4ФEx (Д) для определения: Углеводороды предельные С12-С19 (Р) | AN155: Нет
A156: Р : Углерода диоксид (диоксид углерода) (Р) 4500 - 180000 мг/м3 | B156: 21622 | C156: 4500 - 180000 мг/м3 | D156: Р | E156: Х | K156: В-во | L156: Нет | M156: Х | N156: Х | O156: Нет | P156: Х | Q156: Х | R156: Д | S156: Углерода диоксид (диоксид углерода) (Р) | Y156: CO2 | Z156: 9000 | AB156: Да | AC156: М | AD156: Cex (Д) | AE156: М;Cex (Д) | AF156: Нет | AG156: ГАНК-4М для определения: Углерода диоксид (диоксид углерода) (Р) | AH156: 102162 | AI156: 1021622 | AJ156: ГАНК-4СEx (Д) для определения: Углерода диоксид (диоксид углерода) (Р) | AK156: Д | AL156: 1026162 | AM156: ГАНК-4ФEx (Д) для определения: Углерода диоксид (диоксид углерода) (Р) | AN156: Нет
A157: Р : Углерод оксид (угарный газ, монооксид углерода) (Р) 10 - 400 мг/м3 | B157: 21632 | C157: 10 - 400 мг/м3 | D157: Р | E157: Д | K157: В-во | L157: Нет | M157: Д | N157: Д | O157: Нет | P157: Д | Q157: Д | R157: Д | S157: Углерод оксид (угарный газ, монооксид углерода) (Р) | Y157: СО | Z157: 20 | AB157: Да | AC157: М | AD157: Cex (Д) | AE157: М;Cex (Д) | AF157: Нет | AG157: ГАНК-4М для определения: Углерод оксид (угарный газ, монооксид углерода) (Р) | AH157: 102163 | AI157: 1021632 | AJ157: ГАНК-4СEx (Д) для определения: Углерод оксид (угарный газ, монооксид углерода) (Р) | AK157: Д | AL157: 1026163 | AM157: ГАНК-4ФEx (Д) для определения: Углерод оксид (угарный газ, монооксид углерода) (Р) | AN157: Нет
A158: Р : Углерод (сажа) (Р) 2 - 80 мг/м3 | B158: 21642 | C158: 2 - 80 мг/м3 | D158: Р | E158: Х | K158: В-во | L158: Нет | M158: Х | N158: Х | O158: Нет | P158: Х | Q158: Х | R158: Нет | S158: Углерод (сажа) (Р) | Z158: 4 | AB158: ОТ | AC158: С | AD158: Cex (Х) | AE158: С;Cex (Х) | AF158: ГАНК-4С для определения: Углерод (сажа) (Р) | AG158: Нет | AH158: 102164 | AI158: 1021642 | AJ158: ГАНК-4СEx (Х) для определения: Углерод (сажа) (Р) | AK158: Х | AL158: 1026164 | AM158: ГАНК-4ФEx (Х) для определения: Углерод (сажа) (Р) | AN158: Нет
A159: Р : Спирт бензиловый (Р) 2,5 - 100 мг/м3 | B159: 21652 | C159: 2,5 - 100 мг/м3 | D159: Р | E159: Д | I159: Р09 | K159: В-во | L159: Нет | M159: Д | N159: Д | O159: Нет | P159: Д | Q159: Д | R159: Д | S159: Спирт бензиловый (Р) | Y159: С6Н5СН2ОН | Z159: 5 | AC159: М | AD159: Cex (Д) | AE159: М;Cex (Д) | AF159: Нет | AG159: ГАНК-4М для определения: Спирт бензиловый (Р) | AH159: 102165 | AI159: 1021652 | AJ159: ГАНК-4СEx (Д) для определения: Спирт бензиловый (Р) | AK159: Д | AL159: 1026165 | AM159: ГАНК-4ФEx (Д) для определения: Спирт бензиловый (Р) | AN159: Нет
A160: Р : Ацетофенон (Р) 2,5 - 100 мг/м3 | B160: 21662 | C160: 2,5 - 100 мг/м3 | D160: Р | E160: Д | I160: Р06 | K160: В-во | L160: Нет | M160: Д | N160: Д | O160: Нет | P160: Д | Q160: Д | R160: Д | S160: Ацетофенон (Р) | Y160: С8Н8O | Z160: 5 | AC160: М | AD160: Cex (Д) | AE160: М;Cex (Д) | AF160: Нет | AG160: ГАНК-4М для определения: Ацетофенон (Р) | AH160: 102166 | AI160: 1021662 | AJ160: ГАНК-4СEx (Д) для определения: Ацетофенон (Р) | AK160: Д | AL160: 1026166 | AM160: ГАНК-4ФEx (Д) для определения: Ацетофенон (Р) | AN160: Нет
A161: Р : Формальдегид (метаналь) (Р) 0,25 - 10 мг/м3 | B161: 21672 | C161: 0,25 - 10 мг/м3 | D161: Р | E161: Д | K161: В-во | L161: Нет | M161: Д | N161: Д | O161: Нет | P161: Д | Q161: Д | R161: Д | S161: Формальдегид (метаналь) (Р) | Y161: CH2O | Z161: 0.5 | AB161: Да | AC161: М | AD161: Cex (Д) | AE161: М;Cex (Д) | AF161: Нет | AG161: ГАНК-4М для определения: Формальдегид (метаналь) (Р) | AH161: 102167 | AI161: 1021672 | AJ161: ГАНК-4СEx (Д) для определения: Формальдегид (метаналь) (Р) | AK161: Д | AL161: 1026167 | AM161: ГАНК-4ФEx (Д) для определения: Формальдегид (метаналь) (Р) | AN161: Нет
A162: Р : Формамид (Р) 1,5 - 60 мг/м3 | B162: 21682 | C162: 1,5 - 60 мг/м3 | D162: Р | E162: Д | I162: Р04 | K162: В-во | L162: Нет | M162: Д | N162: Д | O162: Нет | P162: Д | Q162: Д | R162: Д | S162: Формамид (Р) | Y162: НСОNН2 | Z162: 3 | AC162: М | AD162: Cex (Д) | AE162: М;Cex (Д) | AF162: Нет | AG162: ГАНК-4М для определения: Формамид (Р) | AH162: 102168 | AI162: 1021682 | AJ162: ГАНК-4СEx (Д) для определения: Формамид (Р) | AK162: Д | AL162: 1026168 | AM162: ГАНК-4ФEx (Д) для определения: Формамид (Р) | AN162: Нет
A163: Р : Трифторхлорметан (Фреон 13) (Р) 1500 - 9000 мг/м3 | B163: 21692 | C163: 1500 - 9000 мг/м3 | D163: Р | E163: Д - РБ | J163: АР2 | K163: В-во | L163: Нет | M163: Нет | N163: Нет | O163: Нет | P163: Нет | Q163: Нет | R163: Нет | S163: Трифторхлорметан (Фреон 13) (Р) | Y163: CClF3 | Z163: 3000 | AC163: М | AD163: Cex (Д) | AE163: М;Cex (Д) | AF163: Нет | AG163: ГАНК-4М для определения: Трифторхлорметан (Фреон 13) (Р) | AH163: 102169 | AI163: 1021692 | AJ163: ГАНК-4СEx (Д) для определения: Трифторхлорметан (Фреон 13) (Р) | AK163: Д | AL163: 1026169 | AM163: ГАНК-4ФEx (Д) для определения: Трифторхлорметан (Фреон 13) (Р) | AN163: Нет
A164: Р : Тетрафторметан (Фреон 14) (Р) 1500 - 8000 мг/м3 | B164: 21702 | C164: 1500 - 8000 мг/м3 | D164: Р | E164: Д - РБ | J164: АР2 | K164: В-во | L164: Нет | M164: Нет | N164: Нет | O164: Нет | P164: Нет | Q164: Нет | R164: Нет | S164: Тетрафторметан (Фреон 14) (Р) | Y164: CF4 | Z164: 3000 | AC164: М | AD164: =IF(AC164="НЕТ","Нет",IF(AC164="С","Cex (Х)",IF(AC164="М","Cex (Д)"," "))) -> Cex (Д) | AE164: =CONCATENATE(IF(AC164="Нет","",CONCATENATE(AC164,";")),IF(AD164="Нет","",AD164)) -> М;Cex (Д) | AF164: Нет | AG164: ГАНК-4М для определения: Тетрафторметан (Фреон 14) (Р) | AH164: 102170 | AI164: 1021702 | AJ164: ГАНК-4СEx (Д) для определения: Тетрафторметан (Фреон 14) (Р) | AK164: Д | AL164: 1026170 | AM164: ГАНК-4ФEx (Д) для определения: Тетрафторметан (Фреон 14) (Р) | AN164: Нет
A165: Р : Дихлорфторметан (Фреон 21) (Р) 1500 - 9000 мг/м3 | B165: 21712 | C165: 1500 - 9000 мг/м3 | D165: Р | E165: Д - РБ | J165: АР2 | K165: В-во | L165: Нет | M165: Нет | N165: Нет | O165: Нет | P165: Нет | Q165: Нет | R165: Нет | S165: Дихлорфторметан (Фреон 21) (Р) | Y165: СНFCl2 | Z165: 3000 | AC165: М | AD165: Cex (Д) | AE165: М;Cex (Д) | AF165: Нет | AG165: ГАНК-4М для определения: Дихлорфторметан (Фреон 21) (Р) | AH165: 102171 | AI165: 1021712 | AJ165: ГАНК-4СEx (Д) для определения: Дихлорфторметан (Фреон 21) (Р) | AK165: Д | AL165: 1026171 | AM165: ГАНК-4ФEx (Д) для определения: Дихлорфторметан (Фреон 21) (Р) | AN165: Нет
A166: Р : Дифторхлорметан (фреон 22) (Р) 1500 - 8000 мг/м3 | B166: 21722 | C166: 1500 - 8000 мг/м3 | D166: Р | E166: Д - РБ | J166: АР2 | K166: В-во | L166: Нет | M166: Нет | N166: Нет | O166: Нет | P166: Нет | Q166: Нет | R166: Нет | S166: Дифторхлорметан (фреон 22) (Р) | Y166: CHClF₂ | Z166: 3000 | AC166: М | AD166: Cex (Д) | AE166: М;Cex (Д) | AF166: Нет | AG166: ГАНК-4М для определения: Дифторхлорметан (фреон 22) (Р) | AH166: 102172 | AI166: 1021722 | AJ166: ГАНК-4СEx (Д) для определения: Дифторхлорметан (фреон 22) (Р) | AK166: Д | AL166: 1026172 | AM166: ГАНК-4ФEx (Д) для определения: Дифторхлорметан (фреон 22) (Р) | AN166: Нет
A167: Р : Трифторметан (Фреон 23) (Р) 1500 - 6000 мг/м3 | B167: 21732 | C167: 1500 - 6000 мг/м3 | D167: Р | E167: Д - РБ | J167: АР2 | K167: В-во | L167: Нет | M167: Нет | N167: Нет | O167: Нет | P167: Нет | Q167: Нет | R167: Нет | S167: Трифторметан (Фреон 23) (Р) | Y167: СНF3 | Z167: 3000 | AC167: М | AD167: Cex (Д) | AE167: М;Cex (Д) | AF167: Нет | AG167: ГАНК-4М для определения: Трифторметан (Фреон 23) (Р) | AH167: =102000+(B167-2)/10-2000 -> 102173 | AI167: =IF(AC167="Нет","Нет",AH167*10+2) -> 1021732 | AJ167: ГАНК-4СEx (Д) для определения: Трифторметан (Фреон 23) (Р) | AK167: Д | AL167: 1026173 | AM167: ГАНК-4ФEx (Д) для определения: Трифторметан (Фреон 23) (Р) | AN167: Нет
A168: Р : 1,1,дихлор- 1-фторэтан (Фреон 141в) (Р) 500 - 10000 мг/м3 | B168: 21742 | C168: 500 - 10000 мг/м3 | D168: Р | E168: Д - РБ | J168: АР2 | K168: В-во | L168: Нет | M168: Нет | N168: Нет | O168: Нет | P168: Нет | Q168: Нет | R168: Нет | S168: 1,1,дихлор- 1-фторэтан (Фреон 141в) (Р) | Y168: С2FCl2Н3 | Z168: 1000 | AC168: М | AD168: Cex (Д) | AE168: М;Cex (Д) | AF168: Нет | AG168: ГАНК-4М для определения: 1,1,дихлор- 1-фторэтан (Фреон 141в) (Р) | AH168: 102174 | AI168: 1021742 | AJ168: ГАНК-4СEx (Д) для определения: 1,1,дихлор- 1-фторэтан (Фреон 141в) (Р) | AK168: Д | AL168: 1026174 | AM168: ГАНК-4ФEx (Д) для определения: 1,1,дихлор- 1-фторэтан (Фреон 141в) (Р) | AN168: Нет
A169: Р : 1,2,2-трифтор-1,1,2-трихлорэтан (фреон 113), (Р) 2500 - 16000 мг/м3 | B169: 21752 | C169: 2500 - 16000 мг/м3 | D169: Р | E169: Д - РБ | J169: АР2 | K169: В-во | L169: Нет | M169: Нет | N169: Нет | O169: Нет | P169: Нет | Q169: Нет | R169: Нет | S169: 1,2,2-трифтор-1,1,2-трихлорэтан (фреон 113), (Р) | Y169: C2Cl3F3 | Z169: 5000 | AC169: М | AD169: Cex (Д) | AE169: М;Cex (Д) | AF169: Нет | AG169: ГАНК-4М для определения: 1,2,2-трифтор-1,1,2-трихлорэтан (фреон 113), (Р) | AH169: 102175 | AI169: 1021752 | AJ169: ГАНК-4СEx (Д) для определения: 1,2,2-трифтор-1,1,2-трихлорэтан (фреон 113), (Р) | AK169: Д | AL169: 1026175 | AM169: ГАНК-4ФEx (Д) для определения: 1,2,2-трифтор-1,1,2-трихлорэтан (фреон 113), (Р) | AN169: Нет
A170: Р : 1,1,1-трифтор-2.2-дихлорэтан (Фреон 123) (по фреону 113) (Р) 50 - 13000 мг/м3 | B170: 21762 | C170: 50 - 13000 мг/м3 | D170: Р | E170: Д - РБ | J170: АР2 | K170: В-во | L170: Нет | M170: Нет | N170: Нет | O170: Нет | P170: Нет | Q170: Нет | R170: Нет | S170: 1,1,1-трифтор-2.2-дихлорэтан (Фреон 123) (по фреону 113) (Р) | Y170: С2F3НCl2 | Z170: 100 | AC170: М | AD170: Cex (Д) | AE170: М;Cex (Д) | AF170: Нет | AG170: ГАНК-4М для определения: 1,1,1-трифтор-2.2-дихлорэтан (Фреон 123) (по фреону 113) (Р) | AH170: 102176 | AI170: 1021762 | AJ170: ГАНК-4СEx (Д) для определения: 1,1,1-трифтор-2.2-дихлорэтан (Фреон 123) (по фреону 113) (Р) | AK170: Д | AL170: 1026176 | AM170: ГАНК-4ФEx (Д) для определения: 1,1,1-трифтор-2.2-дихлорэтан (Фреон 123) (по фреону 113) (Р) | AN170: Нет
A171: Р : 1,1,1,2- тетрафторэтан (Фреон 134 а) (Р) 1500 - 9000 мг/м3 | B171: 21772 | C171: 1500 - 9000 мг/м3 | D171: Р | E171: Д - РБ | J171: АР2 | K171: В-во | L171: Нет | M171: Нет | N171: Нет | O171: Нет | P171: Нет | Q171: Нет | R171: Нет | S171: 1,1,1,2- тетрафторэтан (Фреон 134 а) (Р) | Y171: С2Н2F4 | Z171: 3000 | AC171: М | AD171: Cex (Д) | AE171: М;Cex (Д) | AF171: Нет | AG171: ГАНК-4М для определения: 1,1,1,2- тетрафторэтан (Фреон 134 а) (Р) | AH171: 102177 | AI171: 1021772 | AJ171: ГАНК-4СEx (Д) для определения: 1,1,1,2- тетрафторэтан (Фреон 134 а) (Р) | AK171: Д | AL171: 1026177 | AM171: ГАНК-4ФEx (Д) для определения: 1,1,1,2- тетрафторэтан (Фреон 134 а) (Р) | AN171: Нет
A172: Р : Пентафторэтан (Фреон 125) (Р) 1500 - 10000 мг/м3 | B172: 21782 | C172: 1500 - 10000 мг/м3 | D172: Р | E172: Д - РБ | J172: АР2 | K172: В-во | L172: Нет | M172: Нет | N172: Нет | O172: Нет | P172: Нет | Q172: Нет | R172: Нет | S172: Пентафторэтан (Фреон 125) (Р) | Y172: С2F5Н | Z172: 3000 | AC172: М | AD172: Cex (Д) | AE172: М;Cex (Д) | AF172: Нет | AG172: ГАНК-4М для определения: Пентафторэтан (Фреон 125) (Р) | AH172: 102178 | AI172: 1021782 | AJ172: ГАНК-4СEx (Д) для определения: Пентафторэтан (Фреон 125) (Р) | AK172: Д | AL172: 1026178 | AM172: ГАНК-4ФEx (Д) для определения: Пентафторэтан (Фреон 125) (Р) | AN172: Нет
A173: Р : 1,1,1-Трифторэтан (Фреон 143) (Р) 1500 - 7000 мг/м3 | B173: 21792 | C173: 1500 - 7000 мг/м3 | D173: Р | E173: Д - РБ | J173: АР2 | K173: В-во | L173: Нет | M173: Нет | N173: Нет | O173: Нет | P173: Нет | Q173: Нет | R173: Нет | S173: 1,1,1-Трифторэтан (Фреон 143) (Р) | Y173: С2Н3F3 | Z173: 3000 | AC173: М | AD173: Cex (Д) | AE173: М;Cex (Д) | AF173: Нет | AG173: ГАНК-4М для определения: 1,1,1-Трифторэтан (Фреон 143) (Р) | AH173: 102179 | AI173: 1021792 | AJ173: ГАНК-4СEx (Д) для определения: 1,1,1-Трифторэтан (Фреон 143) (Р) | AK173: Д | AL173: 1026179 | AM173: ГАНК-4ФEx (Д) для определения: 1,1,1-Трифторэтан (Фреон 143) (Р) | AN173: Нет
A174: Р : 1,2 Дибром- 1,1,2,2-тетрафторэтан (Фреон 114 в2) (Р) 500 - 22000 мг/м3 | B174: 21802 | C174: 500 - 22000 мг/м3 | D174: Р | E174: Д - РБ | J174: АР2 | K174: В-во | L174: Нет | M174: Нет | N174: Нет | O174: Нет | P174: Нет | Q174: Нет | R174: Нет | S174: 1,2 Дибром- 1,1,2,2-тетрафторэтан (Фреон 114 в2) (Р) | Y174: С2Br2F4 | Z174: 1000 | AC174: М | AD174: Cex (Д) | AE174: М;Cex (Д) | AF174: Нет | AG174: ГАНК-4М для определения: 1,2 Дибром- 1,1,2,2-тетрафторэтан (Фреон 114 в2) (Р) | AH174: 102180 | AI174: 1021802 | AJ174: ГАНК-4СEx (Д) для определения: 1,2 Дибром- 1,1,2,2-тетрафторэтан (Фреон 114 в2) (Р) | AK174: Д | AL174: 1026180 | AM174: ГАНК-4ФEx (Д) для определения: 1,2 Дибром- 1,1,2,2-тетрафторэтан (Фреон 114 в2) (Р) | AN174: Нет
A175: Р : Фреон 404а (Смесь фреонов 125, 134а, 143а) (Р) 2000 - 8000 мг/м3 | B175: 21812 | C175: 2000 - 8000 мг/м3 | D175: Р | E175: Д - РБ | J175: АР2 | K175: В-во | L175: Нет | M175: Нет | N175: Нет | O175: Нет | P175: Нет | Q175: Нет | R175: Нет | S175: Фреон 404а (Смесь фреонов 125, 134а, 143а) (Р) | Z175: 4000 | AC175: М | AD175: Cex (Д) | AE175: М;Cex (Д) | AF175: Нет | AG175: ГАНК-4М для определения: Фреон 404а (Смесь фреонов 125, 134а, 143а) (Р) | AH175: 102181 | AI175: 1021812 | AJ175: ГАНК-4СEx (Д) для определения: Фреон 404а (Смесь фреонов 125, 134а, 143а) (Р) | AK175: Д | AL175: 1026181 | AM175: ГАНК-4ФEx (Д) для определения: Фреон 404а (Смесь фреонов 125, 134а, 143а) (Р) | AN175: Нет
A176: Р : Фреон 407а (Смесь фреонов R32, R125, R134a) (Р) 1750 - 8000 мг/м3 | B176: 21822 | C176: 1750 - 8000 мг/м3 | D176: Р | E176: Д - РБ | J176: АР2 | K176: В-во | L176: Нет | M176: Нет | N176: Нет | O176: Нет | P176: Нет | Q176: Нет | R176: Нет | S176: Фреон 407а (Смесь фреонов R32, R125, R134a) (Р) | Z176: 3500 | AC176: М | AD176: Cex (Д) | AE176: М;Cex (Д) | AF176: Нет | AG176: ГАНК-4М для определения: Фреон 407а (Смесь фреонов R32, R125, R134a) (Р) | AH176: 102182 | AI176: 1021822 | AJ176: ГАНК-4СEx (Д) для определения: Фреон 407а (Смесь фреонов R32, R125, R134a) (Р) | AK176: Д | AL176: 1026182 | AM176: ГАНК-4ФEx (Д) для определения: Фреон 407а (Смесь фреонов R32, R125, R134a) (Р) | AN176: Нет
A177: Р : Фреон 507а (Смесь фреонов 125, 143) (Р) 2000 - 9000 мг/м3 | B177: 21832 | C177: 2000 - 9000 мг/м3 | D177: Р | E177: Д - РБ | J177: АР2 | K177: В-во | L177: Нет | M177: Нет | N177: Нет | O177: Нет | P177: Нет | Q177: Нет | R177: Нет | S177: Фреон 507а (Смесь фреонов 125, 143) (Р) | Z177: 4000 | AC177: М | AD177: Cex (Д) | AE177: М;Cex (Д) | AF177: Нет | AG177: ГАНК-4М для определения: Фреон 507а (Смесь фреонов 125, 143) (Р) | AH177: 102183 | AI177: 1021832 | AJ177: ГАНК-4СEx (Д) для определения: Фреон 507а (Смесь фреонов 125, 143) (Р) | AK177: Д | AL177: 1026183 | AM177: ГАНК-4ФEx (Д) для определения: Фреон 507а (Смесь фреонов 125, 143) (Р) | AN177: Нет
A178: Р : Фреон 410а (Смесь фреонов 125,32) (Р) 1500 - 6000 мг/м3 | B178: 21842 | C178: 1500 - 6000 мг/м3 | D178: Р | E178: Д - РБ | J178: АР2 | K178: В-во | L178: Нет | M178: Нет | N178: Нет | O178: Нет | P178: Нет | Q178: Нет | R178: Нет | S178: Фреон 410а (Смесь фреонов 125,32) (Р) | Z178: 3000 | AC178: М | AD178: Cex (Д) | AE178: М;Cex (Д) | AF178: Нет | AG178: ГАНК-4М для определения: Фреон 410а (Смесь фреонов 125,32) (Р) | AH178: 102184 | AI178: 1021842 | AJ178: ГАНК-4СEx (Д) для определения: Фреон 410а (Смесь фреонов 125,32) (Р) | AK178: Д | AL178: 1026184 | AM178: ГАНК-4ФEx (Д) для определения: Фреон 410а (Смесь фреонов 125,32) (Р) | AN178: Нет
A179: Р : Фурфурол (Р) 5 - 200 мг/м3 | B179: 21862 | C179: 5 - 200 мг/м3 | D179: Р | E179: Д | I179: Р05 | K179: В-во | L179: Нет | M179: Д | N179: Д | O179: Нет | P179: Д | Q179: Д | R179: Д | S179: Фурфурол (Р) | Y179: C5H4O2 | Z179: 10 | AC179: М | AD179: Cex (Д) | AE179: М;Cex (Д) | AF179: Нет | AG179: ГАНК-4М для определения: Фурфурол (Р) | AH179: 102186 | AI179: 1021862 | AJ179: ГАНК-4СEx (Д) для определения: Фурфурол (Р) | AK179: Д | AL179: 1026186 | AM179: ГАНК-4ФEx (Д) для определения: Фурфурол (Р) | AN179: Нет
A180: Р : Хлор (Р) 0,5 - 20 мг/м3 | B180: 21872 | C180: 0,5 - 20 мг/м3 | D180: Р | E180: Х | K180: В-во | L180: Нет | M180: Х | N180: Х | O180: Нет | P180: Х | Q180: Х | R180: Д | S180: Хлор (Р) | Y180: Cl2 | Z180: 1 | AB180: ОТ | AC180: М | AD180: Cex (Д) | AE180: М;Cex (Д) | AF180: Нет | AG180: ГАНК-4М для определения: Хлор (Р) | AH180: 102187 | AI180: 1021872 | AJ180: ГАНК-4СEx (Д) для определения: Хлор (Р) | AK180: Д | AL180: 1026187 | AM180: ГАНК-4ФEx (Д) для определения: Хлор (Р) | AN180: Нет
A181: Р : Хлористый аллил (Р) 0,15 - 6 мг/м3 | B181: 21882 | C181: 0,15 - 6 мг/м3 | D181: Р | E181: Д | I181: Р08 | K181: В-во | L181: Нет | M181: Д | N181: Д | O181: Нет | P181: Д | Q181: Д | R181: Д | S181: Хлористый аллил (Р) | Y181: С3Н5Cl | Z181: 0.3 | AC181: М | AD181: Cex (Д) | AE181: М;Cex (Д) | AF181: Нет | AG181: ГАНК-4М для определения: Хлористый аллил (Р) | AH181: 102188 | AI181: 1021882 | AJ181: ГАНК-4СEx (Д) для определения: Хлористый аллил (Р) | AK181: Д | AL181: 1026188 | AM181: ГАНК-4ФEx (Д) для определения: Хлористый аллил (Р) | AN181: Нет
A182: Р : Хлорбензол (Р) 25 - 1000 мг/м3 | B182: 21892 | C182: 25 - 1000 мг/м3 | D182: Р | E182: Д | K182: В-во | L182: Нет | M182: Д | N182: Д | O182: Нет | P182: Д | Q182: Д | R182: Д | S182: Хлорбензол (Р) | Y182: C6H5Cl | Z182: 50 | AB182: ОТ | AC182: М | AD182: Cex (Д) | AE182: М;Cex (Д) | AF182: Нет | AG182: ГАНК-4М для определения: Хлорбензол (Р) | AH182: 102189 | AI182: 1021892 | AJ182: ГАНК-4СEx (Д) для определения: Хлорбензол (Р) | AK182: Д | AL182: 1026189 | AM182: ГАНК-4ФEx (Д) для определения: Хлорбензол (Р) | AN182: Нет
A183: Р : Хлоропрен (Р) 1 - 40 мг/м3 | B183: 21902 | C183: 1 - 40 мг/м3 | D183: Р | E183: Д | I183: Р08 | K183: В-во | L183: Нет | M183: Д | N183: Д | O183: Нет | P183: Д | Q183: Д | R183: Д | S183: Хлоропрен (Р) | Y183: С4Н5Cl | Z183: 2 | AC183: М | AD183: Cex (Д) | AE183: М;Cex (Д) | AF183: Нет | AG183: ГАНК-4М для определения: Хлоропрен (Р) | AH183: 102190 | AI183: 1021902 | AJ183: ГАНК-4СEx (Д) для определения: Хлоропрен (Р) | AK183: Д | AL183: 1026190 | AM183: ГАНК-4ФEx (Д) для определения: Хлоропрен (Р) | AN183: Нет
A184: Р : Хлортолуол (Р) 5 - 200 мг/м3 | B184: 21912 | C184: 5 - 200 мг/м3 | D184: Р | E184: Д | I184: Р08 | K184: В-во | L184: Нет | M184: Д | N184: Д | O184: Нет | P184: Д | Q184: Д | R184: Д | S184: Хлортолуол (Р) | Y184: С7Н7Cl | Z184: 10 | AC184: М | AD184: Cex (Д) | AE184: М;Cex (Д) | AF184: Нет | AG184: ГАНК-4М для определения: Хлортолуол (Р) | AH184: 102191 | AI184: 1021912 | AJ184: ГАНК-4СEx (Д) для определения: Хлортолуол (Р) | AK184: Д | AL184: 1026191 | AM184: ГАНК-4ФEx (Д) для определения: Хлортолуол (Р) | AN184: Нет
A185: Р : (Хлорметил)оксиран (Эпихлоргидрин) (Р) 0,5 - 20 мг/м3 | B185: 21922 | C185: 0,5 - 20 мг/м3 | D185: Р | E185: Д | J185: АР4 | K185: В-во | L185: Нет | M185: Д | N185: Д | O185: Нет | P185: Д | Q185: Д | R185: Д | S185: (Хлорметил)оксиран (Эпихлоргидрин) (Р) | Y185: С3Н5ClО | Z185: 1 | AC185: М | AD185: Cex (Д) | AE185: М;Cex (Д) | AF185: Нет | AG185: ГАНК-4М для определения: (Хлорметил)оксиран (Эпихлоргидрин) (Р) | AH185: 102192 | AI185: 1021922 | AJ185: ГАНК-4СEx (Д) для определения: (Хлорметил)оксиран (Эпихлоргидрин) (Р) | AK185: Д | AL185: 1026192 | AM185: ГАНК-4ФEx (Д) для определения: (Хлорметил)оксиран (Эпихлоргидрин) (Р) | AN185: Нет
A186: Р : Этилхлорид (Р) 25 - 1000 мг/м3 | B186: 21932 | C186: 25 - 1000 мг/м3 | D186: Р | E186: Д | I186: Р08 | K186: В-во | L186: Нет | M186: Д | N186: Д | O186: Нет | P186: Д | Q186: Д | R186: Д | S186: Этилхлорид (Р) | Y186: С2Н5Cl | Z186: 50 | AC186: М | AD186: Cex (Д) | AE186: М;Cex (Д) | AF186: Нет | AG186: ГАНК-4М для определения: Этилхлорид (Р) | AH186: =102000+(B186-2)/10-2000 -> 102193 | AI186: 1021932 | AJ186: ГАНК-4СEx (Д) для определения: Этилхлорид (Р) | AK186: Д | AL186: 1026193 | AM186: ГАНК-4ФEx (Д) для определения: Этилхлорид (Р) | AN186: Нет
A187: Р : 2-Хлорэтанол-1 (Р) 0,25 - 10 мг/м3 | B187: 21942 | C187: 0,25 - 10 мг/м3 | D187: Р | E187: Д | I187: Р08 | K187: В-во | L187: Нет | M187: Д | N187: Д | O187: Нет | P187: Д | Q187: Д | R187: Д | S187: 2-Хлорэтанол-1 (Р) | Y187: С2Н4(ОН)Cl | Z187: 0.5 | AC187: М | AD187: =IF(AC187="НЕТ","Нет",IF(AC187="С","Cex (Х)",IF(AC187="М","Cex (Д)"," "))) -> Cex (Д) | AE187: =CONCATENATE(IF(AC187="Нет","",CONCATENATE(AC187,";")),IF(AD187="Нет","",AD187)) -> М;Cex (Д) | AF187: Нет | AG187: ГАНК-4М для определения: 2-Хлорэтанол-1 (Р) | AH187: 102194 | AI187: 1021942 | AJ187: ГАНК-4СEx (Д) для определения: 2-Хлорэтанол-1 (Р) | AK187: Д | AL187: 1026194 | AM187: ГАНК-4ФEx (Д) для определения: 2-Хлорэтанол-1 (Р) | AN187: Нет
A188: Р : Винилхлорид (Р) 0,5 - 20 мг/м3 | B188: 21952 | C188: 0,5 - 20 мг/м3 | D188: Р | E188: Х - ДОЖ | I188: Р08 | K188: В-во | L188: Нет | M188: Х - ДОЖ | N188: Х - ДОЖ | O188: Нет | P188: Нет | Q188: Нет | R188: Нет | S188: Винилхлорид (Р) | T188: .0403 | Y188: С2Н3Cl | Z188: 1 | AC188: М | AD188: Cex (Д) | AE188: М;Cex (Д) | AF188: Нет | AG188: ГАНК-4М для определения: Винилхлорид (Р) | AH188: 102195 | AI188: 1021952 | AJ188: ГАНК-4СEx (Д) для определения: Винилхлорид (Р) | AK188: Д | AL188: 1026195 | AM188: ГАНК-4ФEx (Д) для определения: Винилхлорид (Р) | AN188: Нет
A189: Р : Ди-Хром триоксид (по хрому (III)) (Р) 0,5 - 20 мг/м3 | B189: 21962 | C189: 0,5 - 20 мг/м3 | D189: Р | E189: Х | J189: АР5 | K189: В-во | L189: Нет | M189: Х | N189: Х | O189: Нет | P189: Х | Q189: Х | R189: Нет | S189: Ди-Хром триоксид (по хрому (III)) (Р) | Y189: Cr2О3 | Z189: 1 | AC189: С | AD189: Cex (Х) | AE189: С;Cex (Х) | AF189: ГАНК-4С для определения: Ди-Хром триоксид (по хрому (III)) (Р) | AG189: Нет | AH189: 102196 | AI189: 1021962 | AJ189: ГАНК-4СEx (Х) для определения: Ди-Хром триоксид (по хрому (III)) (Р) | AK189: Х | AL189: 1026196 | AM189: ГАНК-4ФEx (Х) для определения: Ди-Хром триоксид (по хрому (III)) (Р) | AN189: Нет
A190: Р : Циклогексанон (Р) 5 - 200 мг/м3 | B190: 21982 | C190: 5 - 200 мг/м3 | D190: Р | E190: Д | K190: В-во | L190: Нет | M190: Д | N190: Д | O190: Нет | P190: Д | Q190: Д | R190: Д | S190: Циклогексанон (Р) | Y190: C6H10O | Z190: 10 | AB190: ОТ | AC190: М | AD190: Cex (Д) | AE190: М;Cex (Д) | AF190: Нет | AG190: ГАНК-4М для определения: Циклогексанон (Р) | AH190: 102198 | AI190: 1021982 | AJ190: ГАНК-4СEx (Д) для определения: Циклогексанон (Р) | AK190: Д | AL190: 1026198 | AM190: ГАНК-4ФEx (Д) для определения: Циклогексанон (Р) | AN190: Нет
A191: Р : Эпоксиэтан (этилена оксид, оксиран) (Р) 0,5 - 20 мг/м3 | B191: 22012 | C191: 0,5 - 20 мг/м3 | D191: Р | E191: Д | K191: В-во | L191: Нет | M191: Д | N191: Д | O191: Нет | P191: Д | Q191: Д | R191: Д | S191: Эпоксиэтан (этилена оксид, оксиран) (Р) | Y191: C2H4O | Z191: 1 | AB191: ОТ | AC191: М | AD191: Cex (Д) | AE191: М;Cex (Д) | AF191: Нет | AG191: ГАНК-4М для определения: Эпоксиэтан (этилена оксид, оксиран) (Р) | AH191: 102201 | AI191: 1022012 | AJ191: ГАНК-4СEx (Д) для определения: Эпоксиэтан (этилена оксид, оксиран) (Р) | AK191: Д | AL191: 1026201 | AM191: ГАНК-4ФEx (Д) для определения: Эпоксиэтан (этилена оксид, оксиран) (Р) | AN191: Нет
A192: Р : Этан (Р) 150 - 6000 мг/м3 | B192: 22022 | C192: 150 - 6000 мг/м3 | D192: Р | E192: Д | I192: Р07 | K192: В-во | L192: Нет | M192: Д | N192: Д | O192: Нет | P192: Д | Q192: Д | R192: Д | S192: Этан (Р) | Y192: С2Н6 | Z192: 300 | AC192: М | AD192: Cex (Д) | AE192: М;Cex (Д) | AF192: Нет | AG192: ГАНК-4М для определения: Этан (Р) | AH192: 102202 | AI192: 1022022 | AJ192: =IF(AC192="М",CONCATENATE("ГАНК-4СEx (Д) для определения: ",S192),IF(AC192="С",CONCATENATE("ГАНК-4СEx (Х) для определения: ",S192),"Нет")) -> ГАНК-4СEx (Д) для определения: Этан (Р) | AK192: Д | AL192: =IF(AC192="нет","Нет",1026000+(B192-2)/10-2000) -> 1026202 | AM192: =IF(AC192="М",CONCATENATE("ГАНК-4ФEx (Д) для определения: ",S192),IF(AC192="С",CONCATENATE("ГАНК-4ФEx (Х) для определения: ",S192),"Нет")) -> ГАНК-4ФEx (Д) для определения: Этан (Р) | AN192: Нет
A193: Р : Этанол (этиловый спирт) (Р) 500 - 20000 мг/м3 | B193: 22032 | C193: 500 - 20000 мг/м3 | D193: Р | E193: Д | K193: В-во | L193: Нет | M193: Д | N193: Д | O193: Нет | P193: Д | Q193: Д | R193: Д | S193: Этанол (этиловый спирт) (Р) | Y193: C2H5OH | Z193: 1000 | AB193: Да | AC193: М | AD193: Cex (Д) | AE193: М;Cex (Д) | AF193: Нет | AG193: ГАНК-4М для определения: Этанол (этиловый спирт) (Р) | AH193: 102203 | AI193: 1022032 | AJ193: ГАНК-4СEx (Д) для определения: Этанол (этиловый спирт) (Р) | AK193: Д | AL193: 1026203 | AM193: ГАНК-4ФEx (Д) для определения: Этанол (этиловый спирт) (Р) | AN193: Нет
A194: Р : Этиленгликоль (Р) 2,5 - 100 мг/м3 | B194: 22042 | C194: 2,5 - 100 мг/м3 | D194: Р | E194: Д | I194: Р09 | K194: В-во | L194: Нет | M194: Д | N194: Д | O194: Нет | P194: Д | Q194: Д | R194: Д | S194: Этиленгликоль (Р) | Y194: С2Н4(ОН)2 | Z194: 5 | AC194: М | AD194: Cex (Д) | AE194: М;Cex (Д) | AF194: Нет | AG194: ГАНК-4М для определения: Этиленгликоль (Р) | AH194: 102204 | AI194: 1022042 | AJ194: ГАНК-4СEx (Д) для определения: Этиленгликоль (Р) | AK194: Д | AL194: 1026204 | AM194: ГАНК-4ФEx (Д) для определения: Этиленгликоль (Р) | AN194: Нет
A195: Р : Кислота уксусная (Р) 2,5 - 100 мг/м3 | B195: 22052 | C195: 2,5 - 100 мг/м3 | D195: Р | E195: Х | I195: Р03 | K195: В-во | L195: Нет | M195: Х | N195: Х | O195: Нет | P195: Х | Q195: Х | R195: Д | S195: Кислота уксусная (Р) | Y195: C2H4O2 | Z195: 5 | AB195: Да | AC195: М | AD195: Cex (Д) | AE195: М;Cex (Д) | AF195: Нет | AG195: ГАНК-4М для определения: Кислота уксусная (Р) | AH195: 102205 | AI195: 1022052 | AJ195: ГАНК-4СEx (Д) для определения: Кислота уксусная (Р) | AK195: Д | AL195: 1026205 | AM195: ГАНК-4ФEx (Д) для определения: Кислота уксусная (Р) | AN195: Да
A196: Р : Этилен (Р) 25 - 1000 мг/м3 | B196: 22062 | C196: 25 - 1000 мг/м3 | D196: Р | E196: Д | I196: Р06 | K196: В-во | L196: Нет | M196: Д | N196: Д | O196: Нет | P196: Д | Q196: Д | R196: Д | S196: Этилен (Р) | Y196: С2Н4 | Z196: 50 | AC196: М | AD196: Cex (Д) | AE196: М;Cex (Д) | AF196: Нет | AG196: ГАНК-4М для определения: Этилен (Р) | AH196: 102206 | AI196: 1022062 | AJ196: ГАНК-4СEx (Д) для определения: Этилен (Р) | AK196: Д | AL196: 1026206 | AM196: ГАНК-4ФEx (Д) для определения: Этилен (Р) | AN196: Нет
A197: Р : Винилацетат (этенилацетат, уксусной кислоты виниловый эфир) (Р) 5 - 200 мг/м3 | B197: 22072 | C197: 5 - 200 мг/м3 | D197: Р | E197: Д | K197: В-во | L197: Нет | M197: Д | N197: Д | O197: Нет | P197: Д | Q197: Д | R197: Д | S197: Винилацетат (этенилацетат, уксусной кислоты виниловый эфир) (Р) | Y197: C4H6O2 | Z197: 10 | AB197: ОТ | AC197: М | AD197: Cex (Д) | AE197: М;Cex (Д) | AF197: Нет | AG197: ГАНК-4М для определения: Винилацетат (этенилацетат, уксусной кислоты виниловый эфир) (Р) | AH197: 102207 | AI197: 1022072 | AJ197: ГАНК-4СEx (Д) для определения: Винилацетат (этенилацетат, уксусной кислоты виниловый эфир) (Р) | AK197: Д | AL197: 1026207 | AM197: ГАНК-4ФEx (Д) для определения: Винилацетат (этенилацетат, уксусной кислоты виниловый эфир) (Р) | AN197: Нет
A198: Р : Этенилбензол (стирол) (Р) 5 - 200 мг/м3 | B198: 22082 | C198: 5 - 200 мг/м3 | D198: Р | E198: Д | K198: В-во | L198: Нет | M198: Д | N198: Д | O198: Нет | P198: Д | Q198: Д | R198: Д | S198: Этенилбензол (стирол) (Р) | Y198: C8H8 | Z198: 10 | AB198: Да | AC198: М | AD198: Cex (Д) | AE198: М;Cex (Д) | AF198: Нет | AG198: ГАНК-4М для определения: Этенилбензол (стирол) (Р) | AH198: 102208 | AI198: =IF(AC198="Нет","Нет",AH198*10+2) -> 1022082 | AJ198: ГАНК-4СEx (Д) для определения: Этенилбензол (стирол) (Р) | AK198: Д | AL198: 1026208 | AM198: ГАНК-4ФEx (Д) для определения: Этенилбензол (стирол) (Р) | AN198: Нет
A199: Р : Этиламин (Р) 5 - 200 мг/м3 | B199: 22092 | C199: 5 - 200 мг/м3 | D199: Р | E199: Х | I199: Р03 | K199: В-во | L199: Нет | M199: Х | N199: Х | O199: Нет | P199: Х | Q199: Х | R199: Д | S199: Этиламин (Р) | Y199: C2H7N | Z199: 10 | AC199: М | AD199: Cex (Д) | AE199: М;Cex (Д) | AF199: Нет | AG199: ГАНК-4М для определения: Этиламин (Р) | AH199: 102209 | AI199: 1022092 | AJ199: ГАНК-4СEx (Д) для определения: Этиламин (Р) | AK199: Д | AL199: 1026209 | AM199: ГАНК-4ФEx (Д) для определения: Этиламин (Р) | AN199: Нет
A200: Р : Этилацетат (Р) 25 - 1000 мг/м3 | B200: 22102 | C200: 25 - 1000 мг/м3 | D200: Р | E200: Д | I200: Р06 | K200: В-во | L200: Нет | M200: Д | N200: Д | O200: Нет | P200: Д | Q200: Д | R200: Д | S200: Этилацетат (Р) | Y200: С4Н8О2 | Z200: 50 | AC200: М | AD200: Cex (Д) | AE200: М;Cex (Д) | AF200: Нет | AG200: ГАНК-4М для определения: Этилацетат (Р) | AH200: 102210 | AI200: 1022102 | AJ200: ГАНК-4СEx (Д) для определения: Этилацетат (Р) | AK200: Д | AL200: 1026210 | AM200: ГАНК-4ФEx (Д) для определения: Этилацетат (Р) | AN200: Нет
... 124 more rows
